Workbook

Sheet III Tool Overview
C2: Informing Investment to tackle health Inequalities in Scotland (III) - Employment
C3: What is the nature of the intervention? Adults aged 16-24 not in full-time education, training or employment and adults aged 25-69 not in employment gain a job. The model assumes that in this 'at risk' group, a maximum of 100% of the unemployed and one-third of the economically inactive (who say they want a job) could benefit from this intervention.
X4: Geographies
X5: Scotland | AD5: Orkney Health Board
G6: Geography | H6: Orkney Health Board | X6: Ayrshire & Arran Health Board | AD6: Shetland Health Board
G7: Intervention | H7: Employment | X7: Borders Health Board | AD7: Orkney Islands Local Authority
G8: Number of people gaining employment | H8: 144 | I8: =IF(H8>D23,"Too high - please check & re-enter","") ->  | X8: Dumfries & Galloway Health Board | AD8: Shetland Islands Local Authority
G9: Number treated at baseline | H9: 0 | X9: Fife Health Board
G10: Targeting strategy | H10: Targeting to Q1 & Q2 | I10: =IF(H10="Even distribution","Interventions are divided evenly across all quintiles",IF(H10="Targeting to Q1","Interventions are targeted at Q1 only",IF(H10="Targeting to Q1 & Q2","Interventions are targeted to Q1 & Q2",IF(H10="Proportionate to need","Targets the distribution of worklessness")))) -> Interventions are targeted to Q1 & Q2 | X10: Forth Valley Health Board
G11: Total direct cost of intervention (£m, 2012 prices) | H11: =(H8*D32)/1000000 -> 0.6444 | X11: Grampian Health Board
X12: Greater Glasgow & Clyde Health Board
X13: Highland Health Board
X14: Lanarkshire Health Board
C15: Baseline Information: Employment | G15: Model Outcomes (whole population) | H15: 2 years | I15: 10 years | J15: 20 years | X15: Lothian Health Board
C16: Baseline year | D16: 2012 | G16: Years of life gained | H16: =Calculations!S86+Calculations!S107+Calculations!S129+Calculations!S150+Calculations!S172+Calculations!S193+Calculations!S215+Calculations!S236+Calculations!S258+Calculations!S279 -> 5.112638363 | I16: =Calculations!Y86+Calculations!Y107+Calculations!Y129+Calculations!Y150+Calculations!Y172+Calculations!Y193+Calculations!Y215+Calculations!Y236+Calculations!Y258+Calculations!Y279 -> 29.42100298 | J16: =Calculations!AB86+Calculations!AB107+Calculations!AB129+Calculations!AB150+Calculations!AB172+Calculations!AB193+Calculations!AB215+Calculations!AB236+Calculations!AB258+Calculations!AB279 -> 34.27230664 | X16: Orkney Health Board
C17: Age group | D17: 16-69 | G17: Continuous inpatient stays prevented | H17: =Calculations!AE86+Calculations!AE107+Calculations!AE129+Calculations!AE150+Calculations!AE172+Calculations!AE193+Calculations!AE215+Calculations!AE236+Calculations!AE258+Calculations!AE279 -> 0.4184458856 | I17: =Calculations!AK86+Calculations!AK107+Calculations!AK129+Calculations!AK150+Calculations!AK172+Calculations!AK193+Calculations!AK215+Calculations!AK236+Calculations!AK258+Calculations!AK279 -> 1.757452489 | J17: =Calculations!AN86+Calculations!AN107+Calculations!AN129+Calculations!AN150+Calculations!AN172+Calculations!AN193+Calculations!AN215+Calculations!AN236+Calculations!AN258+Calculations!AN279 -> -0.2134932019 | X17: Shetland Health Board
X18: Tayside Health Board
C19: Estimated no. of people out of work | D19: =HLOOKUP('III Tool Overview'!$H$6,Baseline_Data_2012!$B$2:$AV$276,Baseline_Data_2012!AW269,FALSE) -> 3855.132208 | G19: Model Outcomes (Quintiles 1 & 2) | H19: 2 years | I19: 10 years | J19: 20 years | X19: Western Isles Health Board
C20: Of which, Q1 only: | D20: =HLOOKUP('III Tool Overview'!$H$6,Baseline_Data_2012!$B$2:$AV$276,Baseline_Data_2012!AW270,FALSE) -> 0 | G20: Years of life gained | H20: =Calculations!S86+Calculations!S107+Calculations!S129+Calculations!S150 -> 5.112638363 | I20: =Calculations!Y86+Calculations!Y107+Calculations!Y129+Calculations!Y150 -> 29.42100298 | J20: =Calculations!AB86+Calculations!AB107+Calculations!AB129+Calculations!AB150 -> 34.27230664 | X20: Aberdeen City Local Authority
C21: Of which, Q1 & Q2: | D21: =HLOOKUP('III Tool Overview'!$H$6,Baseline_Data_2012!$B$2:$AV$276,Baseline_Data_2012!AW271,FALSE) -> 1020.06619 | G21: Continuous inpatient stays prevented | H21: =Calculations!AE86+Calculations!AE107+Calculations!AE129+Calculations!AE150 -> 0.4184458856 | I21: =Calculations!AK86+Calculations!AK107+Calculations!AK129+Calculations!AK150 -> 1.757452489 | J21: =Calculations!AN86+Calculations!AN107+Calculations!AN129+Calculations!AN150 -> -0.2134932019 | X21: Aberdeenshire Local Authority
X22: Angus Local Authority
C23: Number of non-employed who want a job | D23: =HLOOKUP('III Tool Overview'!$H$6,Baseline_Data_2012!$B$2:$AV$276,Baseline_Data_2012!AW273,FALSE) -> 1310.744951 | G23: Model Outcomes (comparative health inequalities) | H23: 2 years | I23: 10 years | J23: 20 years | X23: Argyll & Bute Local Authority
C24: Of which, Q1 only: | D24: =HLOOKUP('III Tool Overview'!$H$6,Baseline_Data_2012!$B$2:$AV$276,Baseline_Data_2012!AW274,FALSE) -> 0 | G24: RII: Years of life lost (without intervention) | H24: =RII!H20 -> -0.9905377726 | I24: =RII!H39 -> -1.074277597 | J24: =RII!H58 -> -1.15108992 | X24: Clackmannanshire Local Authority
C25: Of which, Q1 & Q2: | D25: =HLOOKUP('III Tool Overview'!$H$6,Baseline_Data_2012!$B$2:$AV$276,Baseline_Data_2012!AW275,FALSE) -> 346.8225048 | G25: RII: Years of life lost (with intervention) | H25: =RII!S20 -> -1.001087757 | I25: =RII!S39 -> -1.080655944 | J25: =RII!S58 -> -1.154350609 | X25: Dumfries & Galloway Local Authority
G26: RII: years of life lost (difference) | H26: =H25-H24 -> -0.01054998429 | I26: =I25-I24 -> -0.006378347108 | J26: -0.003260689558 | X26: Dundee City Local Authority
C27: Annual continuous inpatient stays (2012) | D27: =HLOOKUP('III Tool Overview'!$H$6,Baseline_Data_2012!$B$2:$AW$2279,Baseline_Data_2012!AW277,FALSE) -> 3525 | G27: RII: continuous inpatient stays (without intervention) | H27: =RII!H77 -> -1.385842003 | I27: =RII!H96 -> -1.418154282 | J27: =RII!H115 -> -1.475613052 | X27: East Ayrshire Local Authority
C28: Of which, Q1 only: | D28: =HLOOKUP('III Tool Overview'!$H$6,Baseline_Data_2012!$B$2:$AW$2279,Baseline_Data_2012!AW278,FALSE) -> 0 | G28: RII: continuous inpatient stays (with intervention) | H28: =RII!S77 -> -1.386779021 | I28: =RII!S96 -> -1.418553598 | J28: =RII!S115 -> -1.475592202 | X28: East Dunbartonshire Local Authority
C29: Of which, Q1 & Q2: | D29: =HLOOKUP('III Tool Overview'!$H$6,Baseline_Data_2012!$B$2:$AW$2279,Baseline_Data_2012!AW279,FALSE) -> 673 | G29: RII: continuous inpatient stays (difference) | H29: =H28-H27 -> -0.0009370181023 | I29: =I28-I27 -> -0.0003993160513 | J29: 2.084971234e-05 | X29: East Lothian Local Authority
X30: East Renfrewshire Local Authority
C31: Direct financial costs of intervention | G31: Direct financial savings | H31: 2 years | I31: 10 years | J31: 20 years | X31: Edinburgh, City of Local Authority
C32: Cost per intervention (£, 2012 prices) | D32: 4475 | G32: Reduced continuous inpatient stays (£'000s) - all | H32: =(H17*2445)/1000 -> 1.02310019 | I32: =(I17*2445)/1000 -> 4.296971337 | J32: =(J17*2445)/1000 -> -0.5219908786 | X32: Eilean Siar Local Authority
G33: Reduced continuous inpatient stays (£'000s) - Q 1 & 2 | H33: =(H21*2445)/1000 -> 1.02310019 | I33: =(I21*2445)/1000 -> 4.296971337 | J33: =(J21*2445)/1000 -> -0.5219908786 | X33: Falkirk Local Authority
X34: Fife Local Authority
G35: How are costs and financial savings estimated? | X35: Glasgow City Local Authority
G36: The cost per job created is assumed to be the £4400 cited in Beatty and Fothergill (2011), adjusted to 2012 prices. | X36: Highland Local Authority
G37: Geue et al. (2012) estimated the cost of a continuous inpatient stay at £2113 in 2006/07 - this has been adjusted to 2012/13 prices. | X37: Inverclyde Local Authority
X38: Midlothian Local Authority
X39: Moray Local Authority
X40: North Ayrshire Local Authority
X41: North Lanarkshire Local Authority
X42: Orkney Islands Local Authority
X43: Perth & Kinross Local Authority
X44: Renfrewshire Local Authority
X45: Scottish Borders Local Authority
X46: Shetland Islands Local Authority
X47: South Ayrshire Local Authority
X48: South Lanarkshire Local Authority
X49: Stirling Local Authority
X50: West Dunbartonshire Local Authority
X51: West Lothian Local Authority
X57: Even distribution
X58: Targeting to Q1
X59: Targeting to Q1 & Q2
X60: Proportionate to need

Sheet RII
A1: This sheet calculates the Relative Index of Inequality for the III Tool Overview page.
A2: For more information on measuring inequalities in health, please see:
A3: http://www.scotpho.org.uk/downloads/scotphoreports/scotpho071009_measuringinequalities_rep.pdf
A4: THESE TABLES CALCULATE THE RII FOR YEARS OF LIFE LOST, BEFORE AND AFTER THE POLICY
A5: YEARS OF LIFE LOST: Both sexes combined - 2 YEARS, baseline | L5: YEARS OF LIFE LOST: Both sexes combined - 2 YEARS, policy
B6: Y | D6: a | F6: b | M6: Y | O6: a | Q6: b
A7: SIMD_Q | B7: years of life lost | C7: Pop | D7: proportion of total population | E7: Cumulative proportion | F7: Relative rank | G7: Y*√a | H7: √a | I7: b*√a | L7: SIMD_Q | M7: years of life lost | N7: Pop | O7: proportion of total population | P7: Cumulative proportion | Q7: Relative rank | R7: Y*√a | S7: √a | T7: b*√a
E8: 0 | P8: 0
A9: 1 | B9: =Calculations!I5 -> 0 | C9: =Calculations!F5 -> 0 | D9: =C9/$C$14 -> 0 | E9: =E8+D9 -> 0 | F9: =E8+(0.5*D9) -> 0 | G9: =SQRT(D9)*B9 -> 0 | H9: =SQRT(D9) -> 0 | I9: =F9*SQRT(D9) -> 0 | L9: 1 | M9: =Calculations!J5 -> 0 | N9: =C9 -> 0 | O9: =N9/$C$14 -> 0 | P9: =P8+O9 -> 0 | Q9: =P8+(0.5*O9) -> 0 | R9: =SQRT(O9)*M9 -> 0 | S9: =SQRT(O9) -> 0 | T9: =Q9*SQRT(O9) -> 0
A10: 2 | B10: =Calculations!I6 -> 18.96237468 | C10: =Calculations!F6 -> 3045.6 | D10: =C10/$C$14 -> 0.2119828498 | E10: =E9+D10 -> 0.2119828498 | F10: =E9+(0.5*D10) -> 0.1059914249 | G10: 8.730579809 | H10: 0.4604159531 | I10: =F10*SQRT(D10) -> 0.04880014292 | L10: 2 | M10: =Calculations!J6 -> 18.84255644 | N10: =C10 -> 3045.6 | O10: =N10/$C$14 -> 0.2119828498 | P10: =P9+O10 -> 0.2119828498 | Q10: =P9+(0.5*O10) -> 0.1059914249 | R10: 8.675413581 | S10: 0.4604159531 | T10: 0.04880014292
A11: 3 | B11: =Calculations!I7 -> 15.80823426 | C11: =Calculations!F7 -> 2995.2 | D11: =C11/$C$14 -> 0.2084748594 | E11: =E10+D11 -> 0.4204577092 | F11: =E10+(0.5*D11) -> 0.3162202795 | G11: 7.217889147 | H11: 0.4565904723 | I11: =F11*SQRT(D11) -> 0.1443831668 | L11: 3 | M11: =Calculations!J7 -> 15.80823426 | N11: 2995.2 | O11: =N11/$C$14 -> 0.2084748594 | P11: =P10+O11 -> 0.4204577092 | Q11: =P10+(0.5*O11) -> 0.3162202795 | R11: 7.217889147 | S11: 0.4565904723 | T11: 0.1443831668
A12: 4 | B12: =Calculations!I8 -> 31.02001112 | C12: =Calculations!F8 -> 7868.4 | D12: 0.5476641238 | E12: =E11+D12 -> 0.9681218331 | F12: =E11+(0.5*D12) -> 0.6942897711 | G12: 22.95615219 | H12: 0.7400433256 | I12: 0.5138045112 | L12: 4 | M12: =Calculations!J8 -> 31.02001112 | N12: 7868.4 | O12: =N12/$C$14 -> 0.5476641238 | P12: =P11+O12 -> 0.9681218331 | Q12: =P11+(0.5*O12) -> 0.6942897711 | R12: 22.95615219 | S12: 0.7400433256 | T12: 0.5138045112
A13: 5 | B13: =Calculations!I9 -> 1.301937843 | C13: =Calculations!F9 -> 458 | D13: 0.03187816694 | E13: =E12+D13 -> 1 | F13: =E12+(0.5*D13) -> 0.9840609165 | G13: =SQRT(D13)*B13 -> 0.2324539449 | H13: 0.1785445797 | I13: 0.1756987427 | L13: 5 | M13: =Calculations!J9 -> 1.301937843 | N13: 458 | O13: =N13/$C$14 -> 0.03187816694 | P13: =P12+O13 -> 1 | Q13: =P12+(0.5*O13) -> 0.9840609165 | R13: 0.2324539449 | S13: 0.1785445797 | T13: 0.1756987427
A14: Total | B14: =AVERAGE(B10:B13) -> 16.77313947 | C14: =SUM(C9:C13) -> 14367.2 | G14: 0 | H14: 0 | I14: 0 | L14: Total | M14: =AVERAGE(M10:M13) -> 16.74318491 | N14: =SUM(N9:N13) -> 14367.2 | R14: 0 | S14: 0 | T14: 0
A16: Regression = | B16: =LINEST(G10:G13,H10:I13,0) -> 16.61442821 | L16: Regression = | M16: =LINEST(R10:R13,S10:T13,0) -> 16.76139743
A18: Slope Index Inequality = | B18: =B16 -> 16.61442821 | C18: Years of life lost difference between the top and bottom positions | L18: Slope Index Inequality = | M18: =M16 -> 16.76139743 | N18: Years of life lost difference between the top and bottom positions
A19: Relative Index Inequality = | B19: =-B18/B14 -> -0.9905377726 | L19: Relative Index Inequality = | M19: =-M18/M14 -> -1.001087757
A20: According to the regresion equation the YOLL among those at the bottom is | H20: =B19 -> -0.9905377726 | I20: times higher than the average | L20: According to the regresion equation the YOLL among those at the bottom is | S20: =M19 -> -1.001087757 | T20: times higher than the average
A24: YEARS OF LIFE LOST: Both sexes combined - 10 YEARS, baseline | L24: YEARS OF LIFE LOST: Both sexes combined - 10 YEARS, policy
B25: Y | D25: a | F25: b | M25: Y | O25: a | Q25: b
A26: SIMD_Q | B26: years of life lost | C26: Pop | D26: proportion of total population | E26: Cumulative proportion | F26: Relative rank | G26: Y*√a | H26: √a | I26: b*√a | L26: SIMD_Q | M26: years of life lost | N26: Pop | O26: proportion of total population | P26: Cumulative proportion | Q26: Relative rank | R26: Y*√a | S26: √a | T26: b*√a
E27: 0 | P27: 0
A28: 1 | B28: =Calculations!W5 -> 0 | C28: =C9 -> 0 | D28: =C28/$C$14 -> 0 | E28: =E27+D28 -> 0 | F28: =E27+(0.5*D28) -> 0 | G28: =SQRT(D28)*B28 -> 0 | H28: =SQRT(D28) -> 0 | I28: =F28*SQRT(D28) -> 0 | L28: 1 | M28: =Calculations!X5 -> 0 | N28: =C28 -> 0 | O28: =N28/$C$14 -> 0 | P28: =P27+O28 -> 0 | Q28: =P27+(0.5*O28) -> 0 | R28: =SQRT(O28)*M28 -> 0 | S28: =SQRT(O28) -> 0 | T28: =Q28*SQRT(O28) -> 0
A29: 2 | B29: =Calculations!W6 -> 7652.409861 | C29: =C10 -> 3045.6 | D29: =C29/$C$14 -> 0.2119828498 | E29: =E28+D29 -> 0.2119828498 | F29: =E28+(0.5*D29) -> 0.1059914249 | G29: 3523.291579 | H29: 0.4604159531 | I29: 0.04880014292 | L29: 2 | M29: =Calculations!X6 -> 7622.988858 | N29: =C29 -> 3045.6 | O29: =N29/$C$14 -> 0.2119828498 | P29: =P28+O29 -> 0.2119828498 | Q29: =P28+(0.5*O29) -> 0.1059914249 | R29: 3509.74568 | S29: 0.4604159531 | T29: 0.04880014292
A30: 3 | B30: =Calculations!W7 -> 6422.107868 | C30: 2995.2 | D30: =C30/$C$14 -> 0.2084748594 | E30: =E29+D30 -> 0.4204577092 | F30: =E29+(0.5*D30) -> 0.3162202795 | G30: 2932.273265 | H30: 0.4565904723 | I30: 0.1443831668 | L30: 3 | M30: =Calculations!X7 -> 6422.107868 | N30: 2995.2 | O30: =N30/$C$14 -> 0.2084748594 | P30: =P29+O30 -> 0.4204577092 | Q30: =P29+(0.5*O30) -> 0.3162202795 | R30: 2932.273265 | S30: 0.4565904723 | T30: 0.1443831668
A31: 4 | B31: =Calculations!W8 -> 12984.74542 | C31: 7868.4 | D31: =C31/$C$14 -> 0.5476641238 | E31: =E30+D31 -> 0.9681218331 | F31: =E30+(0.5*D31) -> 0.6942897711 | G31: 9609.274186 | H31: 0.7400433256 | I31: 0.5138045112 | L31: 4 | M31: =Calculations!X8 -> 12984.74542 | N31: 7868.4 | O31: =N31/$C$14 -> 0.5476641238 | P31: =P30+O31 -> 0.9681218331 | Q31: =P30+(0.5*O31) -> 0.6942897711 | R31: 9609.274186 | S31: 0.7400433256 | T31: 0.5138045112
A32: 5 | B32: =Calculations!W9 -> 556.8806508 | C32: 458 | D32: =C32/$C$14 -> 0.03187816694 | E32: =E31+D32 -> 1 | F32: =E31+(0.5*D32) -> 0.9840609165 | G32: 99.42802173 | H32: 0.1785445797 | I32: 0.1756987427 | L32: 5 | M32: =Calculations!X9 -> 556.8806508 | N32: 458 | O32: =N32/$C$14 -> 0.03187816694 | P32: =P31+O32 -> 1 | Q32: =P31+(0.5*O32) -> 0.9840609165 | R32: 99.42802173 | S32: 0.1785445797 | T32: 0.1756987427
A33: Total | B33: =AVERAGE(B29:B32) -> 6904.035951 | C33: =SUM(C28:C32) -> 14367.2 | G33: 0 | H33: 0 | I33: 0 | L33: Total | M33: =AVERAGE(M29:M32) -> 6896.6807 | N33: =SUM(N28:N32) -> 14367.2 | R33: 0 | S33: 0 | T33: 0
A35: Regression = | B35: =LINEST(G29:G32,H29:I32,0) -> 7416.85115 | L35: Regression = | M35: =LINEST(R29:R32,S29:T32,0) -> 7452.938992
A37: Slope Index Inequality = | B37: =B35 -> 7416.85115 | C37: Years of life lost difference between the top and bottom positions | L37: Slope Index Inequality = | M37: =M35 -> 7452.938992 | N37: Years of life lost difference between the top and bottom positions
A38: Relative Index Inequality = | B38: =-B37/B33 -> -1.074277597 | L38: Relative Index Inequality = | M38: =-M37/M33 -> -1.080655944
A39: According to the regresion equation the YOLL among those at the bottom is | H39: =B38 -> -1.074277597 | I39: times higher than the average | L39: According to the regresion equation the YOLL among those at the bottom is | S39: =M38 -> -1.080655944 | T39: times higher than the average
A43: YEARS OF LIFE LOST: Both sexes combined - 20 YEARS, baseline | L43: YEARS OF LIFE LOST: Both sexes combined - 20 YEARS, policy
B44: Y | D44: a | F44: b | M44: Y | O44: a | Q44: b
A45: SIMD_Q | B45: years of life lost | C45: Pop | D45: proportion of total population | E45: Cumulative proportion | F45: Relative rank | G45: Y*√a | H45: √a | I45: b*√a | L45: SIMD_Q | M45: years of life lost | N45: Pop | O45: proportion of total population | P45: Cumulative proportion | Q45: Relative rank | R45: Y*√a | S45: √a | T45: b*√a
E46: 0 | P46: 0
A47: 1 | B47: =Calculations!Z5 -> 0 | C47: =C28 -> 0 | D47: =C47/$C$14 -> 0 | E47: =E46+D47 -> 0 | F47: =E46+(0.5*D47) -> 0 | G47: =SQRT(D47)*B47 -> 0 | H47: =SQRT(D47) -> 0 | I47: =F47*SQRT(D47) -> 0 | L47: 1 | M47: =Calculations!AA5 -> 0 | N47: =C47 -> 0 | O47: =N47/$C$14 -> 0 | P47: =P46+O47 -> 0 | Q47: =P46+(0.5*O47) -> 0 | R47: =SQRT(O47)*M47 -> 0 | S47: =SQRT(O47) -> 0 | T47: =Q47*SQRT(O47) -> 0
A48: 2 | B48: =Calculations!Z6 -> 17276.05729 | C48: =C29 -> 3045.6 | D48: =C48/$C$14 -> 0.2119828498 | E48: =E47+D48 -> 0.2119828498 | F48: =E47+(0.5*D48) -> 0.1059914249 | G48: 7954.17238 | H48: 0.4604159531 | I48: 0.04880014292 | L48: 2 | M48: =Calculations!AA6 -> 17241.78498 | N48: =C48 -> 3045.6 | O48: =N48/$C$14 -> 0.2119828498 | P48: =P47+O48 -> 0.2119828498 | Q48: =P47+(0.5*O48) -> 0.1059914249 | R48: 7938.392863 | S48: 0.4604159531 | T48: 0.04880014292
A49: 3 | B49: =Calculations!Z7 -> 14703.96648 | C49: 2995.2 | D49: =C49/$C$14 -> 0.2084748594 | E49: =E48+D49 -> 0.4204577092 | F49: =E48+(0.5*D49) -> 0.3162202795 | G49: 6713.691 | H49: 0.4565904723 | I49: 0.1443831668 | L49: 3 | M49: =Calculations!AA7 -> 14703.96648 | N49: 2995.2 | O49: =N49/$C$14 -> 0.2084748594 | P49: =P48+O49 -> 0.4204577092 | Q49: =P48+(0.5*O49) -> 0.3162202795 | R49: 6713.691 | S49: 0.4565904723 | T49: 0.1443831668
A50: 4 | B50: =Calculations!Z8 -> 30393.91574 | C50: 7868.4 | D50: =C50/$C$14 -> 0.5476641238 | E50: =E49+D50 -> 0.9681218331 | F50: =E49+(0.5*D50) -> 0.6942897711 | G50: 22492.81448 | H50: 0.7400433256 | I50: 0.5138045112 | L50: 4 | M50: =Calculations!AA8 -> 30393.91574 | N50: 7868.4 | O50: =N50/$C$14 -> 0.5476641238 | P50: =P49+O50 -> 0.9681218331 | Q50: =P49+(0.5*O50) -> 0.6942897711 | R50: 22492.81448 | S50: 0.7400433256 | T50: 0.5138045112
A51: 5 | B51: =Calculations!Z9 -> 1329.177967 | C51: 458 | D51: =C51/$C$14 -> 0.03187816694 | E51: =E50+D51 -> 1 | F51: =E50+(0.5*D51) -> 0.9840609165 | G51: 237.3175214 | H51: 0.1785445797 | I51: 0.1756987427 | L51: 5 | M51: =Calculations!AA9 -> 1329.177967 | N51: 458 | O51: =N51/$C$14 -> 0.03187816694 | P51: =P50+O51 -> 1 | Q51: =P50+(0.5*O51) -> 0.9840609165 | R51: 237.3175214 | S51: 0.1785445797 | T51: 0.1756987427
A52: Total | B52: =AVERAGE(B48:B51) -> 15925.77937 | C52: =SUM(C47:C51) -> 14367.2 | G52: 0 | H52: 0 | I52: 0 | L52: Total | M52: =AVERAGE(M48:M51) -> 15917.21129 | N52: =SUM(N47:N51) -> 14367.2 | R52: 0 | S52: 0 | T52: 0
A54: Regression = | B54: =LINEST(G48:G51,H48:I51,0) -> 18332.00409 | L54: Regression = | M54: =LINEST(R48:R51,S48:T51,0) -> 18374.04255
A56: Slope Index Inequality = | B56: =B54 -> 18332.00409 | C56: Years of life lost difference between the top and bottom positions | L56: Slope Index Inequality = | M56: =M54 -> 18374.04255 | N56: Years of life lost difference between the top and bottom positions
A57: Relative Index Inequality = | B57: =-B56/B52 -> -1.15108992 | L57: Relative Index Inequality = | M57: =-M56/M52 -> -1.154350609
A58: According to the regresion equation the YOLL among those at the bottom is | H58: =B57 -> -1.15108992 | I58: times higher than the average | L58: According to the regresion equation the YOLL among those at the bottom is | S58: =M57 -> -1.154350609 | T58: times higher than the average
A62: Hospital admissions: Both sexes combined - 2 YEARS, baseline | L62: Hospital admissions: Both sexes combined - 2 YEARS, policy
B63: Y | D63: a | F63: b | M63: Y | O63: a | Q63: b
A64: SIMD_Q | B64: hospital admissions | C64: Pop | D64: proportion of total population | E64: Cumulative proportion | F64: Relative rank | G64: Y*√a | H64: √a | I64: b*√a | L64: SIMD_Q | M64: hospital admissions | N64: Pop | O64: proportion of total population | P64: Cumulative proportion | Q64: Relative rank | R64: Y*√a | S64: √a | T64: b*√a
E65: 0 | P65: 0
A66: 1 | B66: =Calculations!AC5 -> 0 | C66: =C9 -> 0 | D66: =C66/$C$14 -> 0 | E66: =E65+D66 -> 0 | F66: =E65+(0.5*D66) -> 0 | G66: =SQRT(D66)*B66 -> 0 | H66: =SQRT(D66) -> 0 | I66: =F66*SQRT(D66) -> 0 | L66: 1 | M66: =Calculations!AD5 -> 0 | N66: =C66 -> 0 | O66: =N66/$C$14 -> 0 | P66: =P65+O66 -> 0 | Q66: =P65+(0.5*O66) -> 0 | R66: =SQRT(O66)*M66 -> 0 | S66: =SQRT(O66) -> 0 | T66: =Q66*SQRT(O66) -> 0
A67: 2 | B67: =Calculations!AC6 -> 717.447377 | C67: =C10 -> 3045.6 | D67: =C67/$C$14 -> 0.2119828498 | E67: =E66+D67 -> 0.2119828498 | F67: =E66+(0.5*D67) -> 0.1059914249 | G67: 330.3242178 | H67: 0.4604159531 | I67: 0.04880014292 | L67: 2 | M67: =Calculations!AD6 -> 717.0289311 | N67: =C67 -> 3045.6 | O67: =N67/$C$14 -> 0.2119828498 | P67: =P66+O67 -> 0.2119828498 | Q67: =P66+(0.5*O67) -> 0.1059914249 | R67: 330.1315587 | S67: 0.4604159531 | T67: 0.04880014292
A68: 3 | B68: =Calculations!AC7 -> 621.1514485 | C68: 2995.2 | D68: =C68/$C$14 -> 0.2084748594 | E68: =E67+D68 -> 0.4204577092 | F68: =E67+(0.5*D68) -> 0.3162202795 | G68: 283.6118332 | H68: 0.4565904723 | I68: 0.1443831668 | L68: 3 | M68: =Calculations!AD7 -> 621.1514485 | N68: 2995.2 | O68: =N68/$C$14 -> 0.2084748594 | P68: =P67+O68 -> 0.4204577092 | Q68: =P67+(0.5*O68) -> 0.3162202795 | R68: 283.6118332 | S68: 0.4565904723 | T68: 0.1443831668
A69: 4 | B69: =Calculations!AC8 -> 1399.423257 | C69: 7868.4 | D69: =C69/$C$14 -> 0.5476641238 | E69: =E68+D69 -> 0.9681218331 | F69: =E68+(0.5*D69) -> 0.6942897711 | G69: 1035.633841 | H69: 0.7400433256 | I69: 0.5138045112 | L69: 4 | M69: =Calculations!AD8 -> 1399.423257 | N69: 7868.4 | O69: =N69/$C$14 -> 0.5476641238 | P69: =P68+O69 -> 0.9681218331 | Q69: =P68+(0.5*O69) -> 0.6942897711 | R69: 1035.633841 | S69: 0.7400433256 | T69: 0.5138045112
A70: 5 | B70: =Calculations!AC9 -> 72.33680041 | C70: 458 | D70: =C70/$C$14 -> 0.03187816694 | E70: =E69+D70 -> 1 | F70: =E69+(0.5*D70) -> 0.9840609165 | G70: 12.91534362 | H70: 0.1785445797 | I70: 0.1756987427 | L70: 5 | M70: =Calculations!AD9 -> 72.33680041 | N70: 458 | O70: =N70/$C$14 -> 0.03187816694 | P70: =P69+O70 -> 1 | Q70: =P69+(0.5*O70) -> 0.9840609165 | R70: 12.91534362 | S70: 0.1785445797 | T70: 0.1756987427
A71: Total | B71: =AVERAGE(B67:B70) -> 702.5897207 | C71: =SUM(C66:C70) -> 14367.2 | G71: 0 | H71: 0 | I71: 0 | L71: Total | M71: =AVERAGE(M67:M70) -> 702.4851092 | N71: =SUM(N66:N70) -> 14367.2 | R71: 0 | S71: 0 | T71: 0
A73: Regression = | B73: =LINEST(G67:G70,H67:I70,0) -> 973.6783458 | L73: Regression = | M73: =LINEST(R67:R70,S67:T70,0) -> 974.1916121
A75: Slope Index Inequality = | B75: =B73 -> 973.6783458 | C75: Years of life lost difference between the top and bottom positions | L75: Slope Index Inequality = | M75: =M73 -> 974.1916121 | N75: Years of life lost difference between the top and bottom positions
A76: Relative Index Inequality = | B76: =-B75/B71 -> -1.385842003 | L76: Relative Index Inequality = | M76: =-M75/M71 -> -1.386779021
A77: According to the regresion equation the YOLL among those at the bottom is | H77: =B76 -> -1.385842003 | I77: times higher than the average | L77: According to the regresion equation the YOLL among those at the bottom is | S77: =M76 -> -1.386779021 | T77: times higher than the average
A81: Hospital admissions: Both sexes combined - 10 YEARS, baseline | L81: Hospital admissions: Both sexes combined - 10 YEARS, policy
B82: Y | D82: a | F82: b | M82: Y | O82: a | Q82: b
A83: SIMD_Q | B83: hospital admissions | C83: Pop | D83: proportion of total population | E83: Cumulative proportion | F83: Relative rank | G83: Y*√a | H83: √a | I83: b*√a | L83: SIMD_Q | M83: hospital admissions | N83: Pop | O83: proportion of total population | P83: Cumulative proportion | Q83: Relative rank | R83: Y*√a | S83: √a | T83: b*√a
E84: 0 | P84: 0
A85: 1 | B85: =Calculations!AI5 -> 0 | C85: =C66 -> 0 | D85: =C85/$C$14 -> 0 | E85: =E84+D85 -> 0 | F85: =E84+(0.5*D85) -> 0 | G85: =SQRT(D85)*B85 -> 0 | H85: =SQRT(D85) -> 0 | I85: =F85*SQRT(D85) -> 0 | L85: 1 | M85: =Calculations!AJ5 -> 0 | N85: =C85 -> 0 | O85: =N85/$C$14 -> 0 | P85: =P84+O85 -> 0 | Q85: =P84+(0.5*O85) -> 0 | R85: =SQRT(O85)*M85 -> 0 | S85: =SQRT(O85) -> 0 | T85: =Q85*SQRT(O85) -> 0
A86: 2 | B86: =Calculations!AI6 -> 7034.595867 | C86: =C67 -> 3045.6 | D86: =C86/$C$14 -> 0.2119828498 | E86: =E85+D86 -> 0.2119828498 | F86: =E85+(0.5*D86) -> 0.1059914249 | G86: 3238.84016 | H86: 0.4604159531 | I86: 0.04880014292 | L86: 2 | M86: =Calculations!AJ6 -> 7032.838414 | N86: =C86 -> 3045.6 | O86: =N86/$C$14 -> 0.2119828498 | P86: =P85+O86 -> 0.2119828498 | Q86: =P85+(0.5*O86) -> 0.1059914249 | R86: 3238.031001 | S86: 0.4604159531 | T86: 0.04880014292
A87: 3 | B87: =Calculations!AI7 -> 6135.116059 | C87: 2995.2 | D87: =C87/$C$14 -> 0.2084748594 | E87: =E86+D87 -> 0.4204577092 | F87: =E86+(0.5*D87) -> 0.3162202795 | G87: 2801.235539 | H87: 0.4565904723 | I87: 0.1443831668 | L87: 3 | M87: =Calculations!AJ7 -> 6135.116059 | N87: 2995.2 | O87: =N87/$C$14 -> 0.2084748594 | P87: =P86+O87 -> 0.4204577092 | Q87: =P86+(0.5*O87) -> 0.3162202795 | R87: 2801.235539 | S87: 0.4565904723 | T87: 0.1443831668
A88: 4 | B88: =Calculations!AI8 -> 13941.36311 | C88: 7868.4 | D88: =C88/$C$14 -> 0.5476641238 | E88: =E87+D88 -> 0.9681218331 | F88: =E87+(0.5*D88) -> 0.6942897711 | G88: 10317.21272 | H88: 0.7400433256 | I88: 0.5138045112 | L88: 4 | M88: =Calculations!AJ8 -> 13941.36311 | N88: 7868.4 | O88: =N88/$C$14 -> 0.5476641238 | P88: =P87+O88 -> 0.9681218331 | Q88: =P87+(0.5*O88) -> 0.6942897711 | R88: 10317.21272 | S88: 0.7400433256 | T88: 0.5138045112
A89: 5 | B89: =Calculations!AI9 -> 726.060436 | C89: 458 | D89: =C89/$C$14 -> 0.03187816694 | E89: =E88+D89 -> 1 | F89: =E88+(0.5*D89) -> 0.9840609165 | G89: 129.6341554 | H89: 0.1785445797 | I89: 0.1756987427 | L89: 5 | M89: =Calculations!AJ9 -> 726.060436 | N89: 458 | O89: =N89/$C$14 -> 0.03187816694 | P89: =P88+O89 -> 1 | Q89: =P88+(0.5*O89) -> 0.9840609165 | R89: 129.6341554 | S89: 0.1785445797 | T89: 0.1756987427
A90: Total | B90: =AVERAGE(B86:B89) -> 6959.283867 | C90: =SUM(C85:C89) -> 14367.2 | G90: 0 | H90: 0 | I90: 0 | L90: Total | M90: =AVERAGE(M86:M89) -> 6958.844504 | N90: =SUM(N85:N89) -> 14367.2 | R90: 0 | S90: 0 | T90: 0
A92: Regression = | B92: =LINEST(G86:G89,H86:I89,0) -> 9869.338216 | L92: Regression = | M92: =LINEST(R86:R89,S86:T89,0) -> 9871.49391
A94: Slope Index Inequality = | B94: =B92 -> 9869.338216 | C94: Years of life lost difference between the top and bottom positions | L94: Slope Index Inequality = | M94: =M92 -> 9871.49391 | N94: Years of life lost difference between the top and bottom positions
A95: Relative Index Inequality = | B95: =-B94/B90 -> -1.418154282 | L95: Relative Index Inequality = | M95: =-M94/M90 -> -1.418553598
A96: According to the regresion equation the YOLL among those at the bottom is | H96: =B95 -> -1.418154282 | I96: times higher than the average | L96: According to the regresion equation the YOLL among those at the bottom is | S96: =M95 -> -1.418553598 | T96: times higher than the average
A100: Hospital admissions: Both sexes combined - 20 YEARS, baseline | L100: Hospital admissions: Both sexes combined - 20 YEARS, policy
B101: Y | D101: a | F101: b | M101: Y | O101: a | Q101: b
A102: SIMD_Q | B102: hospital admissions | C102: Pop | D102: proportion of total population | E102: Cumulative proportion | F102: Relative rank | G102: Y*√a | H102: √a | I102: b*√a | L102: SIMD_Q | M102: hospital admissions | N102: Pop | O102: proportion of total population | P102: Cumulative proportion | Q102: Relative rank | R102: Y*√a | S102: √a | T102: b*√a
E103: 0 | P103: 0
A104: 1 | B104: =Calculations!AL5 -> 0 | C104: =C85 -> 0 | D104: =C104/$C$14 -> 0 | E104: =E103+D104 -> 0 | F104: =E103+(0.5*D104) -> 0 | G104: =SQRT(D104)*B104 -> 0 | H104: =SQRT(D104) -> 0 | I104: =F104*SQRT(D104) -> 0 | L104: 1 | M104: =Calculations!AM5 -> 0 | N104: =C104 -> 0 | O104: =N104/$C$14 -> 0 | P104: =P103+O104 -> 0 | Q104: =P103+(0.5*O104) -> 0 | R104: =SQRT(O104)*M104 -> 0 | S104: =SQRT(O104) -> 0 | T104: =Q104*SQRT(O104) -> 0
A105: 2 | B105: =Calculations!AL6 -> 16218.6696 | C105: =C86 -> 3045.6 | D105: =C105/$C$14 -> 0.2119828498 | E105: =E104+D105 -> 0.2119828498 | F105: =E104+(0.5*D105) -> 0.1059914249 | G105: 7467.33422 | H105: 0.4604159531 | I105: 0.04880014292 | L105: 2 | M105: =Calculations!AM6 -> 16218.88309 | N105: =C105 -> 3045.6 | O105: =N105/$C$14 -> 0.2119828498 | P105: =P104+O105 -> 0.2119828498 | Q105: =P104+(0.5*O105) -> 0.1059914249 | R105: 7467.432516 | S105: 0.4604159531 | T105: 0.04880014292
A106: 3 | B106: =Calculations!AL7 -> 14322.32971 | C106: 2995.2 | D106: =C106/$C$14 -> 0.2084748594 | E106: =E105+D106 -> 0.4204577092 | F106: =E105+(0.5*D106) -> 0.3162202795 | G106: 6539.439288 | H106: 0.4565904723 | I106: 0.1443831668 | L106: 3 | M106: =Calculations!AM7 -> 14322.32971 | N106: 2995.2 | O106: =N106/$C$14 -> 0.2084748594 | P106: =P105+O106 -> 0.4204577092 | Q106: =P105+(0.5*O106) -> 0.3162202795 | R106: 6539.439288 | S106: 0.4565904723 | T106: 0.1443831668
A107: 4 | B107: =Calculations!AL8 -> 33062.02157 | C107: 7868.4 | D107: =C107/$C$14 -> 0.5476641238 | E107: =E106+D107 -> 0.9681218331 | F107: =E106+(0.5*D107) -> 0.6942897711 | G107: 24467.3284 | H107: 0.7400433256 | I107: 0.5138045112 | L107: 4 | M107: =Calculations!AM8 -> 33062.02157 | N107: 7868.4 | O107: =N107/$C$14 -> 0.5476641238 | P107: =P106+O107 -> 0.9681218331 | Q107: =P106+(0.5*O107) -> 0.6942897711 | R107: 24467.3284 | S107: 0.7400433256 | T107: 0.5138045112
A108: 5 | B108: =Calculations!AL9 -> 1746.231402 | C108: 458 | D108: =C108/$C$14 -> 0.03187816694 | E108: =E107+D108 -> 1 | F108: =E107+(0.5*D108) -> 0.9840609165 | G108: 311.7801516 | H108: 0.1785445797 | I108: 0.1756987427 | L108: 5 | M108: =Calculations!AM9 -> 1746.231402 | N108: 458 | O108: =N108/$C$14 -> 0.03187816694 | P108: =P107+O108 -> 1 | Q108: =P107+(0.5*O108) -> 0.9840609165 | R108: 311.7801516 | S108: 0.1785445797 | T108: 0.1756987427
A109: Total | B109: =AVERAGE(B105:B108) -> 16337.31307 | C109: =SUM(C104:C108) -> 14367.2 | G109: 0 | H109: 0 | I109: 0 | L109: Total | M109: =AVERAGE(M105:M108) -> 16337.36644 | N109: =SUM(N104:N108) -> 14367.2 | R109: 0 | S109: 0 | T109: 0
A111: Regression = | B111: =LINEST(G105:G108,H105:I108,0) -> 24107.5524 | L111: Regression = | M111: =LINEST(R105:R108,S105:T108,0) -> 24107.29053
A113: Slope Index Inequality = | B113: =B111 -> 24107.5524 | C113: Years of life lost difference between the top and bottom positions | L113: Slope Index Inequality = | M113: =M111 -> 24107.29053 | N113: Years of life lost difference between the top and bottom positions
A114: Relative Index Inequality = | B114: =-B113/B109 -> -1.475613052 | L114: Relative Index Inequality = | M114: =-M113/M109 -> -1.475592202
A115: According to the regresion equation the YOLL among those at the bottom is | H115: =B114 -> -1.475613052 | I115: times higher than the average | L115: According to the regresion equation the YOLL among those at the bottom is | S115: =M114 -> -1.475592202 | T115: times higher than the average

Sheet Notes
A1: Worksheet name | B1: What it does
A2: III Tool Overview | B2: • Gives the nature of the intervention (e.g. smoking cessation, changes in income distribution) and relevant baseline information (size of the target population, maximum number who might feasibly gain, hospitalisation data). Where appropriate it also provides cost per intervention and historic statistics on service provision. • Allows users to modify inputs (e.g. the geography being targeted, and where appropriate, the number of interventions and targeting strategy). • Reports on key outcomes: years of life gained and hospitalisations prevented due to the intervention; and changes in the relative index of inequality (for years of life lost and hospitalisations).
A3: Calculations | B3: Based on user inputs, the prevalence and population data in this workbook, and macros that run behind the scenes (incorporating assumptions about mortality, hospitalisations and the impact of interventions), this sheet calculates years of life lost and hospitalisations before and after the intervention, and the difference between the two scenarios.
A4: Targeting | B4: Provides the background information for allocating the total number of interventions by age group, sex and deprivation quintile. The current options are for even distribution, targeting to Q1 only, targeting to Q1 & Q2 only, and targeting according to the distribution of ‘need’ (e.g. the population distribution of smokers).
A5: Baseline_Data_2012 | B5: Provides baseline data on the size of the target population, maximum number who might feasibly gain, hospitalisation data and historic statistics on service provision where available. The size of the target population is calculated for Scotland by applying age/sex/SIMD decile prevalence rates (e.g. for smoking) to the age/sex/SIMD distribution of the total population. Local estimates are derived by weighting national age/sex/SIMD decile prevalence rates by the difference between local and national prevalence rates (separately for men and women). The number who might feasibly gain (as a proportion of the target population) varies between information – see commentary for more details.
A6: Prevalence | B6: Provides national and local prevalence rates of the at risk population by age/sex/SIMD decile, used in the calculations and baseline data. National estimates come from relevant national surveys (see commentary). Local estimates are derived by weighting national age/sex/SIMD decile prevalence rates by the difference between local and national prevalence rates (separately for men and women). Please note: For nine local authority areas the sample size was not considered large enough to produce robust results for hazardous/harmful drinking and obesity. As a second-best solution, and for completeness, we used prevalence rates for ‘aggregate geographies’ for these local authorities. These aggregate areas combined results from the relevant local authority with a second local authority defined as most similar to it according to the ONS 2001 Census classification. The aggregate geographies were as follows: • Argyll & Bute Local Authority: Argyll & Bute & Perth & Kinross • Clackmannanshire Local Authority: Clackmannanshire & Falkirk • East Dunbartonshire Local Authority: East Renfrewshire & East Dunbartonshire • East Lothian Local Authority: East Lothian & Midlothian • East Renfrewshire Local Authority: East Renfrewshire & East Dunbartonshire • Inverclyde Local Authority: West Dunbartonshire & Inverclyde • Midlothian Local Authority: East Lothian & Midlothian • Stirling Local Authority: Stirling & Perth & Kinross • West Dunbartonshire Local Authority: West Dunbartonshire & Inverclyde Users should note that the prevalence estimates shown are indicative only and included to inform modelling at a local level. As such, they should not be considered as representative of the ‘true’ prevalence of obesity and/or hazardous or harmful drinking for individual local authorities within each aggregate geography. Users should note that the prevalence estimates shown are indicative only and included to inform modelling at a local level. As such, they should not be considered as representative of the ‘true’ prevalence of obesity and/or hazardous or harmful drinking for individual local authorities within each aggregate geography.
A7: LookUpData_Pop | B7: Provides aggregate five-year population data by age/sex/SIMD quintile for 2007-2011, used to calculate the before and after impact of interventions. Five years of data was used to improve robustness of results and avoid disclosure issues.
A8: RII | B8: Calculates the Relative Index of Inequality for the III Tool Overview page. For more information on measuring inequalities in health, please see: http://www.scotpho.org.uk/downloads/scotphoreports/scotpho071009_measuringinequalities_rep.pdf

Sheet Calculations
A1: USING Scotland AS EXAMPLE. NEED TO ADD LOOKUP FOR MORTALITY WHEN UPDATE | B1: YEAR START | C1: 2012 | D1: AGE GROUP | E1: 15-69 | I1: Cumulative incidence: years 2, 5, 10 and 20 | Q1: Years of life lost: years 2,5,10 and 20 | AC1: Hospitalisations: years 2,5,10 and 20
A2: Population Group | B2: mid-age | C2: Sex | D2: SIMD | E2: Prevalence exposure (to non-employment) | F2: Population aged 16-69 2007-11 | G2: Number treated at base | H2: Additional number treated under policy | I2: Baseline-2 | J2: Policy-2 | K2: Baseline-5 | L2: Policy-5 | M2: Baseline-10 | N2: Policy-10 | O2: Baseline-20 | P2: Policy-20 | Q2: Baseline-2 | R2: Policy-2 | S2: Diff YLL-2 | T2: Baseline-5 | U2: Policy-5 | V2: Diff YLL-5 | W2: Baseline-10 | X2: Policy-10 | Y2: Diff YLL-10 | Z2: Baseline-20 | AA2: Policy-20 | AB2: Diff YLL-20 | AC2: Baseline-2 | AD2: Policy-2 | AE2: Diff hosp-2 years | AF2: Baseline-5 | AG2: Policy-5 | AH2: Diff hosp - 5 years | AI2: Baseline-10 | AJ2: Policy-10 | AK2: Diff hosp - 10 years | AL2: Baseline-20 | AM2: Policy-20 | AN2: Diff hosp - 20 years
A3: All, by SIMD
A4: Total | F4: =SUM(F5:F9) -> 14367.2 | G4: =SUM(G5:G9) -> 0 | H4: =SUM(H5:H9) -> 144 | I4: =SUM(I5:I9) -> 67.0925579 | J4: =SUM(J5:J9) -> 66.97273966 | K4: =SUM(K5:K9) -> 290.0711855 | L4: =SUM(L5:L9) -> 289.6511261 | M4: =SUM(M5:M9) -> 742.4459133 | N4: =SUM(N5:N9) -> 741.7142067 | O4: =SUM(O5:O9) -> 2004.115794 | P4: =SUM(P5:P9) -> 2003.288012 | Q4: =SUM(Q5:Q9) -> 2767.185144 | R4: =SUM(R5:R9) -> 2762.072506 | S4: =SUM(S5:S9) -> 5.112638363 | T4: =SUM(T5:T9) -> 11536.15354 | U4: =SUM(U5:U9) -> 11518.71182 | V4: =SUM(V5:V9) -> 17.44171452 | W4: =SUM(W5:W9) -> 27616.1438 | X4: =SUM(X5:X9) -> 27586.7228 | Y4: =SUM(Y5:Y9) -> 29.42100298 | Z4: =SUM(Z5:Z9) -> 63703.11747 | AA4: =SUM(AA5:AA9) -> 63668.84516 | AB4: =SUM(AB5:AB9) -> 34.27230664 | AC4: =SUM(AC5:AC9) -> 2810.358883 | AD4: =SUM(AD5:AD9) -> 2809.940437 | AE4: =SUM(AE5:AE9) -> 0.4184458856 | AF4: =SUM(AF5:AF9) -> 11661.92744 | AG4: =SUM(AG5:AG9) -> 11660.60769 | AH4: =SUM(AH5:AH9) -> 1.31974891 | AI4: =SUM(AI5:AI9) -> 27837.13547 | AJ4: =SUM(AJ5:AJ9) -> 27835.37802 | AK4: =SUM(AK5:AK9) -> 1.757452489 | AL4: =SUM(AL5:AL9) -> 65349.25229 | AM4: =SUM(AM5:AM9) -> 65349.46578 | AN4: =SUM(AN5:AN9) -> -0.2134932019
A5: Q 1 | B5: n/a | C5: both | D5: 1 | E5: =HLOOKUP('III Tool Overview'!$H$6,Prevalence!$B$2:$AV$268,Prevalence!AW3,FALSE) -> 0 | F5: =F12+F19 -> 0 | G5: =G12+G19 -> 0 | H5: =H12+H19 -> 72 | I5: =I12+I19 -> 0 | J5: 0 | K5: 0 | L5: 0 | M5: 0 | N5: 0 | O5: 0 | P5: 0 | Q5: 0 | R5: 0 | S5: =S12+S19 -> 0 | T5: 0 | U5: 0 | V5: 0 | W5: 0 | X5: 0 | Y5: 0 | Z5: 0 | AA5: 0 | AB5: 0 | AC5: 0 | AD5: 0 | AE5: 0 | AF5: 0 | AG5: 0 | AH5: 0 | AI5: 0 | AJ5: 0 | AK5: 0 | AL5: 0 | AM5: 0 | AN5: 0
A6: Q 2 | B6: n/a | C6: both | D6: 2 | E6: =HLOOKUP('III Tool Overview'!$H$6,Prevalence!$B$2:$AV$268,Prevalence!AW4,FALSE) -> 0 | F6: =F13+F20 -> 3045.6 | G6: =G13+G20 -> 0 | H6: 72 | I6: =I13+I20 -> 18.96237468 | J6: 18.84255644 | K6: 81.5734332 | L6: 81.15337388 | M6: 206.6632053 | N6: 205.9314987 | O6: 541.8065855 | P6: 540.9788042 | Q6: 777.0612118 | R6: 771.9485734 | S6: 5.112638363 | T6: 3224.797715 | U6: 3207.356001 | V6: 17.44171452 | W6: 7652.409861 | X6: =X13+X20 -> 7622.988858 | Y6: 29.42100298 | Z6: 17276.05729 | AA6: 17241.78498 | AB6: 34.27230664 | AC6: 717.447377 | AD6: 717.0289311 | AE6: 0.4184458856 | AF6: 2966.993815 | AG6: 2965.674066 | AH6: 1.31974891 | AI6: 7034.595867 | AJ6: 7032.838414 | AK6: 1.757452489 | AL6: 16218.6696 | AM6: 16218.88309 | AN6: -0.2134932019
A7: Q 3 | B7: n/a | C7: both | D7: 3 | E7: =HLOOKUP('III Tool Overview'!$H$6,Prevalence!$B$2:$AV$268,Prevalence!AW5,FALSE) -> 0 | F7: =F14+F21 -> 2995.2 | G7: 0 | H7: 0 | I7: =I14+I21 -> 15.80823426 | J7: 15.80823426 | K7: 68.2734984 | L7: 68.2734984 | M7: 174.3551815 | N7: 174.3551815 | O7: 467.3482582 | P7: 467.3482582 | Q7: 646.1418722 | R7: 646.1418722 | S7: 0 | T7: 2690.042232 | U7: 2690.042232 | V7: 0 | W7: 6422.107868 | X7: 6422.107868 | Y7: 0 | Z7: 14703.96648 | AA7: 14703.96648 | AB7: 0 | AC7: 621.1514485 | AD7: 621.1514485 | AE7: 0 | AF7: 2575.142177 | AG7: 2575.142177 | AH7: 0 | AI7: 6135.116059 | AJ7: 6135.116059 | AK7: 0 | AL7: 14322.32971 | AM7: 14322.32971 | AN7: 0
A8: Q 4 | B8: n/a | C8: both | D8: 4 | E8: =HLOOKUP('III Tool Overview'!$H$6,Prevalence!$B$2:$AV$268,Prevalence!AW6,FALSE) -> 0 | F8: =F15+F22 -> 7868.4 | G8: 0 | H8: 0 | I8: =I15+I22 -> 31.02001112 | J8: 31.02001112 | K8: 134.551558 | L8: 134.551558 | M8: 346.6759004 | N8: 346.6759004 | O8: 953.29148 | P8: 953.29148 | Q8: 1289.343136 | R8: 1289.343136 | S8: 0 | T8: 5391.884667 | U8: 5391.884667 | V8: 0 | W8: 12984.74542 | X8: 12984.74542 | Y8: 0 | Z8: 30393.91574 | AA8: 30393.91574 | AB8: 0 | AC8: 1399.423257 | AD8: 1399.423257 | AE8: 0 | AF8: 5818.293628 | AG8: 5818.293628 | AH8: 0 | AI8: 13941.36311 | AJ8: 13941.36311 | AK8: 0 | AL8: 33062.02157 | AM8: 33062.02157 | AN8: 0
A9: Q 5 | B9: n/a | C9: both | D9: 5 | E9: =HLOOKUP('III Tool Overview'!$H$6,Prevalence!$B$2:$AV$268,Prevalence!AW7,FALSE) -> 0 | F9: =F16+F23 -> 458 | G9: 0 | H9: 0 | I9: =I16+I23 -> 1.301937843 | J9: 1.301937843 | K9: 5.672695837 | L9: 5.672695837 | M9: 14.75162612 | N9: 14.75162612 | O9: 41.66946994 | P9: 41.66946994 | Q9: 54.63892358 | R9: 54.63892358 | S9: 0 | T9: 229.4289237 | U9: 229.4289237 | V9: 0 | W9: 556.8806508 | X9: 556.8806508 | Y9: 0 | Z9: 1329.177967 | AA9: 1329.177967 | AB9: 0 | AC9: 72.33680041 | AD9: 72.33680041 | AE9: 0 | AF9: 301.497821 | AG9: 301.497821 | AH9: 0 | AI9: 726.060436 | AJ9: 726.060436 | AK9: 0 | AL9: 1746.231402 | AM9: 1746.231402 | AN9: 0
A10: Males, by SIMD
A11: Males | F11: =SUM(F12:F16) -> 7187.4 | G11: =SUM(G12:G16) -> 0 | H11: =SUM(H12:H16) -> 72 | I11: =SUM(I12:I16) -> 41.79273667 | J11: =SUM(J12:J16) -> 41.71707036 | K11: =SUM(K12:K16) -> 179.2302757 | L11: =SUM(L12:L16) -> 178.9679534 | M11: =SUM(M12:M16) -> 451.9357441 | N11: =SUM(N12:N16) -> 451.4878859 | O11: =SUM(O12:O16) -> 1178.111933 | P11: =SUM(P12:P16) -> 1177.626811 | Q11: =SUM(Q12:Q16) -> 1742.215641 | R11: =SUM(R12:R16) -> 1738.948046 | S11: =SUM(S12:S16) -> 3.267594985 | T11: =SUM(T12:T16) -> 7212.166861 | U11: =SUM(U12:U16) -> 7201.124212 | V11: =SUM(V12:V16) -> 11.04264885 | W11: =SUM(W12:W16) -> 17053.47132 | X11: =SUM(X12:X16) -> 17035.13389 | Y11: =SUM(Y12:Y16) -> 18.33742773 | Z11: =SUM(Z12:Z16) -> 38352.42628 | AA11: =SUM(AA12:AA16) -> 38331.62895 | AB11: =SUM(AB12:AB16) -> 20.79732256 | AC11: =SUM(AC12:AC16) -> 1382.779091 | AD11: =SUM(AD12:AD16) -> 1382.574105 | AE11: =SUM(AE12:AE16) -> 0.2049854937 | AF11: =SUM(AF12:AF16) -> 5766.091985 | AG11: =SUM(AG12:AG16) -> 5765.478227 | AH11: =SUM(AH12:AH16) -> 0.6137582974 | AI11: =SUM(AI12:AI16) -> 13870.94067 | AJ11: =SUM(AJ12:AJ16) -> 13870.26689 | AK11: =SUM(AK12:AK16) -> 0.6737839559 | AL11: =SUM(AL12:AL16) -> 33012.36581 | AM11: =SUM(AM12:AM16) -> 33013.20909 | AN11: =SUM(AN12:AN16) -> -0.8432798918
A12: Q 1 | B12: n/a | C12: male | D12: 1 | E12: =HLOOKUP('III Tool Overview'!$H$6,Prevalence!$B$2:$AV$268,Prevalence!AW10,FALSE) -> 0 | F12: =F86 -> 0 | G12: =G86 -> 0 | H12: =H86 -> 36 | I12: =I86 -> 0 | J12: =J86 -> 0 | K12: 0 | L12: 0 | M12: 0 | N12: 0 | O12: 0 | P12: 0 | Q12: 0 | R12: 0 | S12: 0 | T12: 0 | U12: 0 | V12: 0 | W12: 0 | X12: 0 | Y12: 0 | Z12: 0 | AA12: 0 | AB12: 0 | AC12: 0 | AD12: 0 | AE12: 0 | AF12: 0 | AG12: 0 | AH12: 0 | AI12: 0 | AJ12: 0 | AK12: 0 | AL12: 0 | AM12: 0 | AN12: 0
A13: Q 2 | B13: n/a | C13: male | D13: 2 | E13: =HLOOKUP('III Tool Overview'!$H$6,Prevalence!$B$2:$AV$268,Prevalence!AW11,FALSE) -> 0 | F13: =F129 -> 1516.4 | G13: =G129 -> 0 | H13: =H129 -> 36 | I13: =I129 -> 11.75815013 | J13: 11.68248381 | K13: 50.13430179 | L13: 49.87197958 | M13: 124.945198 | N13: 124.4973398 | O13: 315.3249539 | P13: 314.8398323 | Q13: 486.9859536 | R13: 483.7183586 | S13: 3.267594985 | T13: 2005.481027 | U13: 1994.438378 | V13: 11.04264885 | W13: 4695.282395 | X13: 4676.944967 | Y13: 18.33742773 | Z13: 10312.82381 | AA13: 10292.02649 | AB13: 20.79732256 | AC13: 351.4500826 | AD13: 351.2450971 | AE13: 0.2049854937 | AF13: 1459.136867 | AG13: 1458.523108 | AH13: 0.6137582974 | AI13: 3480.25504 | AJ13: 3479.581256 | AK13: 0.6737839559 | AL13: 8100.269537 | AM13: 8101.112817 | AN13: -0.8432798918
A14: Q 3 | B14: n/a | C14: male | D14: 3 | E14: =HLOOKUP('III Tool Overview'!$H$6,Prevalence!$B$2:$AV$268,Prevalence!AW12,FALSE) -> 0 | F14: =F172 -> 1512.6 | G14: =G172 -> 0 | H14: =H172 -> 0 | I14: 9.859857619 | J14: 9.859857619 | K14: 42.2369343 | L14: 42.2369343 | M14: 106.2507707 | N14: 106.2507707 | O14: 274.9928446 | P14: 274.9928446 | Q14: 408.048792 | R14: 408.048792 | S14: 0 | T14: 1686.969164 | U14: 1686.969164 | V14: 0 | W14: 3978.580429 | X14: 3978.580429 | Y14: 0 | Z14: 8886.186571 | AA14: 8886.186571 | AB14: 0 | AC14: 309.1765788 | AD14: 309.1765788 | AE14: 0 | AF14: 1287.763791 | AG14: 1287.763791 | AH14: 0 | AI14: 3090.690621 | AJ14: 3090.690621 | AK14: 0 | AL14: 7308.050347 | AM14: 7308.050347 | AN14: 0
A15: Q 4 | B15: n/a | C15: male | D15: 4 | E15: =HLOOKUP('III Tool Overview'!$H$6,Prevalence!$B$2:$AV$268,Prevalence!AW13,FALSE) -> 0 | F15: =F215 -> 3937.6 | G15: =G215 -> 0 | H15: =H215 -> 0 | I15: 19.36525691 | J15: 19.36525691 | K15: 83.35700966 | L15: 83.35700966 | M15: 211.7513631 | N15: 211.7513631 | O15: 563.178794 | P15: 563.178794 | Q15: 812.9641648 | R15: 812.9641648 | S15: 0 | T15: 3376.964887 | U15: 3376.964887 | V15: 0 | W15: 8037.044265 | X15: 8037.044265 | Y15: 0 | Z15: 18355.50679 | AA15: 18355.50679 | AB15: 0 | AC15: 687.375072 | AD15: 687.375072 | AE15: 0 | AF15: 2873.339037 | AG15: 2873.339037 | AH15: 0 | AI15: 6945.163632 | AJ15: 6945.163632 | AK15: 0 | AL15: 16734.082 | AM15: 16734.082 | AN15: 0
A16: Q 5 | B16: n/a | C16: male | D16: 5 | E16: =HLOOKUP('III Tool Overview'!$H$6,Prevalence!$B$2:$AV$268,Prevalence!AW14,FALSE) -> 0 | F16: =F258 -> 220.8 | G16: =G258 -> 0 | H16: =H258 -> 0 | I16: 0.8094720088 | J16: 0.8094720088 | K16: 3.502029907 | L16: 3.502029907 | M16: 8.988412299 | N16: 8.988412299 | O16: 24.61534008 | P16: 24.61534008 | Q16: 34.2167305 | R16: 34.2167305 | S16: 0 | T16: 142.7517828 | U16: 142.7517828 | V16: 0 | W16: 342.5642274 | X16: 342.5642274 | Y16: 0 | Z16: 797.9091093 | AA16: 797.9091093 | AB16: 0 | AC16: 34.77735722 | AD16: 34.77735722 | AE16: 0 | AF16: 145.8522903 | AG16: 145.8522903 | AH16: 0 | AI16: 354.8313806 | AJ16: 354.8313806 | AK16: 0 | AL16: 869.9639175 | AM16: 869.9639175 | AN16: 0
A17: Females, by SIMD
A18: Females | F18: =SUM(F19:F23) -> 7179.8 | G18: =SUM(G19:G23) -> 0 | H18: 72 | I18: 25.29982122 | J18: 25.2556693 | K18: 110.8409098 | L18: 110.6831727 | M18: 290.5101693 | N18: 290.2263209 | O18: 826.003861 | P18: 825.6612014 | Q18: 1024.969503 | R18: 1023.12446 | S18: 1.845043378 | T18: 4323.986677 | U18: 4317.587611 | V18: 6.399065675 | W18: 10562.67249 | X18: 10551.58891 | Y18: 11.08357525 | Z18: 25350.69119 | AA18: 25337.21621 | AB18: 13.47498407 | AC18: 1427.579792 | AD18: 1427.366332 | AE18: 0.2134603919 | AF18: 5895.835456 | AG18: 5895.129466 | AH18: 0.7059906122 | AI18: 13966.1948 | AJ18: 13965.11113 | AK18: 1.083668534 | AL18: 32336.88648 | AM18: 32336.25669 | AN18: 0.6297866899
A19: Q 1 | B19: n/a | C19: female | D19: 1 | E19: =HLOOKUP('III Tool Overview'!$H$6,Prevalence!$B$2:$AV$268,Prevalence!AW17,FALSE) -> 0 | F19: =F107 -> 0 | G19: =G107 -> 0 | H19: =H107 -> 36 | I19: 0 | J19: 0 | K19: 0 | L19: 0 | M19: 0 | N19: 0 | O19: 0 | P19: 0 | Q19: 0 | R19: 0 | S19: 0 | T19: 0 | U19: 0 | V19: 0 | W19: 0 | X19: 0 | Y19: 0 | Z19: 0 | AA19: 0 | AB19: 0 | AC19: 0 | AD19: 0 | AE19: 0 | AF19: 0 | AG19: 0 | AH19: 0 | AI19: 0 | AJ19: 0 | AK19: 0 | AL19: 0 | AM19: 0 | AN19: 0
A20: Q 2 | B20: n/a | C20: female | D20: 2 | E20: =HLOOKUP('III Tool Overview'!$H$6,Prevalence!$B$2:$AV$268,Prevalence!AW18,FALSE) -> 0 | F20: =F150 -> 1529.2 | G20: =G150 -> 0 | H20: =H150 -> 36 | I20: 7.204224546 | J20: 7.160072624 | K20: 31.43913141 | L20: 31.2813943 | M20: 81.71800734 | N20: 81.43415893 | O20: 226.4816315 | P20: 226.1389719 | Q20: 290.0752582 | R20: 288.2302149 | S20: 1.845043378 | T20: 1219.316688 | U20: 1212.917623 | V20: 6.399065675 | W20: 2957.127466 | X20: 2946.043891 | Y20: 11.08357525 | Z20: 6963.233477 | AA20: 6949.758493 | AB20: 13.47498407 | AC20: 365.9972944 | AD20: 365.783834 | AE20: 0.2134603919 | AF20: 1507.856948 | AG20: 1507.150958 | AH20: 0.7059906122 | AI20: 3554.340827 | AJ20: 3553.257158 | AK20: 1.083668534 | AL20: 8118.400062 | AM20: 8117.770275 | AN20: 0.6297866899
A21: Q 3 | B21: n/a | C21: female | D21: 3 | E21: =HLOOKUP('III Tool Overview'!$H$6,Prevalence!$B$2:$AV$268,Prevalence!AW19,FALSE) -> 0 | F21: =F193 -> 1482.6 | G21: =G193 -> 0 | H21: =H193 -> 0 | I21: 5.948376642 | J21: 5.948376642 | K21: 26.0365641 | L21: 26.0365641 | M21: 68.10441083 | N21: 68.10441083 | O21: 192.3554136 | P21: 192.3554136 | Q21: 238.0930802 | R21: 238.0930802 | S21: 0 | T21: 1003.073068 | U21: 1003.073068 | V21: 0 | W21: 2443.527439 | X21: 2443.527439 | Y21: 0 | Z21: 5817.77991 | AA21: 5817.77991 | AB21: 0 | AC21: 311.9748697 | AD21: 311.9748697 | AE21: 0 | AF21: 1287.378386 | AG21: 1287.378386 | AH21: 0 | AI21: 3044.425438 | AJ21: 3044.425438 | AK21: 0 | AL21: 7014.279364 | AM21: 7014.279364 | AN21: 0
A22: Q 4 | B22: n/a | C22: female | D22: 4 | E22: =HLOOKUP('III Tool Overview'!$H$6,Prevalence!$B$2:$AV$268,Prevalence!AW20,FALSE) -> 0 | F22: =F236 -> 3930.8 | G22: =G236 -> 0 | H22: =H236 -> 0 | I22: 11.6547542 | J22: 11.6547542 | K22: 51.19454837 | L22: 51.19454837 | M22: 134.9245373 | N22: 134.9245373 | O22: 390.112686 | P22: 390.112686 | Q22: 476.3789715 | R22: 476.3789715 | S22: 0 | T22: 2014.91978 | U22: 2014.91978 | V22: 0 | W22: 4947.701159 | X22: 4947.701159 | Y22: 0 | Z22: 12038.40895 | AA22: 12038.40895 | AB22: 0 | AC22: 712.048185 | AD22: 712.048185 | AE22: 0 | AF22: 2944.954592 | AG22: 2944.954592 | AH22: 0 | AI22: 6996.199476 | AJ22: 6996.199476 | AK22: 0 | AL22: 16327.93957 | AM22: 16327.93957 | AN22: 0
A23: Q 5 | B23: n/a | C23: female | D23: 5 | E23: =HLOOKUP('III Tool Overview'!$H$6,Prevalence!$B$2:$AV$268,Prevalence!AW21,FALSE) -> 0 | F23: =F279 -> 237.2 | G23: =G279 -> 0 | H23: =H279 -> 0 | I23: 0.4924658339 | J23: 0.4924658339 | K23: 2.170665931 | L23: 2.170665931 | M23: 5.763213819 | N23: 5.763213819 | O23: 17.05412986 | P23: 17.05412986 | Q23: 20.42219309 | R23: 20.42219309 | S23: 0 | T23: 86.67714087 | U23: 86.67714087 | V23: 0 | W23: 214.3164234 | X23: 214.3164234 | Y23: 0 | Z23: 531.2688577 | AA23: 531.2688577 | AB23: 0 | AC23: 37.55944319 | AD23: 37.55944319 | AE23: 0 | AF23: 155.6455307 | AG23: 155.6455307 | AH23: 0 | AI23: 371.2290554 | AJ23: 371.2290554 | AK23: 0 | AL23: 876.267484 | AM23: 876.267484 | AN23: 0
A24: age/sex breakdown: All
A25: Male <1 | B25: 0.5 | C25: male | D25: all | F25: =F66+F109+F152+F195+F238 -> 107.8
A26: Male 1-4 | B26: 2.5 | C26: male | D26: all | F26: =F67+F110+F153+F196+F239 -> 415.4
A27: Male 5-9 | B27: 7.5 | C27: male | D27: all | F27: 488.2
A28: Male 10-14 | B28: 12.5 | C28: male | D28: all | F28: 648
A29: Male 15-19 | B29: 17.5 | C29: male | D29: all | E29: =HLOOKUP('III Tool Overview'!$H$6,Prevalence!$B$2:$AV$268,Prevalence!AW27,FALSE) -> 0.1713406868 | F29: 633.8 | G29: =G70+G113+G156+G199+G242 -> 0 | H29: 6.545454545 | I29: 0.3233036708 | J29: 0.322505727 | K29: 1.413345241 | L29: 1.41044805 | M29: 3.706888391 | N29: 3.701422876 | O29: 10.83424778 | P29: 10.82621904 | Q29: 26.18759734 | R29: 26.12296389 | S29: 0.06463345093 | T29: 112.2589036 | U29: 112.0283314 | V29: 0.2305721621 | W29: 284.0106481 | X29: 283.5870158 | Y29: 0.4236322209 | Z29: 761.7629861 | AA29: 761.164109 | AB29: 0.5988771032 | AC29: 42.40729363 | AD29: 42.40043111 | AE29: 0.006862512681 | AF29: 179.1827096 | AG29: 179.1571064 | AH29: 0.02560322708 | AI29: 442.548636 | AJ29: 442.4975538 | AK29: 0.05108211269 | AL29: 1133.146326 | AM29: 1133.063027 | AN29: 0.08329958795
A30: Male 20-24 | B30: 22.5 | C30: male | D30: all | E30: =HLOOKUP('III Tool Overview'!$H$6,Prevalence!$B$2:$AV$268,Prevalence!AW28,FALSE) -> 0.142779449 | F30: 517.6 | G30: =G71+G114+G157+G200+G243 -> 0 | H30: 6.545454545 | I30: 0.3567484157 | J30: 0.3557327081 | K30: 1.559037688 | L30: 1.555353027 | M30: 4.086170226 | N30: 4.079232424 | O30: 11.91696545 | P30: 11.90683726 | Q30: 27.46962801 | R30: 27.39141852 | S30: 0.07820948508 | T30: 117.5951987 | U30: 117.3166917 | V30: 0.2785070545 | W30: 296.7321311 | X30: 296.222091 | Y30: 0.5100401237 | Z30: 790.3408878 | AA30: 789.6253779 | AB30: 0.715509957 | AC30: 40.06638243 | AD30: 40.05850515 | AE30: 0.007877272481 | AF30: 169.2419134 | AG30: 169.2126628 | AH30: 0.02925056173 | AI30: 417.7445159 | AJ30: 417.6867165 | AK30: 0.05779936657 | AL30: 1067.711227 | AM30: 1067.619549 | AN30: 0.09167800557
A31: Male 25-29 | B31: 27.5 | C31: male | D31: all | E31: =HLOOKUP('III Tool Overview'!$H$6,Prevalence!$B$2:$AV$268,Prevalence!AW29,FALSE) -> 0.1821319334 | F31: 481 | G31: =G72+G115+G158+G201+G244 -> 0 | H31: 6.545454545 | I31: 0.5176637078 | J31: 0.5160598982 | K31: 2.260662148 | L31: 2.25485764 | M31: 5.916297052 | N31: 5.905424104 | O31: 17.17472635 | P31: 17.15911852 | Q31: 36.75412325 | R31: 36.64025277 | S31: 0.1138704783 | T31: 156.9546937 | U31: 156.5507714 | V31: 0.4039222833 | W31: 394.1565593 | X31: 393.4222814 | Y31: 0.7342778152 | Z31: 1036.358771 | AA31: 1035.347508 | AB31: 1.01126288 | AC31: 46.22894032 | AD31: 46.21922076 | AE31: 0.009719563336 | AF31: 195.1479958 | AG31: 195.1123656 | AH31: 0.03563020208 | AI31: 481.0583145 | AJ31: 480.9897694 | AK31: 0.06854510988 | AL31: 1224.745337 | AM31: 1224.645122 | AN31: 0.1002145596
A32: Male 30-34 | B32: 32.5 | C32: male | D32: all | E32: =HLOOKUP('III Tool Overview'!$H$6,Prevalence!$B$2:$AV$268,Prevalence!AW30,FALSE) -> 0.1256473914 | F32: 471 | G32: =G73+G116+G159+G202+G245 -> 0 | H32: 6.545454545 | I32: 0.6805111931 | J32: 0.6783590003 | K32: 2.969854104 | L32: 2.962081886 | M32: 7.761459632 | N32: 7.746970808 | O32: 22.43373125 | P32: 22.41325743 | Q32: 45.59424994 | R32: 45.45005302 | S32: 0.1441969209 | T32: 194.3151033 | U32: 193.8053258 | V32: 0.5097775036 | W32: 486.065212 | X32: 485.1444766 | Y32: 0.9207354182 | Z32: 1264.415032 | AA32: 1263.167541 | AB32: 1.247490864 | AC32: 52.20775211 | AD32: 52.1965748 | AE32: 0.01117731153 | AF32: 220.2527307 | AG32: 220.2122505 | AH32: 0.0404802671 | AI32: 542.2685908 | AJ32: 542.1927158 | AK32: 0.07587503633 | AL32: 1375.488671 | AM32: 1375.386935 | AN32: 0.1017365087
A33: Male 35-39 | B33: 37.5 | C33: male | D33: all | E33: =HLOOKUP('III Tool Overview'!$H$6,Prevalence!$B$2:$AV$268,Prevalence!AW31,FALSE) -> 0.1314660139 | F33: 591.2 | G33: =G74+G117+G160+G203+G246 -> 0 | H33: 6.545454545 | I33: 1.289822075 | J33: 1.286545197 | K33: 5.621488524 | L33: 5.609707734 | M33: 14.65024806 | N33: 14.62850301 | O33: 41.98049713 | P33: 41.95074672 | Q33: 78.67914659 | R33: 78.47925703 | S33: =S74+S117+S160+S203+S246 -> 0.1998895579 | T33: 334.0864856 | U33: 333.3844228 | V33: 0.7020628397 | W33: 829.6750614 | X33: 828.4229838 | Y33: 1.252077626 | Z33: 2115.927299 | AA33: 2114.284388 | AB33: 1.642910856 | AC33: 79.74443259 | AD33: 79.73065838 | AE33: 0.01377421482 | AF33: 336.0152867 | AG33: 335.966646 | AH33: 0.04864064675 | AI33: 825.2257964 | AJ33: 825.1396688 | AK33: 0.08612761432 | AL33: 2077.885918 | AM33: 2077.793493 | AN33: 0.09242486688
A34: Male 40-44 | B34: 42.5 | C34: male | D34: all | E34: =HLOOKUP('III Tool Overview'!$H$6,Prevalence!$B$2:$AV$268,Prevalence!AW32,FALSE) -> 0.1248937443 | F34: 810.4 | G34: =G75+G118+G161+G204+G247 -> 0 | H34: 6.545454545 | I34: 2.340341783 | J34: 2.336014364 | K34: 10.18707573 | L34: 10.17158337 | M34: 26.47813702 | N34: 26.44980515 | O34: 75.25484973 | P34: 75.21724288 | Q34: 133.3994817 | R34: 133.1528188 | S34: 0.2466628943 | T34: 564.6826633 | U34: 563.8213227 | V34: 0.8613405576 | W34: 1393.769495 | X34: 1392.250623 | Y34: 1.518871826 | Z34: 3494.919866 | AA34: 3492.982932 | AB34: 1.936933569 | AC34: 124.9826223 | AD34: 124.9667907 | AE34: 0.0158315619 | AF34: 526.0227392 | AG34: 525.9681651 | AH34: 0.05457405346 | AI34: 1288.81157 | AJ34: 1288.720385 | AK34: 0.09118543091 | AL34: 3222.619609 | AM34: 3222.547144 | AN34: 0.07246562624
A35: Male 45-49 | B35: 47.5 | C35: male | D35: all | E35: =HLOOKUP('III Tool Overview'!$H$6,Prevalence!$B$2:$AV$268,Prevalence!AW33,FALSE) -> 0.1442584638 | F35: 819.4 | G35: =G76+G119+G162+G205+G248 -> 0 | H35: 6.545454545 | I35: 3.646772035 | J35: 3.640255422 | K35: 15.82834909 | L35: 15.80522354 | M35: 40.89545317 | N35: 40.85397457 | O35: 114.1292145 | P35: 114.0775336 | Q35: 185.9853738 | R35: 185.6530265 | S35: 0.3323472809 | T35: 782.4523352 | U35: 781.3051696 | V35: 1.147165524 | W35: 1907.888725 | X35: 1905.911279 | Y35: 1.977445356 | Z35: 4625.407868 | AA35: 4623.024312 | AB35: 2.383556277 | AC35: 155.6723715 | AD35: 155.6528687 | AE35: 0.01950279681 | AF35: 653.5066289 | AG35: 653.4428004 | AH35: 0.06382852988 | AI35: 1592.800868 | AJ35: 1592.708153 | AK35: 0.09271511972 | AL35: 3922.32999 | AM35: 3922.321564 | AN35: 0.008426458987
A36: Male 50-54 | B36: 52.5 | C36: male | D36: all | E36: =HLOOKUP('III Tool Overview'!$H$6,Prevalence!$B$2:$AV$268,Prevalence!AW34,FALSE) -> 0.1852322686 | F36: 754.4 | G36: =G77+G120+G163+G206+G249 -> 0 | H36: 6.545454545 | I36: 4.523629402 | J36: 4.515060833 | K36: 19.57758374 | L36: 19.54742717 | M36: 50.27911794 | N36: 50.22600772 | O36: 137.7998897 | P36: 137.7375454 | Q36: 212.6105819 | R36: 212.2078591 | S36: 0.4027227635 | T36: 889.5261328 | U36: 888.1505785 | V36: 1.375554327 | W36: 2145.274086 | X36: 2142.951309 | Y36: 2.322777764 | Z36: 5045.54389 | AA36: 5042.879586 | AB36: 2.664303377 | AC36: 165.8116839 | AD36: 165.789271 | AE36: 0.02241293865 | AF36: 694.2900013 | AG36: 694.220287 | AH36: 0.06971435076 | AI36: 1683.434939 | AJ36: 1683.34893 | AK36: 0.08600916801 | AL36: 4083.893387 | AM36: 4083.963082 | AN36: -0.06969427269
A37: Male 55-59 | B37: 57.5 | C37: male | D37: all | E37: =HLOOKUP('III Tool Overview'!$H$6,Prevalence!$B$2:$AV$268,Prevalence!AW35,FALSE) -> 0.2630818432 | F37: 740.4 | G37: =G78+G121+G164+G207+G250 -> 0 | H37: 6.545454545 | I37: 6.840943476 | J37: 6.828309648 | K37: 29.42697342 | L37: 29.38323804 | M37: 74.62991232 | N37: 74.55564533 | O37: 197.0769642 | P37: 196.9995608 | Q37: 280.4786825 | R37: 279.9606956 | S37: 0.5179869402 | T37: 1160.626455 | U37: 1158.893248 | V37: 1.733206273 | W37: 2738.751891 | X37: 2735.940134 | Y37: 2.811757369 | Z37: 6069.556554 | AA37: 6066.609671 | AB37: 2.946882364 | AC37: 200.6732291 | AD37: 200.6456391 | AE37: 0.02758999244 | AF37: 835.7663523 | AG37: 835.6893208 | AH37: 0.07703147096 | AI37: 2004.682553 | AJ37: 2004.624751 | AK37: 0.05780201314 | AL37: 4716.708808 | AM37: 4716.963738 | AN37: -0.2549292863
A38: Male 60-64 | B38: 62.5 | C38: male | D38: all | E38: =HLOOKUP('III Tool Overview'!$H$6,Prevalence!$B$2:$AV$268,Prevalence!AW36,FALSE) -> 0.4345592452 | F38: 744 | G38: =G79+G122+G165+G208+G251 -> 0 | H38: 6.545454545 | I38: 9.265624608 | J38: 9.250774407 | K38: 39.61897674 | L38: 39.56803317 | M38: 99.24990114 | N38: 99.16510875 | O38: 252.916836 | P38: 252.8340509 | Q38: 342.8281105 | R38: 342.278653 | S38: 0.5494574604 | T38: 1404.326218 | U38: 1402.510688 | V38: 1.815529629 | W38: 3248.239206 | X38: 3245.36215 | Y38: 2.877056323 | Z38: 6823.299543 | AA38: 6820.412534 | AB38: 2.887008971 | AC38: 233.2445621 | AD38: 233.2129996 | AE38: 0.03156256106 | AF38: 966.285894 | AG38: 966.2031947 | AH38: 0.08269925856 | AI38: 2293.337748 | AJ38: 2293.300345 | AK38: 0.03740237031 | AL38: 5240.42607 | AM38: 5240.809093 | AN38: -0.3830227466
A39: Male 65-69 | B39: 67.5 | C39: male | D39: all | E39: =HLOOKUP('III Tool Overview'!$H$6,Prevalence!$B$2:$AV$268,Prevalence!AW37,FALSE) -> 0.7511604852 | F39: 624.2 | G39: =G80+G123+G166+G209+G252 -> 0 | H39: 6.545454545 | I39: 12.00737631 | J39: 11.98745315 | K39: 50.76692923 | L39: 50.69999981 | M39: 124.2821591 | N39: 124.1757911 | O39: 296.5940105 | P39: 296.5046984 | Q39: 372.2286655 | R39: 371.6110477 | S39: 0.617617753 | T39: 1495.342673 | U39: 1493.357662 | V39: 1.985010694 | W39: 3328.908301 | X39: 3325.919546 | Y39: 2.98875589 | Z39: 6324.893579 | AA39: 6322.130993 | AB39: 2.762586344 | AC39: 241.7398205 | AD39: 241.7011457 | AE39: 0.03867476797 | AF39: 990.3797331 | AG39: 990.2934273 | AH39: 0.08630572908 | AI39: 2299.027143 | AJ39: 2299.057903 | AK39: -0.03075938599 | AL39: 4947.41046 | AM39: 4948.096339 | AN39: -0.6858792001
A40: Male 70-74 | B40: 72.5 | C40: male | D40: all | E40: =HLOOKUP('III Tool Overview'!$H$6,Prevalence!$B$2:$AV$268,Prevalence!AW38,FALSE) -> 0 | F40: 469
A41: Male 75-79 | B41: 77.5 | C41: male | D41: all | E41: =HLOOKUP('III Tool Overview'!$H$6,Prevalence!$B$2:$AV$268,Prevalence!AW39,FALSE) -> 0 | F41: 317
A42: Male 80-84 | B42: 82.5 | C42: male | D42: all | E42: =HLOOKUP('III Tool Overview'!$H$6,Prevalence!$B$2:$AV$268,Prevalence!AW40,FALSE) -> 0 | F42: 212.2
A43: Male 85-89 | B43: 87.5 | C43: male | D43: all | E43: =HLOOKUP('III Tool Overview'!$H$6,Prevalence!$B$2:$AV$268,Prevalence!AW41,FALSE) -> 0 | F43: 105.6
A44: Male 90+ | B44: 95 | C44: female | D44: all | F44: 32.4
A45: Female <1 | B45: 0.5 | C45: female | D45: all | F45: =F87+F130+F173+F216+F259 -> 100.2
A46: Female 1-4 | B46: 2.5 | C46: female | D46: all | F46: =F88+F131+F174+F217+F260 -> 402.2
A47: Female 5-9 | B47: 7.5 | C47: female | D47: all | F47: 491.8
A48: Female 10-14 | B48: 12.5 | C48: female | D48: all | F48: 581.6
A49: Female 15-19 | B49: 17.5 | C49: female | D49: all | E49: =HLOOKUP('III Tool Overview'!$H$6,Prevalence!$B$2:$AV$268,Prevalence!AW46,FALSE) -> 0.1375053713 | F49: 628.2 | G49: =G91+G134+G177+G220+G263 -> 0 | H49: 6.545454545 | I49: 0.1321820503 | J49: 0.1318544132 | K49: 0.5869135978 | L49: 0.585705539 | M49: 1.583287536 | N49: 1.580952888 | O49: 4.935741681 | P49: 4.932163475 | Q49: 10.70674607 | R49: 10.68020747 | S49: 0.02653860412 | T49: 46.61003648 | U49: 46.51390981 | V49: 0.09612666719 | W49: 121.203642 | X49: 121.0228571 | Y49: 0.1807848915 | Z49: 345.6453203 | AA49: 345.3796893 | AB49: 0.2656310108 | AC49: 60.7990939 | AD49: 60.78920203 | AE49: 0.009891878912 | AF49: 252.9986263 | AG49: 252.9618932 | AH49: 0.03673303515 | AI49: 608.6105179 | AJ49: 608.5374539 | AK49: 0.07306403297 | AL49: 1473.848849 | AM49: 1473.727948 | AN49: 0.1209008367
A50: Female 20-24 | B50: 22.5 | C50: female | D50: all | E50: =HLOOKUP('III Tool Overview'!$H$6,Prevalence!$B$2:$AV$268,Prevalence!AW47,FALSE) -> 0.08633014407 | F50: 450.4 | G50: =G92+G135+G178+G221+G264 -> 0 | H50: 6.545454545 | I50: 0.1329118328 | J50: 0.132480427 | K50: 0.5900603987 | L50: 0.5884703938 | M50: 1.591223245 | N50: 1.588153424 | O50: 4.954672333 | P50: 4.949983285 | Q50: 10.23421112 | R50: 10.20099288 | S50: 0.03321824434 | T50: 44.49977491 | U50: 44.37961574 | V50: 0.1201591675 | W50: 115.4475284 | X50: 115.2220849 | Y50: 0.2254434311 | Z50: 327.1779175 | AA50: 326.8484469 | AB50: 0.3294705889 | AC50: 48.3747299 | AD50: 48.36383295 | AE50: 0.01089695002 | AF50: 201.2701166 | AG50: 201.2297412 | AH50: 0.04037540608 | AI50: 484.0330244 | AJ50: 483.9530713 | AK50: 0.07995313334 | AL50: 1171.117742 | AM50: 1170.987004 | AN50: 0.1307384076
A51: Female 25-29 | B51: 27.5 | C51: female | D51: all | E51: =HLOOKUP('III Tool Overview'!$H$6,Prevalence!$B$2:$AV$268,Prevalence!AW48,FALSE) -> 0.2529670877 | F51: 468 | G51: =G93+G136+G179+G222+G265 -> 0 | H51: 6.545454545 | I51: 0.2264032297 | J51: 0.2257173075 | K51: 1.004747679 | L51: 1.002222225 | M51: 2.707350462 | N51: 2.702486089 | O51: 8.407361365 | P51: 8.399992757 | Q51: 16.07462931 | R51: 16.02592883 | S51: 0.04870047625 | T51: 69.74548495 | U51: 69.56978271 | V51: 0.1757022448 | W51: 180.186492 | X51: 179.8584096 | Y51: 0.3280824816 | Z51: 504.8292492 | AA51: 504.355204 | AB51: 0.4740452633 | AC51: 58.4139904 | AD51: 58.40136934 | AE51: 0.01262106251 | AF51: 242.9640695 | AG51: 242.9175612 | AH51: 0.0465083098 | AI51: 583.9229622 | AJ51: 583.8318741 | AK51: 0.09108817783 | AL51: 1409.972589 | AM51: 1409.82806 | AN51: 0.1445290614
A52: Female 30-34 | B52: 32.5 | C52: female | D52: all | E52: =HLOOKUP('III Tool Overview'!$H$6,Prevalence!$B$2:$AV$268,Prevalence!AW49,FALSE) -> 0.2343585328 | F52: 518.6 | G52: =G94+G137+G180+G223+G266 -> 0 | H52: 6.545454545 | I52: 0.3448772513 | J52: 0.343937231 | K52: 1.529996455 | L52: 1.526539015 | M52: 4.11957674 | N52: 4.112932954 | O52: 12.76070381 | P52: 12.75072302 | Q52: 23.10677584 | R52: 23.04379448 | S52: 0.06298136084 | T52: 100.0865473 | U52: 99.859831 | V52: 0.2267163254 | W52: 257.7054501 | X52: 257.2838794 | Y52: 0.4215707477 | Z52: 715.3297545 | AA52: 714.7268869 | AB52: 0.6028676115 | AC52: 71.03242032 | AD52: 71.0184979 | AE52: 0.01392241608 | AF52: 295.3602286 | AG52: 295.3092058 | AH52: 0.05102285288 | AI52: 709.4070613 | AJ52: 709.308244 | AK52: 0.09881731978 | AL52: 1709.69667 | AM52: 1709.544745 | AN52: 0.1519245774
A53: Female 35-39 | B53: 37.5 | C53: female | D53: all | E53: =HLOOKUP('III Tool Overview'!$H$6,Prevalence!$B$2:$AV$268,Prevalence!AW50,FALSE) -> 0.2333326154 | F53: 658 | G53: =G95+G138+G181+G224+G267 -> 0 | H53: 6.545454545 | I53: 0.7134544319 | J53: 0.7119262672 | K53: 3.162665546 | L53: 3.157058278 | M53: 8.501075815 | N53: 8.490359767 | O53: 26.18243496 | P53: 26.16664349 | Q53: 43.52072034 | R53: 43.4275023 | S53: 0.09321804702 | T53: 187.9155407 | U53: 187.581484 | V53: 0.3340566535 | W53: 480.8231459 | X53: 480.2072887 | Y53: 0.6158572017 | Z53: 1311.285263 | AA53: 1310.423582 | AB53: 0.8616809773 | AC53: 104.3054361 | AD53: 104.2892979 | AE53: 0.01613823754 | AF53: 433.4137315 | AG53: 433.3553408 | AH53: 0.05839070967 | AI53: 1039.496735 | AJ53: 1039.386627 | AK53: 0.1101079952 | AL53: 2494.208303 | AM53: 2494.051962 | AN53: 0.156341118
A54: Female 40-44 | B54: 42.5 | C54: female | D54: all | E54: =HLOOKUP('III Tool Overview'!$H$6,Prevalence!$B$2:$AV$268,Prevalence!AW51,FALSE) -> 0.2054821102 | F54: 795.6 | G54: =G96+G139+G182+G225+G268 -> 0 | H54: 6.545454545 | I54: 1.178846646 | J54: 1.176696815 | K54: 5.221874864 | L54: 5.214006426 | M54: 14.01367885 | N54: 13.99872836 | O54: 42.93052032 | P54: 42.90893329 | Q54: 67.19425881 | R54: 67.07171846 | S54: 0.1225403454 | T54: 289.3827954 | U54: 288.9454835 | V54: 0.4373118714 | W54: 736.6150455 | X54: 735.8153618 | Y54: 0.799683715 | Z54: 1979.374204 | AA54: 1978.278826 | AB54: 1.095378637 | AC54: 137.8947168 | AD54: 137.8768972 | AE54: 0.01781964885 | AF54: 572.6119657 | AG54: 572.5483682 | AH54: 0.06359754936 | AI54: 1371.491958 | AJ54: 1371.375514 | AK54: 0.1164437528 | AL54: 3277.205095 | AM54: 3277.054909 | AN54: 0.1501855043
A55: Female 45-49 | B55: 47.5 | C55: female | D55: all | E55: =HLOOKUP('III Tool Overview'!$H$6,Prevalence!$B$2:$AV$268,Prevalence!AW52,FALSE) -> 0.2119563687 | F55: 790.8 | G55: =G97+G140+G183+G226+G269 -> 0 | H55: 6.545454545 | I55: 1.931059285 | J55: 1.927547855 | K55: 8.538548448 | L55: 8.525767573 | M55: 22.82476658 | N55: 22.80078913 | O55: 69.01785223 | P55: 68.98474581 | Q55: 98.48402354 | R55: 98.30494059 | S55: 0.1790829445 | T55: 421.9653408 | U55: 421.3316256 | V55: 0.6337152409 | W55: 1063.02172 | X55: 1061.88209 | Y55: 1.139629818 | Z55: 2772.096336 | AA55: 2770.601875 | AB55: 1.494461429 | AC55: 159.7447668 | AD55: 159.7241068 | AE55: 0.0206600056 | AF55: 662.2958996 | AG55: 662.2243843 | AH55: 0.07151528875 | AI55: 1581.102447 | AJ55: 1580.980312 | AK55: 0.122134548 | AL55: 3740.535649 | AM55: 3740.41602 | AN55: 0.1196286867
A56: Female 50-54 | B56: 52.5 | C56: female | D56: all | E56: =HLOOKUP('III Tool Overview'!$H$6,Prevalence!$B$2:$AV$268,Prevalence!AW53,FALSE) -> 0.2262997246 | F56: 765.6 | G56: =G98+G141+G184+G227+G270 -> 0 | H56: 6.545454545 | I56: 2.603426192 | J56: 2.598581223 | K56: 11.49049913 | L56: 11.47296024 | M56: 30.59369191 | N56: 30.56119683 | O56: 91.30416001 | P56: 91.26122216 | Q56: 122.361031 | R56: 122.1333175 | S56: 0.2277135769 | T56: 521.9023442 | U56: 521.1027787 | V56: 0.7995654045 | W56: 1302.756021 | X56: 1301.34023 | Y56: 1.415790799 | Z56: 3307.433243 | AA56: 3305.649207 | AB56: 1.784035457 | AC56: 171.1004391 | AD56: 171.0776422 | AE56: 0.02279696091 | AF56: 708.2549074 | AG56: 708.178383 | AH56: 0.07652435344 | AI56: 1685.300977 | AJ56: 1685.179866 | AK56: 0.1211104871 | AL56: 3947.919116 | AM56: 3947.842497 | AN56: 0.0766194309
A57: Female 55-59 | B57: 57.5 | C57: female | D57: all | E57: =HLOOKUP('III Tool Overview'!$H$6,Prevalence!$B$2:$AV$268,Prevalence!AW54,FALSE) -> 0.3440877674 | F57: 724.8 | G57: =G99+G142+G185+G228+G271 -> 0 | H57: 6.545454545 | I57: 4.03177623 | J57: 4.024227606 | K57: 17.72148226 | L57: 17.69445755 | M57: 46.76440242 | N57: 46.71559082 | O57: 135.5712733 | P57: 135.512298 | Q57: 165.3028254 | R57: 164.9933318 | S57: 0.3094935783 | T57: 698.6457988 | U57: 697.5756617 | V57: 1.070137079 | W57: 1711.742769 | X57: 1709.904887 | Y57: 1.837882044 | Z57: 4115.668003 | AA57: 4113.519295 | AB57: 2.148708542 | AC57: 187.9348056 | AD57: 187.9084201 | AE57: 0.02638552077 | AF57: 775.1766212 | AG57: 775.0936182 | AH57: 0.08300306056 | AI57: 1831.085865 | AJ57: 1830.976868 | AK57: 0.1089962279 | AL57: 4197.045258 | AM57: 4197.075063 | AN57: -0.02980570917
A58: Female 60-64 | B58: 62.5 | C58: female | D58: all | E58: =HLOOKUP('III Tool Overview'!$H$6,Prevalence!$B$2:$AV$268,Prevalence!AW55,FALSE) -> 0.642093469 | F58: 724.4 | G58: =G100+G143+G186+G229+G272 -> 0 | H58: 6.545454545 | I58: 5.63881253 | J58: 5.629836738 | K58: 24.68460432 | L58: 24.65265874 | M58: 64.57003925 | N58: 64.51311329 | O58: 181.9834733 | P58: 181.9178833 | Q58: 208.6360636 | R58: 208.3039593 | S58: 0.332104295 | T58: 874.5004049 | U58: 873.3630152 | V58: 1.137389693 | W58: 2106.556433 | X58: 2104.638172 | Y58: 1.918260154 | Z58: 4820.884729 | AA58: 4818.724558 | AB58: 2.160170668 | AC58: 208.5826717 | AD58: 208.5537355 | AE58: 0.0289362076 | AF58: 857.1894178 | AG58: 857.1015921 | AH58: 0.08782570131 | AI58: 2009.640372 | AJ58: 2009.538383 | AK58: 0.1019892137 | AL58: 4506.079311 | AM58: 4506.174279 | AN58: -0.09496715181
A59: Female 65-69 | B59: 67.5 | C59: female | D59: all | E59: =HLOOKUP('III Tool Overview'!$H$6,Prevalence!$B$2:$AV$268,Prevalence!AW56,FALSE) -> 0.8221525163 | F59: 655.4 | G59: =G101+G144+G187+G230+G273 -> 0 | H59: 6.545454545 | I59: 8.366071546 | J59: 8.35286342 | K59: 36.3095171 | L59: 36.26332671 | M59: 93.24107647 | N59: 93.16201731 | O59: 247.9556677 | P59: 247.8766128 | Q59: 259.3482179 | R59: 258.938766 | S59: 0.4094519049 | T59: 1068.732609 | U59: 1067.364423 | V59: 1.368185328 | W59: 2486.614241 | X59: 2484.413651 | Y59: 2.200589966 | Z59: 5150.967174 | AA59: 5148.70864 | AB59: 2.258533889 | AC59: 219.3967216 | AD59: 219.3633301 | AE59: 0.03339150313 | AF59: 894.299872 | AG59: 894.2093777 | AH59: 0.09049434517 | AI59: 2062.102877 | AJ59: 2062.042914 | AK59: 0.0599636449 | AL59: 4409.257898 | AM59: 4409.554206 | AN59: -0.2963080721
A60: Female 70-74 | B60: 72.5 | C60: female | D60: all | E60: =HLOOKUP('III Tool Overview'!$H$6,Prevalence!$B$2:$AV$268,Prevalence!AW57,FALSE) -> 0 | F60: 505.2
A61: Female 75-79 | B61: 77.5 | C61: female | D61: all | E61: =HLOOKUP('III Tool Overview'!$H$6,Prevalence!$B$2:$AV$268,Prevalence!AW58,FALSE) -> 0 | F61: 394.8
A62: Female 80-84 | B62: 82.5 | C62: female | D62: all | E62: =HLOOKUP('III Tool Overview'!$H$6,Prevalence!$B$2:$AV$268,Prevalence!AW59,FALSE) -> 0 | F62: 292.2
A63: Female 85-89 | B63: 87.5 | C63: female | D63: all | E63: =HLOOKUP('III Tool Overview'!$H$6,Prevalence!$B$2:$AV$268,Prevalence!AW60,FALSE) -> 0 | F63: 194.2
A64: Female 90+ | B64: 95 | C64: female | D64: all | F64: 123
A65: age/sex breakdown: Q1
A66: Male <1 | B66: 0.5 | C66: male | D66: 1 | F66: =HLOOKUP('III Tool Overview'!$H$6,LookUpData_Pop!$B$1:$AV$269,LookUpData_Pop!BB67,FALSE)/5 -> 0
A67: Male 1-4 | B67: 2.5 | C67: male | D67: 1 | F67: =HLOOKUP('III Tool Overview'!$H$6,LookUpData_Pop!$B$1:$AV$269,LookUpData_Pop!BB68,FALSE)/5 -> 0
A68: Male 5-9 | B68: 7.5 | C68: male | D68: 1 | F68: =HLOOKUP('III Tool Overview'!$H$6,LookUpData_Pop!$B$1:$AV$269,LookUpData_Pop!BB69,FALSE)/5 -> 0
A69: Male 10-14 | B69: 12.5 | C69: male | D69: 1 | F69: =HLOOKUP('III Tool Overview'!$H$6,LookUpData_Pop!$B$1:$AV$269,LookUpData_Pop!BB70,FALSE)/5 -> 0
A70: Male 15-19 | B70: 17.5 | C70: male | D70: 1 | E70: =HLOOKUP('III Tool Overview'!$H$6,Prevalence!$B$2:$AV$268,Prevalence!AW66,FALSE) -> 0.2066666667 | F70: =HLOOKUP('III Tool Overview'!$H$6,LookUpData_Pop!$B$1:$AV$269,LookUpData_Pop!BB71,FALSE)/5 -> 0 | G70: ='III Tool Overview'!$H$9/110 -> 0 | H70: =IF('III Tool Overview'!$H$10="Even distribution",Targeting!C68,IF('III Tool Overview'!$H$10="Targeting to Q1",Targeting!D68,IF('III Tool Overview'!$H$10="Targeting to Q1 & Q2",Targeting!E68,IF('III Tool Overview'!$H$10="Proportionate to need",Targeting!F68)))) -> 3.272727273 | I70: =IF('III Tool Overview'!$H$6="Orkney Health Board",0,IF('III Tool Overview'!$H$6="Shetland Health Board",0,IF('III Tool Overview'!$H$6="Western Isles Health Board",0,IF('III Tool Overview'!$H$6="Orkney Islands Local Authority",0,IF('III Tool Overview'!$H$6="Shetland Islands Local Authority",0,IF('III Tool Overview'!$H$6="Eilean Siar Local Authority",0,new_ci(2,B70,C70,D70,$C$1,G70,1,F70,E70*F70))))))) -> 0 | J70: =IF('III Tool Overview'!$H$6="Orkney Health Board",0,IF('III Tool Overview'!$H$6="Shetland Health Board",0,IF('III Tool Overview'!$H$6="Western Isles Health Board",0,IF('III Tool Overview'!$H$6="Orkney Islands Local Authority",0,IF('III Tool Overview'!$H$6="Shetland Islands Local Authority",0,IF('III Tool Overview'!$H$6="Eilean Siar Local Authority",0,new_ci(2,B70,C70,D70,$C$1,G70+H70,1,F70,E70*F70))))))) -> 0 | K70: =IF('III Tool Overview'!$H$6="Orkney Health Board",0,IF('III Tool Overview'!$H$6="Shetland Health Board",0,IF('III Tool Overview'!$H$6="Western Isles Health Board",0,IF('III Tool Overview'!$H$6="Orkney Islands Local Authority",0,IF('III Tool Overview'!$H$6="Shetland Islands Local Authority",0,IF('III Tool Overview'!$H$6="Eilean Siar Local Authority",0,new_ci(5,B70,C70,D70,$C$1,G70,1,F70,E70*F70))))))) -> 0 | L70: =IF('III Tool Overview'!$H$6="Orkney Health Board",0,IF('III Tool Overview'!$H$6="Shetland Health Board",0,IF('III Tool Overview'!$H$6="Western Isles Health Board",0,IF('III Tool Overview'!$H$6="Orkney Islands Local Authority",0,IF('III Tool Overview'!$H$6="Shetland Islands Local Authority",0,IF('III Tool Overview'!$H$6="Eilean Siar Local Authority",0,new_ci(5,B70,C70,D70,$C$1,G70+H70,1,F70,E70*F70))))))) -> 0 | M70: =IF('III Tool Overview'!$H$6="Orkney Health Board",0,IF('III Tool Overview'!$H$6="Shetland Health Board",0,IF('III Tool Overview'!$H$6="Western Isles Health Board",0,IF('III Tool Overview'!$H$6="Orkney Islands Local Authority",0,IF('III Tool Overview'!$H$6="Shetland Islands Local Authority",0,IF('III Tool Overview'!$H$6="Eilean Siar Local Authority",0,new_ci(10,B70,C70,D70,$C$1,G70,1,F70,E70*F70))))))) -> 0 | N70: =IF('III Tool Overview'!$H$6="Orkney Health Board",0,IF('III Tool Overview'!$H$6="Shetland Health Board",0,IF('III Tool Overview'!$H$6="Western Isles Health Board",0,IF('III Tool Overview'!$H$6="Orkney Islands Local Authority",0,IF('III Tool Overview'!$H$6="Shetland Islands Local Authority",0,IF('III Tool Overview'!$H$6="Eilean Siar Local Authority",0,new_ci(10,B70,C70,D70,$C$1,G70+H70,1,F70,E70*F70))))))) -> 0 | O70: =IF('III Tool Overview'!$H$6="Orkney Health Board",0,IF('III Tool Overview'!$H$6="Shetland Health Board",0,IF('III Tool Overview'!$H$6="Western Isles Health Board",0,IF('III Tool Overview'!$H$6="Orkney Islands Local Authority",0,IF('III Tool Overview'!$H$6="Shetland Islands Local Authority",0,IF('III Tool Overview'!$H$6="Eilean Siar Local Authority",0,new_ci(20,B70,C70,D70,$C$1,G70,1,F70,E70*F70))))))) -> 0 | P70: =IF('III Tool Overview'!$H$6="Orkney Health Board",0,IF('III Tool Overview'!$H$6="Shetland Health Board",0,IF('III Tool Overview'!$H$6="Western Isles Health Board",0,IF('III Tool Overview'!$H$6="Orkney Islands Local Authority",0,IF('III Tool Overview'!$H$6="Shetland Islands Local Authority",0,IF('III Tool Overview'!$H$6="Eilean Siar Local Authority",0,new_ci(20,B70,C70,D70,$C$1,G70+H70,1,F70,E70*F70))))))) -> 0 | Q70: =IF('III Tool Overview'!$H$6="Orkney Health Board",0,IF('III Tool Overview'!$H$6="Shetland Health Board",0,IF('III Tool Overview'!$H$6="Western Isles Health Board",0,IF('III Tool Overview'!$H$6="Orkney Islands Local Authority",0,IF('III Tool Overview'!$H$6="Shetland Islands Local Authority",0,IF('III Tool Overview'!$H$6="Eilean Siar Local Authority",0,new_yll(2,B70,C70,D70,$C$1,G70,1,F70,E70*F70))))))) -> 0 | R70: =IF('III Tool Overview'!$H$6="Orkney Health Board",0,IF('III Tool Overview'!$H$6="Shetland Health Board",0,IF('III Tool Overview'!$H$6="Western Isles Health Board",0,IF('III Tool Overview'!$H$6="Orkney Islands Local Authority",0,IF('III Tool Overview'!$H$6="Shetland Islands Local Authority",0,IF('III Tool Overview'!$H$6="Eilean Siar Local Authority",0,new_yll(2,B70,C70,D70,$C$1,G70+H70,1,F70,E70*F70))))))) -> 0 | S70: =Q70-R70 -> 0 | T70: =IF('III Tool Overview'!$H$6="Orkney Health Board",0,IF('III Tool Overview'!$H$6="Shetland Health Board",0,IF('III Tool Overview'!$H$6="Western Isles Health Board",0,IF('III Tool Overview'!$H$6="Orkney Islands Local Authority",0,IF('III Tool Overview'!$H$6="Shetland Islands Local Authority",0,IF('III Tool Overview'!$H$6="Eilean Siar Local Authority",0,new_yll(5,B70,C70,D70,$C$1,G70,1,F70,E70*F70))))))) -> 0 | U70: =IF('III Tool Overview'!$H$6="Orkney Health Board",0,IF('III Tool Overview'!$H$6="Shetland Health Board",0,IF('III Tool Overview'!$H$6="Western Isles Health Board",0,IF('III Tool Overview'!$H$6="Orkney Islands Local Authority",0,IF('III Tool Overview'!$H$6="Shetland Islands Local Authority",0,IF('III Tool Overview'!$H$6="Eilean Siar Local Authority",0,new_yll(5,B70,C70,D70,$C$1,G70+H70,1,F70,E70*F70))))))) -> 0 | V70: =T70-U70 -> 0 | W70: =IF('III Tool Overview'!$H$6="Orkney Health Board",0,IF('III Tool Overview'!$H$6="Shetland Health Board",0,IF('III Tool Overview'!$H$6="Western Isles Health Board",0,IF('III Tool Overview'!$H$6="Orkney Islands Local Authority",0,IF('III Tool Overview'!$H$6="Shetland Islands Local Authority",0,IF('III Tool Overview'!$H$6="Eilean Siar Local Authority",0,new_yll(10,B70,C70,D70,$C$1,G70,1,F70,E70*F70))))))) -> 0 | X70: =IF('III Tool Overview'!$H$6="Orkney Health Board",0,IF('III Tool Overview'!$H$6="Shetland Health Board",0,IF('III Tool Overview'!$H$6="Western Isles Health Board",0,IF('III Tool Overview'!$H$6="Orkney Islands Local Authority",0,IF('III Tool Overview'!$H$6="Shetland Islands Local Authority",0,IF('III Tool Overview'!$H$6="Eilean Siar Local Authority",0,new_yll(10,B70,C70,D70,$C$1,G70+H70,1,F70,E70*F70))))))) -> 0 | Y70: =W70-X70 -> 0 | Z70: =IF('III Tool Overview'!$H$6="Orkney Health Board",0,IF('III Tool Overview'!$H$6="Shetland Health Board",0,IF('III Tool Overview'!$H$6="Western Isles Health Board",0,IF('III Tool Overview'!$H$6="Orkney Islands Local Authority",0,IF('III Tool Overview'!$H$6="Shetland Islands Local Authority",0,IF('III Tool Overview'!$H$6="Eilean Siar Local Authority",0,new_yll(20,B70,C70,D70,$C$1,G70,1,F70,E70*F70))))))) -> 0 | AA70: =IF('III Tool Overview'!$H$6="Orkney Health Board",0,IF('III Tool Overview'!$H$6="Shetland Health Board",0,IF('III Tool Overview'!$H$6="Western Isles Health Board",0,IF('III Tool Overview'!$H$6="Orkney Islands Local Authority",0,IF('III Tool Overview'!$H$6="Shetland Islands Local Authority",0,IF('III Tool Overview'!$H$6="Eilean Siar Local Authority",0,new_yll(20,B70,C70,D70,$C$1,G70+H70,1,F70,E70*F70))))))) -> 0 | AB70: =Z70-AA70 -> 0 | AC70: =IF('III Tool Overview'!$H$6="Orkney Health Board",0,IF('III Tool Overview'!$H$6="Shetland Health Board",0,IF('III Tool Overview'!$H$6="Western Isles Health Board",0,IF('III Tool Overview'!$H$6="Orkney Islands Local Authority",0,IF('III Tool Overview'!$H$6="Shetland Islands Local Authority",0,IF('III Tool Overview'!$H$6="Eilean Siar Local Authority",0,hosp_count(2,B70,C70,D70,$C$1,G70,1,F70,E70*F70))))))) -> 0 | AD70: =IF('III Tool Overview'!$H$6="Orkney Health Board",0,IF('III Tool Overview'!$H$6="Shetland Health Board",0,IF('III Tool Overview'!$H$6="Western Isles Health Board",0,IF('III Tool Overview'!$H$6="Orkney Islands Local Authority",0,IF('III Tool Overview'!$H$6="Shetland Islands Local Authority",0,IF('III Tool Overview'!$H$6="Eilean Siar Local Authority",0,hosp_count(2,B70,C70,D70,$C$1,G70+H70,1,F70,E70*F70))))))) -> 0 | AE70: =AC70-AD70 -> 0 | AF70: =IF('III Tool Overview'!$H$6="Orkney Health Board",0,IF('III Tool Overview'!$H$6="Shetland Health Board",0,IF('III Tool Overview'!$H$6="Western Isles Health Board",0,IF('III Tool Overview'!$H$6="Orkney Islands Local Authority",0,IF('III Tool Overview'!$H$6="Shetland Islands Local Authority",0,IF('III Tool Overview'!$H$6="Eilean Siar Local Authority",0,hosp_count(5,B70,C70,D70,$C$1,G70,1,F70,E70*F70))))))) -> 0 | AG70: =IF('III Tool Overview'!$H$6="Orkney Health Board",0,IF('III Tool Overview'!$H$6="Shetland Health Board",0,IF('III Tool Overview'!$H$6="Western Isles Health Board",0,IF('III Tool Overview'!$H$6="Orkney Islands Local Authority",0,IF('III Tool Overview'!$H$6="Shetland Islands Local Authority",0,IF('III Tool Overview'!$H$6="Eilean Siar Local Authority",0,hosp_count(5,B70,C70,D70,$C$1,G70+H70,1,F70,E70*F70))))))) -> 0 | AH70: =AF70-AG70 -> 0 | AI70: =IF('III Tool Overview'!$H$6="Orkney Health Board",0,IF('III Tool Overview'!$H$6="Shetland Health Board",0,IF('III Tool Overview'!$H$6="Western Isles Health Board",0,IF('III Tool Overview'!$H$6="Orkney Islands Local Authority",0,IF('III Tool Overview'!$H$6="Shetland Islands Local Authority",0,IF('III Tool Overview'!$H$6="Eilean Siar Local Authority",0,hosp_count(10,B70,C70,D70,$C$1,G70,1,F70,E70*F70))))))) -> 0 | AJ70: =IF('III Tool Overview'!$H$6="Orkney Health Board",0,IF('III Tool Overview'!$H$6="Shetland Health Board",0,IF('III Tool Overview'!$H$6="Western Isles Health Board",0,IF('III Tool Overview'!$H$6="Orkney Islands Local Authority",0,IF('III Tool Overview'!$H$6="Shetland Islands Local Authority",0,IF('III Tool Overview'!$H$6="Eilean Siar Local Authority",0,hosp_count(10,B70,C70,D70,$C$1,G70+H70,1,F70,E70*F70))))))) -> 0 | AK70: =AI70-AJ70 -> 0 | AL70: =IF('III Tool Overview'!$H$6="Orkney Health Board",0,IF('III Tool Overview'!$H$6="Shetland Health Board",0,IF('III Tool Overview'!$H$6="Western Isles Health Board",0,IF('III Tool Overview'!$H$6="Orkney Islands Local Authority",0,IF('III Tool Overview'!$H$6="Shetland Islands Local Authority",0,IF('III Tool Overview'!$H$6="Eilean Siar Local Authority",0,hosp_count(20,B70,C70,D70,$C$1,G70,1,F70,E70*F70))))))) -> 0 | AM70: =IF('III Tool Overview'!$H$6="Orkney Health Board",0,IF('III Tool Overview'!$H$6="Shetland Health Board",0,IF('III Tool Overview'!$H$6="Western Isles Health Board",0,IF('III Tool Overview'!$H$6="Orkney Islands Local Authority",0,IF('III Tool Overview'!$H$6="Shetland Islands Local Authority",0,IF('III Tool Overview'!$H$6="Eilean Siar Local Authority",0,hosp_count(20,B70,C70,D70,$C$1,G70+H70,1,F70,E70*F70))))))) -> 0 | AN70: =AL70-AM70 -> 0
A71: Male 20-24 | B71: 22.5 | C71: male | D71: 1 | E71: =HLOOKUP('III Tool Overview'!$H$6,Prevalence!$B$2:$AV$268,Prevalence!AW67,FALSE) -> 0.31 | F71: =HLOOKUP('III Tool Overview'!$H$6,LookUpData_Pop!$B$1:$AV$269,LookUpData_Pop!BB72,FALSE)/5 -> 0 | G71: ='III Tool Overview'!$H$9/110 -> 0 | H71: =IF('III Tool Overview'!$H$10="Even distribution",Targeting!C69,IF('III Tool Overview'!$H$10="Targeting to Q1",Targeting!D69,IF('III Tool Overview'!$H$10="Targeting to Q1 & Q2",Targeting!E69,IF('III Tool Overview'!$H$10="Proportionate to need",Targeting!F69)))) -> 3.272727273 | I71: =IF('III Tool Overview'!$H$6="Orkney Health Board",0,IF('III Tool Overview'!$H$6="Shetland Health Board",0,IF('III Tool Overview'!$H$6="Western Isles Health Board",0,IF('III Tool Overview'!$H$6="Orkney Islands Local Authority",0,IF('III Tool Overview'!$H$6="Shetland Islands Local Authority",0,IF('III Tool Overview'!$H$6="Eilean Siar Local Authority",0,new_ci(2,B71,C71,D71,$C$1,G71,1,F71,E71*F71))))))) -> 0 | J71: =IF('III Tool Overview'!$H$6="Orkney Health Board",0,IF('III Tool Overview'!$H$6="Shetland Health Board",0,IF('III Tool Overview'!$H$6="Western Isles Health Board",0,IF('III Tool Overview'!$H$6="Orkney Islands Local Authority",0,IF('III Tool Overview'!$H$6="Shetland Islands Local Authority",0,IF('III Tool Overview'!$H$6="Eilean Siar Local Authority",0,new_ci(2,B71,C71,D71,$C$1,G71+H71,1,F71,E71*F71))))))) -> 0 | K71: =IF('III Tool Overview'!$H$6="Orkney Health Board",0,IF('III Tool Overview'!$H$6="Shetland Health Board",0,IF('III Tool Overview'!$H$6="Western Isles Health Board",0,IF('III Tool Overview'!$H$6="Orkney Islands Local Authority",0,IF('III Tool Overview'!$H$6="Shetland Islands Local Authority",0,IF('III Tool Overview'!$H$6="Eilean Siar Local Authority",0,new_ci(5,B71,C71,D71,$C$1,G71,1,F71,E71*F71))))))) -> 0 | L71: =IF('III Tool Overview'!$H$6="Orkney Health Board",0,IF('III Tool Overview'!$H$6="Shetland Health Board",0,IF('III Tool Overview'!$H$6="Western Isles Health Board",0,IF('III Tool Overview'!$H$6="Orkney Islands Local Authority",0,IF('III Tool Overview'!$H$6="Shetland Islands Local Authority",0,IF('III Tool Overview'!$H$6="Eilean Siar Local Authority",0,new_ci(5,B71,C71,D71,$C$1,G71+H71,1,F71,E71*F71))))))) -> 0 | M71: =IF('III Tool Overview'!$H$6="Orkney Health Board",0,IF('III Tool Overview'!$H$6="Shetland Health Board",0,IF('III Tool Overview'!$H$6="Western Isles Health Board",0,IF('III Tool Overview'!$H$6="Orkney Islands Local Authority",0,IF('III Tool Overview'!$H$6="Shetland Islands Local Authority",0,IF('III Tool Overview'!$H$6="Eilean Siar Local Authority",0,new_ci(10,B71,C71,D71,$C$1,G71,1,F71,E71*F71))))))) -> 0 | N71: =IF('III Tool Overview'!$H$6="Orkney Health Board",0,IF('III Tool Overview'!$H$6="Shetland Health Board",0,IF('III Tool Overview'!$H$6="Western Isles Health Board",0,IF('III Tool Overview'!$H$6="Orkney Islands Local Authority",0,IF('III Tool Overview'!$H$6="Shetland Islands Local Authority",0,IF('III Tool Overview'!$H$6="Eilean Siar Local Authority",0,new_ci(10,B71,C71,D71,$C$1,G71+H71,1,F71,E71*F71))))))) -> 0 | O71: =IF('III Tool Overview'!$H$6="Orkney Health Board",0,IF('III Tool Overview'!$H$6="Shetland Health Board",0,IF('III Tool Overview'!$H$6="Western Isles Health Board",0,IF('III Tool Overview'!$H$6="Orkney Islands Local Authority",0,IF('III Tool Overview'!$H$6="Shetland Islands Local Authority",0,IF('III Tool Overview'!$H$6="Eilean Siar Local Authority",0,new_ci(20,B71,C71,D71,$C$1,G71,1,F71,E71*F71))))))) -> 0 | P71: =IF('III Tool Overview'!$H$6="Orkney Health Board",0,IF('III Tool Overview'!$H$6="Shetland Health Board",0,IF('III Tool Overview'!$H$6="Western Isles Health Board",0,IF('III Tool Overview'!$H$6="Orkney Islands Local Authority",0,IF('III Tool Overview'!$H$6="Shetland Islands Local Authority",0,IF('III Tool Overview'!$H$6="Eilean Siar Local Authority",0,new_ci(20,B71,C71,D71,$C$1,G71+H71,1,F71,E71*F71))))))) -> 0 | Q71: =IF('III Tool Overview'!$H$6="Orkney Health Board",0,IF('III Tool Overview'!$H$6="Shetland Health Board",0,IF('III Tool Overview'!$H$6="Western Isles Health Board",0,IF('III Tool Overview'!$H$6="Orkney Islands Local Authority",0,IF('III Tool Overview'!$H$6="Shetland Islands Local Authority",0,IF('III Tool Overview'!$H$6="Eilean Siar Local Authority",0,new_yll(2,B71,C71,D71,$C$1,G71,1,F71,E71*F71))))))) -> 0 | R71: =IF('III Tool Overview'!$H$6="Orkney Health Board",0,IF('III Tool Overview'!$H$6="Shetland Health Board",0,IF('III Tool Overview'!$H$6="Western Isles Health Board",0,IF('III Tool Overview'!$H$6="Orkney Islands Local Authority",0,IF('III Tool Overview'!$H$6="Shetland Islands Local Authority",0,IF('III Tool Overview'!$H$6="Eilean Siar Local Authority",0,new_yll(2,B71,C71,D71,$C$1,G71+H71,1,F71,E71*F71))))))) -> 0 | S71: 0 | T71: =IF('III Tool Overview'!$H$6="Orkney Health Board",0,IF('III Tool Overview'!$H$6="Shetland Health Board",0,IF('III Tool Overview'!$H$6="Western Isles Health Board",0,IF('III Tool Overview'!$H$6="Orkney Islands Local Authority",0,IF('III Tool Overview'!$H$6="Shetland Islands Local Authority",0,IF('III Tool Overview'!$H$6="Eilean Siar Local Authority",0,new_yll(5,B71,C71,D71,$C$1,G71,1,F71,E71*F71))))))) -> 0 | U71: =IF('III Tool Overview'!$H$6="Orkney Health Board",0,IF('III Tool Overview'!$H$6="Shetland Health Board",0,IF('III Tool Overview'!$H$6="Western Isles Health Board",0,IF('III Tool Overview'!$H$6="Orkney Islands Local Authority",0,IF('III Tool Overview'!$H$6="Shetland Islands Local Authority",0,IF('III Tool Overview'!$H$6="Eilean Siar Local Authority",0,new_yll(5,B71,C71,D71,$C$1,G71+H71,1,F71,E71*F71))))))) -> 0 | V71: =T71-U71 -> 0 | W71: =IF('III Tool Overview'!$H$6="Orkney Health Board",0,IF('III Tool Overview'!$H$6="Shetland Health Board",0,IF('III Tool Overview'!$H$6="Western Isles Health Board",0,IF('III Tool Overview'!$H$6="Orkney Islands Local Authority",0,IF('III Tool Overview'!$H$6="Shetland Islands Local Authority",0,IF('III Tool Overview'!$H$6="Eilean Siar Local Authority",0,new_yll(10,B71,C71,D71,$C$1,G71,1,F71,E71*F71))))))) -> 0 | X71: =IF('III Tool Overview'!$H$6="Orkney Health Board",0,IF('III Tool Overview'!$H$6="Shetland Health Board",0,IF('III Tool Overview'!$H$6="Western Isles Health Board",0,IF('III Tool Overview'!$H$6="Orkney Islands Local Authority",0,IF('III Tool Overview'!$H$6="Shetland Islands Local Authority",0,IF('III Tool Overview'!$H$6="Eilean Siar Local Authority",0,new_yll(10,B71,C71,D71,$C$1,G71+H71,1,F71,E71*F71))))))) -> 0 | Y71: =W71-X71 -> 0 | Z71: =IF('III Tool Overview'!$H$6="Orkney Health Board",0,IF('III Tool Overview'!$H$6="Shetland Health Board",0,IF('III Tool Overview'!$H$6="Western Isles Health Board",0,IF('III Tool Overview'!$H$6="Orkney Islands Local Authority",0,IF('III Tool Overview'!$H$6="Shetland Islands Local Authority",0,IF('III Tool Overview'!$H$6="Eilean Siar Local Authority",0,new_yll(20,B71,C71,D71,$C$1,G71,1,F71,E71*F71))))))) -> 0 | AA71: =IF('III Tool Overview'!$H$6="Orkney Health Board",0,IF('III Tool Overview'!$H$6="Shetland Health Board",0,IF('III Tool Overview'!$H$6="Western Isles Health Board",0,IF('III Tool Overview'!$H$6="Orkney Islands Local Authority",0,IF('III Tool Overview'!$H$6="Shetland Islands Local Authority",0,IF('III Tool Overview'!$H$6="Eilean Siar Local Authority",0,new_yll(20,B71,C71,D71,$C$1,G71+H71,1,F71,E71*F71))))))) -> 0 | AB71: =Z71-AA71 -> 0 | AC71: =IF('III Tool Overview'!$H$6="Orkney Health Board",0,IF('III Tool Overview'!$H$6="Shetland Health Board",0,IF('III Tool Overview'!$H$6="Western Isles Health Board",0,IF('III Tool Overview'!$H$6="Orkney Islands Local Authority",0,IF('III Tool Overview'!$H$6="Shetland Islands Local Authority",0,IF('III Tool Overview'!$H$6="Eilean Siar Local Authority",0,hosp_count(2,B71,C71,D71,$C$1,G71,1,F71,E71*F71))))))) -> 0 | AD71: =IF('III Tool Overview'!$H$6="Orkney Health Board",0,IF('III Tool Overview'!$H$6="Shetland Health Board",0,IF('III Tool Overview'!$H$6="Western Isles Health Board",0,IF('III Tool Overview'!$H$6="Orkney Islands Local Authority",0,IF('III Tool Overview'!$H$6="Shetland Islands Local Authority",0,IF('III Tool Overview'!$H$6="Eilean Siar Local Authority",0,hosp_count(2,B71,C71,D71,$C$1,G71+H71,1,F71,E71*F71))))))) -> 0 | AE71: =AC71-AD71 -> 0 | AF71: =IF('III Tool Overview'!$H$6="Orkney Health Board",0,IF('III Tool Overview'!$H$6="Shetland Health Board",0,IF('III Tool Overview'!$H$6="Western Isles Health Board",0,IF('III Tool Overview'!$H$6="Orkney Islands Local Authority",0,IF('III Tool Overview'!$H$6="Shetland Islands Local Authority",0,IF('III Tool Overview'!$H$6="Eilean Siar Local Authority",0,hosp_count(5,B71,C71,D71,$C$1,G71,1,F71,E71*F71))))))) -> 0 | AG71: =IF('III Tool Overview'!$H$6="Orkney Health Board",0,IF('III Tool Overview'!$H$6="Shetland Health Board",0,IF('III Tool Overview'!$H$6="Western Isles Health Board",0,IF('III Tool Overview'!$H$6="Orkney Islands Local Authority",0,IF('III Tool Overview'!$H$6="Shetland Islands Local Authority",0,IF('III Tool Overview'!$H$6="Eilean Siar Local Authority",0,hosp_count(5,B71,C71,D71,$C$1,G71+H71,1,F71,E71*F71))))))) -> 0 | AH71: =AF71-AG71 -> 0 | AI71: =IF('III Tool Overview'!$H$6="Orkney Health Board",0,IF('III Tool Overview'!$H$6="Shetland Health Board",0,IF('III Tool Overview'!$H$6="Western Isles Health Board",0,IF('III Tool Overview'!$H$6="Orkney Islands Local Authority",0,IF('III Tool Overview'!$H$6="Shetland Islands Local Authority",0,IF('III Tool Overview'!$H$6="Eilean Siar Local Authority",0,hosp_count(10,B71,C71,D71,$C$1,G71,1,F71,E71*F71))))))) -> 0 | AJ71: =IF('III Tool Overview'!$H$6="Orkney Health Board",0,IF('III Tool Overview'!$H$6="Shetland Health Board",0,IF('III Tool Overview'!$H$6="Western Isles Health Board",0,IF('III Tool Overview'!$H$6="Orkney Islands Local Authority",0,IF('III Tool Overview'!$H$6="Shetland Islands Local Authority",0,IF('III Tool Overview'!$H$6="Eilean Siar Local Authority",0,hosp_count(10,B71,C71,D71,$C$1,G71+H71,1,F71,E71*F71))))))) -> 0 | AK71: =AI71-AJ71 -> 0 | AL71: =IF('III Tool Overview'!$H$6="Orkney Health Board",0,IF('III Tool Overview'!$H$6="Shetland Health Board",0,IF('III Tool Overview'!$H$6="Western Isles Health Board",0,IF('III Tool Overview'!$H$6="Orkney Islands Local Authority",0,IF('III Tool Overview'!$H$6="Shetland Islands Local Authority",0,IF('III Tool Overview'!$H$6="Eilean Siar Local Authority",0,hosp_count(20,B71,C71,D71,$C$1,G71,1,F71,E71*F71))))))) -> 0 | AM71: =IF('III Tool Overview'!$H$6="Orkney Health Board",0,IF('III Tool Overview'!$H$6="Shetland Health Board",0,IF('III Tool Overview'!$H$6="Western Isles Health Board",0,IF('III Tool Overview'!$H$6="Orkney Islands Local Authority",0,IF('III Tool Overview'!$H$6="Shetland Islands Local Authority",0,IF('III Tool Overview'!$H$6="Eilean Siar Local Authority",0,hosp_count(20,B71,C71,D71,$C$1,G71+H71,1,F71,E71*F71))))))) -> 0 | AN71: =AL71-AM71 -> 0
A72: Male 25-29 | B72: 27.5 | C72: male | D72: 1 | E72: =HLOOKUP('III Tool Overview'!$H$6,Prevalence!$B$2:$AV$268,Prevalence!AW68,FALSE) -> 0.31 | F72: =HLOOKUP('III Tool Overview'!$H$6,LookUpData_Pop!$B$1:$AV$269,LookUpData_Pop!BB73,FALSE)/5 -> 0 | G72: ='III Tool Overview'!$H$9/110 -> 0 | H72: =IF('III Tool Overview'!$H$10="Even distribution",Targeting!C70,IF('III Tool Overview'!$H$10="Targeting to Q1",Targeting!D70,IF('III Tool Overview'!$H$10="Targeting to Q1 & Q2",Targeting!E70,IF('III Tool Overview'!$H$10="Proportionate to need",Targeting!F70)))) -> 3.272727273 | I72: =IF('III Tool Overview'!$H$6="Orkney Health Board",0,IF('III Tool Overview'!$H$6="Shetland Health Board",0,IF('III Tool Overview'!$H$6="Western Isles Health Board",0,IF('III Tool Overview'!$H$6="Orkney Islands Local Authority",0,IF('III Tool Overview'!$H$6="Shetland Islands Local Authority",0,IF('III Tool Overview'!$H$6="Eilean Siar Local Authority",0,new_ci(2,B72,C72,D72,$C$1,G72,1,F72,E72*F72))))))) -> 0 | J72: =IF('III Tool Overview'!$H$6="Orkney Health Board",0,IF('III Tool Overview'!$H$6="Shetland Health Board",0,IF('III Tool Overview'!$H$6="Western Isles Health Board",0,IF('III Tool Overview'!$H$6="Orkney Islands Local Authority",0,IF('III Tool Overview'!$H$6="Shetland Islands Local Authority",0,IF('III Tool Overview'!$H$6="Eilean Siar Local Authority",0,new_ci(2,B72,C72,D72,$C$1,G72+H72,1,F72,E72*F72))))))) -> 0 | K72: =IF('III Tool Overview'!$H$6="Orkney Health Board",0,IF('III Tool Overview'!$H$6="Shetland Health Board",0,IF('III Tool Overview'!$H$6="Western Isles Health Board",0,IF('III Tool Overview'!$H$6="Orkney Islands Local Authority",0,IF('III Tool Overview'!$H$6="Shetland Islands Local Authority",0,IF('III Tool Overview'!$H$6="Eilean Siar Local Authority",0,new_ci(5,B72,C72,D72,$C$1,G72,1,F72,E72*F72))))))) -> 0 | L72: =IF('III Tool Overview'!$H$6="Orkney Health Board",0,IF('III Tool Overview'!$H$6="Shetland Health Board",0,IF('III Tool Overview'!$H$6="Western Isles Health Board",0,IF('III Tool Overview'!$H$6="Orkney Islands Local Authority",0,IF('III Tool Overview'!$H$6="Shetland Islands Local Authority",0,IF('III Tool Overview'!$H$6="Eilean Siar Local Authority",0,new_ci(5,B72,C72,D72,$C$1,G72+H72,1,F72,E72*F72))))))) -> 0 | M72: =IF('III Tool Overview'!$H$6="Orkney Health Board",0,IF('III Tool Overview'!$H$6="Shetland Health Board",0,IF('III Tool Overview'!$H$6="Western Isles Health Board",0,IF('III Tool Overview'!$H$6="Orkney Islands Local Authority",0,IF('III Tool Overview'!$H$6="Shetland Islands Local Authority",0,IF('III Tool Overview'!$H$6="Eilean Siar Local Authority",0,new_ci(10,B72,C72,D72,$C$1,G72,1,F72,E72*F72))))))) -> 0 | N72: =IF('III Tool Overview'!$H$6="Orkney Health Board",0,IF('III Tool Overview'!$H$6="Shetland Health Board",0,IF('III Tool Overview'!$H$6="Western Isles Health Board",0,IF('III Tool Overview'!$H$6="Orkney Islands Local Authority",0,IF('III Tool Overview'!$H$6="Shetland Islands Local Authority",0,IF('III Tool Overview'!$H$6="Eilean Siar Local Authority",0,new_ci(10,B72,C72,D72,$C$1,G72+H72,1,F72,E72*F72))))))) -> 0 | O72: =IF('III Tool Overview'!$H$6="Orkney Health Board",0,IF('III Tool Overview'!$H$6="Shetland Health Board",0,IF('III Tool Overview'!$H$6="Western Isles Health Board",0,IF('III Tool Overview'!$H$6="Orkney Islands Local Authority",0,IF('III Tool Overview'!$H$6="Shetland Islands Local Authority",0,IF('III Tool Overview'!$H$6="Eilean Siar Local Authority",0,new_ci(20,B72,C72,D72,$C$1,G72,1,F72,E72*F72))))))) -> 0 | P72: =IF('III Tool Overview'!$H$6="Orkney Health Board",0,IF('III Tool Overview'!$H$6="Shetland Health Board",0,IF('III Tool Overview'!$H$6="Western Isles Health Board",0,IF('III Tool Overview'!$H$6="Orkney Islands Local Authority",0,IF('III Tool Overview'!$H$6="Shetland Islands Local Authority",0,IF('III Tool Overview'!$H$6="Eilean Siar Local Authority",0,new_ci(20,B72,C72,D72,$C$1,G72+H72,1,F72,E72*F72))))))) -> 0 | Q72: =IF('III Tool Overview'!$H$6="Orkney Health Board",0,IF('III Tool Overview'!$H$6="Shetland Health Board",0,IF('III Tool Overview'!$H$6="Western Isles Health Board",0,IF('III Tool Overview'!$H$6="Orkney Islands Local Authority",0,IF('III Tool Overview'!$H$6="Shetland Islands Local Authority",0,IF('III Tool Overview'!$H$6="Eilean Siar Local Authority",0,new_yll(2,B72,C72,D72,$C$1,G72,1,F72,E72*F72))))))) -> 0 | R72: =IF('III Tool Overview'!$H$6="Orkney Health Board",0,IF('III Tool Overview'!$H$6="Shetland Health Board",0,IF('III Tool Overview'!$H$6="Western Isles Health Board",0,IF('III Tool Overview'!$H$6="Orkney Islands Local Authority",0,IF('III Tool Overview'!$H$6="Shetland Islands Local Authority",0,IF('III Tool Overview'!$H$6="Eilean Siar Local Authority",0,new_yll(2,B72,C72,D72,$C$1,G72+H72,1,F72,E72*F72))))))) -> 0 | S72: 0 | T72: =IF('III Tool Overview'!$H$6="Orkney Health Board",0,IF('III Tool Overview'!$H$6="Shetland Health Board",0,IF('III Tool Overview'!$H$6="Western Isles Health Board",0,IF('III Tool Overview'!$H$6="Orkney Islands Local Authority",0,IF('III Tool Overview'!$H$6="Shetland Islands Local Authority",0,IF('III Tool Overview'!$H$6="Eilean Siar Local Authority",0,new_yll(5,B72,C72,D72,$C$1,G72,1,F72,E72*F72))))))) -> 0 | U72: =IF('III Tool Overview'!$H$6="Orkney Health Board",0,IF('III Tool Overview'!$H$6="Shetland Health Board",0,IF('III Tool Overview'!$H$6="Western Isles Health Board",0,IF('III Tool Overview'!$H$6="Orkney Islands Local Authority",0,IF('III Tool Overview'!$H$6="Shetland Islands Local Authority",0,IF('III Tool Overview'!$H$6="Eilean Siar Local Authority",0,new_yll(5,B72,C72,D72,$C$1,G72+H72,1,F72,E72*F72))))))) -> 0 | V72: 0 | W72: =IF('III Tool Overview'!$H$6="Orkney Health Board",0,IF('III Tool Overview'!$H$6="Shetland Health Board",0,IF('III Tool Overview'!$H$6="Western Isles Health Board",0,IF('III Tool Overview'!$H$6="Orkney Islands Local Authority",0,IF('III Tool Overview'!$H$6="Shetland Islands Local Authority",0,IF('III Tool Overview'!$H$6="Eilean Siar Local Authority",0,new_yll(10,B72,C72,D72,$C$1,G72,1,F72,E72*F72))))))) -> 0 | X72: =IF('III Tool Overview'!$H$6="Orkney Health Board",0,IF('III Tool Overview'!$H$6="Shetland Health Board",0,IF('III Tool Overview'!$H$6="Western Isles Health Board",0,IF('III Tool Overview'!$H$6="Orkney Islands Local Authority",0,IF('III Tool Overview'!$H$6="Shetland Islands Local Authority",0,IF('III Tool Overview'!$H$6="Eilean Siar Local Authority",0,new_yll(10,B72,C72,D72,$C$1,G72+H72,1,F72,E72*F72))))))) -> 0 | Y72: 0 | Z72: =IF('III Tool Overview'!$H$6="Orkney Health Board",0,IF('III Tool Overview'!$H$6="Shetland Health Board",0,IF('III Tool Overview'!$H$6="Western Isles Health Board",0,IF('III Tool Overview'!$H$6="Orkney Islands Local Authority",0,IF('III Tool Overview'!$H$6="Shetland Islands Local Authority",0,IF('III Tool Overview'!$H$6="Eilean Siar Local Authority",0,new_yll(20,B72,C72,D72,$C$1,G72,1,F72,E72*F72))))))) -> 0 | AA72: =IF('III Tool Overview'!$H$6="Orkney Health Board",0,IF('III Tool Overview'!$H$6="Shetland Health Board",0,IF('III Tool Overview'!$H$6="Western Isles Health Board",0,IF('III Tool Overview'!$H$6="Orkney Islands Local Authority",0,IF('III Tool Overview'!$H$6="Shetland Islands Local Authority",0,IF('III Tool Overview'!$H$6="Eilean Siar Local Authority",0,new_yll(20,B72,C72,D72,$C$1,G72+H72,1,F72,E72*F72))))))) -> 0 | AB72: 0 | AC72: =IF('III Tool Overview'!$H$6="Orkney Health Board",0,IF('III Tool Overview'!$H$6="Shetland Health Board",0,IF('III Tool Overview'!$H$6="Western Isles Health Board",0,IF('III Tool Overview'!$H$6="Orkney Islands Local Authority",0,IF('III Tool Overview'!$H$6="Shetland Islands Local Authority",0,IF('III Tool Overview'!$H$6="Eilean Siar Local Authority",0,hosp_count(2,B72,C72,D72,$C$1,G72,1,F72,E72*F72))))))) -> 0 | AD72: =IF('III Tool Overview'!$H$6="Orkney Health Board",0,IF('III Tool Overview'!$H$6="Shetland Health Board",0,IF('III Tool Overview'!$H$6="Western Isles Health Board",0,IF('III Tool Overview'!$H$6="Orkney Islands Local Authority",0,IF('III Tool Overview'!$H$6="Shetland Islands Local Authority",0,IF('III Tool Overview'!$H$6="Eilean Siar Local Authority",0,hosp_count(2,B72,C72,D72,$C$1,G72+H72,1,F72,E72*F72))))))) -> 0 | AE72: 0 | AF72: =IF('III Tool Overview'!$H$6="Orkney Health Board",0,IF('III Tool Overview'!$H$6="Shetland Health Board",0,IF('III Tool Overview'!$H$6="Western Isles Health Board",0,IF('III Tool Overview'!$H$6="Orkney Islands Local Authority",0,IF('III Tool Overview'!$H$6="Shetland Islands Local Authority",0,IF('III Tool Overview'!$H$6="Eilean Siar Local Authority",0,hosp_count(5,B72,C72,D72,$C$1,G72,1,F72,E72*F72))))))) -> 0 | AG72: =IF('III Tool Overview'!$H$6="Orkney Health Board",0,IF('III Tool Overview'!$H$6="Shetland Health Board",0,IF('III Tool Overview'!$H$6="Western Isles Health Board",0,IF('III Tool Overview'!$H$6="Orkney Islands Local Authority",0,IF('III Tool Overview'!$H$6="Shetland Islands Local Authority",0,IF('III Tool Overview'!$H$6="Eilean Siar Local Authority",0,hosp_count(5,B72,C72,D72,$C$1,G72+H72,1,F72,E72*F72))))))) -> 0 | AH72: 0 | AI72: =IF('III Tool Overview'!$H$6="Orkney Health Board",0,IF('III Tool Overview'!$H$6="Shetland Health Board",0,IF('III Tool Overview'!$H$6="Western Isles Health Board",0,IF('III Tool Overview'!$H$6="Orkney Islands Local Authority",0,IF('III Tool Overview'!$H$6="Shetland Islands Local Authority",0,IF('III Tool Overview'!$H$6="Eilean Siar Local Authority",0,hosp_count(10,B72,C72,D72,$C$1,G72,1,F72,E72*F72))))))) -> 0 | AJ72: =IF('III Tool Overview'!$H$6="Orkney Health Board",0,IF('III Tool Overview'!$H$6="Shetland Health Board",0,IF('III Tool Overview'!$H$6="Western Isles Health Board",0,IF('III Tool Overview'!$H$6="Orkney Islands Local Authority",0,IF('III Tool Overview'!$H$6="Shetland Islands Local Authority",0,IF('III Tool Overview'!$H$6="Eilean Siar Local Authority",0,hosp_count(10,B72,C72,D72,$C$1,G72+H72,1,F72,E72*F72))))))) -> 0 | AK72: 0 | AL72: =IF('III Tool Overview'!$H$6="Orkney Health Board",0,IF('III Tool Overview'!$H$6="Shetland Health Board",0,IF('III Tool Overview'!$H$6="Western Isles Health Board",0,IF('III Tool Overview'!$H$6="Orkney Islands Local Authority",0,IF('III Tool Overview'!$H$6="Shetland Islands Local Authority",0,IF('III Tool Overview'!$H$6="Eilean Siar Local Authority",0,hosp_count(20,B72,C72,D72,$C$1,G72,1,F72,E72*F72))))))) -> 0 | AM72: =IF('III Tool Overview'!$H$6="Orkney Health Board",0,IF('III Tool Overview'!$H$6="Shetland Health Board",0,IF('III Tool Overview'!$H$6="Western Isles Health Board",0,IF('III Tool Overview'!$H$6="Orkney Islands Local Authority",0,IF('III Tool Overview'!$H$6="Shetland Islands Local Authority",0,IF('III Tool Overview'!$H$6="Eilean Siar Local Authority",0,hosp_count(20,B72,C72,D72,$C$1,G72+H72,1,F72,E72*F72))))))) -> 0 | AN72: 0
A73: Male 30-34 | B73: 32.5 | C73: male | D73: 1 | E73: =HLOOKUP('III Tool Overview'!$H$6,Prevalence!$B$2:$AV$268,Prevalence!AW69,FALSE) -> 0.2160606061 | F73: =HLOOKUP('III Tool Overview'!$H$6,LookUpData_Pop!$B$1:$AV$269,LookUpData_Pop!BB74,FALSE)/5 -> 0 | G73: ='III Tool Overview'!$H$9/110 -> 0 | H73: =IF('III Tool Overview'!$H$10="Even distribution",Targeting!C71,IF('III Tool Overview'!$H$10="Targeting to Q1",Targeting!D71,IF('III Tool Overview'!$H$10="Targeting to Q1 & Q2",Targeting!E71,IF('III Tool Overview'!$H$10="Proportionate to need",Targeting!F71)))) -> 3.272727273 | I73: =IF('III Tool Overview'!$H$6="Orkney Health Board",0,IF('III Tool Overview'!$H$6="Shetland Health Board",0,IF('III Tool Overview'!$H$6="Western Isles Health Board",0,IF('III Tool Overview'!$H$6="Orkney Islands Local Authority",0,IF('III Tool Overview'!$H$6="Shetland Islands Local Authority",0,IF('III Tool Overview'!$H$6="Eilean Siar Local Authority",0,new_ci(2,B73,C73,D73,$C$1,G73,1,F73,E73*F73))))))) -> 0 | J73: =IF('III Tool Overview'!$H$6="Orkney Health Board",0,IF('III Tool Overview'!$H$6="Shetland Health Board",0,IF('III Tool Overview'!$H$6="Western Isles Health Board",0,IF('III Tool Overview'!$H$6="Orkney Islands Local Authority",0,IF('III Tool Overview'!$H$6="Shetland Islands Local Authority",0,IF('III Tool Overview'!$H$6="Eilean Siar Local Authority",0,new_ci(2,B73,C73,D73,$C$1,G73+H73,1,F73,E73*F73))))))) -> 0 | K73: =IF('III Tool Overview'!$H$6="Orkney Health Board",0,IF('III Tool Overview'!$H$6="Shetland Health Board",0,IF('III Tool Overview'!$H$6="Western Isles Health Board",0,IF('III Tool Overview'!$H$6="Orkney Islands Local Authority",0,IF('III Tool Overview'!$H$6="Shetland Islands Local Authority",0,IF('III Tool Overview'!$H$6="Eilean Siar Local Authority",0,new_ci(5,B73,C73,D73,$C$1,G73,1,F73,E73*F73))))))) -> 0 | L73: =IF('III Tool Overview'!$H$6="Orkney Health Board",0,IF('III Tool Overview'!$H$6="Shetland Health Board",0,IF('III Tool Overview'!$H$6="Western Isles Health Board",0,IF('III Tool Overview'!$H$6="Orkney Islands Local Authority",0,IF('III Tool Overview'!$H$6="Shetland Islands Local Authority",0,IF('III Tool Overview'!$H$6="Eilean Siar Local Authority",0,new_ci(5,B73,C73,D73,$C$1,G73+H73,1,F73,E73*F73))))))) -> 0 | M73: =IF('III Tool Overview'!$H$6="Orkney Health Board",0,IF('III Tool Overview'!$H$6="Shetland Health Board",0,IF('III Tool Overview'!$H$6="Western Isles Health Board",0,IF('III Tool Overview'!$H$6="Orkney Islands Local Authority",0,IF('III Tool Overview'!$H$6="Shetland Islands Local Authority",0,IF('III Tool Overview'!$H$6="Eilean Siar Local Authority",0,new_ci(10,B73,C73,D73,$C$1,G73,1,F73,E73*F73))))))) -> 0 | N73: =IF('III Tool Overview'!$H$6="Orkney Health Board",0,IF('III Tool Overview'!$H$6="Shetland Health Board",0,IF('III Tool Overview'!$H$6="Western Isles Health Board",0,IF('III Tool Overview'!$H$6="Orkney Islands Local Authority",0,IF('III Tool Overview'!$H$6="Shetland Islands Local Authority",0,IF('III Tool Overview'!$H$6="Eilean Siar Local Authority",0,new_ci(10,B73,C73,D73,$C$1,G73+H73,1,F73,E73*F73))))))) -> 0 | O73: =IF('III Tool Overview'!$H$6="Orkney Health Board",0,IF('III Tool Overview'!$H$6="Shetland Health Board",0,IF('III Tool Overview'!$H$6="Western Isles Health Board",0,IF('III Tool Overview'!$H$6="Orkney Islands Local Authority",0,IF('III Tool Overview'!$H$6="Shetland Islands Local Authority",0,IF('III Tool Overview'!$H$6="Eilean Siar Local Authority",0,new_ci(20,B73,C73,D73,$C$1,G73,1,F73,E73*F73))))))) -> 0 | P73: =IF('III Tool Overview'!$H$6="Orkney Health Board",0,IF('III Tool Overview'!$H$6="Shetland Health Board",0,IF('III Tool Overview'!$H$6="Western Isles Health Board",0,IF('III Tool Overview'!$H$6="Orkney Islands Local Authority",0,IF('III Tool Overview'!$H$6="Shetland Islands Local Authority",0,IF('III Tool Overview'!$H$6="Eilean Siar Local Authority",0,new_ci(20,B73,C73,D73,$C$1,G73+H73,1,F73,E73*F73))))))) -> 0 | Q73: =IF('III Tool Overview'!$H$6="Orkney Health Board",0,IF('III Tool Overview'!$H$6="Shetland Health Board",0,IF('III Tool Overview'!$H$6="Western Isles Health Board",0,IF('III Tool Overview'!$H$6="Orkney Islands Local Authority",0,IF('III Tool Overview'!$H$6="Shetland Islands Local Authority",0,IF('III Tool Overview'!$H$6="Eilean Siar Local Authority",0,new_yll(2,B73,C73,D73,$C$1,G73,1,F73,E73*F73))))))) -> 0 | R73: =IF('III Tool Overview'!$H$6="Orkney Health Board",0,IF('III Tool Overview'!$H$6="Shetland Health Board",0,IF('III Tool Overview'!$H$6="Western Isles Health Board",0,IF('III Tool Overview'!$H$6="Orkney Islands Local Authority",0,IF('III Tool Overview'!$H$6="Shetland Islands Local Authority",0,IF('III Tool Overview'!$H$6="Eilean Siar Local Authority",0,new_yll(2,B73,C73,D73,$C$1,G73+H73,1,F73,E73*F73))))))) -> 0 | S73: 0 | T73: =IF('III Tool Overview'!$H$6="Orkney Health Board",0,IF('III Tool Overview'!$H$6="Shetland Health Board",0,IF('III Tool Overview'!$H$6="Western Isles Health Board",0,IF('III Tool Overview'!$H$6="Orkney Islands Local Authority",0,IF('III Tool Overview'!$H$6="Shetland Islands Local Authority",0,IF('III Tool Overview'!$H$6="Eilean Siar Local Authority",0,new_yll(5,B73,C73,D73,$C$1,G73,1,F73,E73*F73))))))) -> 0 | U73: =IF('III Tool Overview'!$H$6="Orkney Health Board",0,IF('III Tool Overview'!$H$6="Shetland Health Board",0,IF('III Tool Overview'!$H$6="Western Isles Health Board",0,IF('III Tool Overview'!$H$6="Orkney Islands Local Authority",0,IF('III Tool Overview'!$H$6="Shetland Islands Local Authority",0,IF('III Tool Overview'!$H$6="Eilean Siar Local Authority",0,new_yll(5,B73,C73,D73,$C$1,G73+H73,1,F73,E73*F73))))))) -> 0 | V73: 0 | W73: =IF('III Tool Overview'!$H$6="Orkney Health Board",0,IF('III Tool Overview'!$H$6="Shetland Health Board",0,IF('III Tool Overview'!$H$6="Western Isles Health Board",0,IF('III Tool Overview'!$H$6="Orkney Islands Local Authority",0,IF('III Tool Overview'!$H$6="Shetland Islands Local Authority",0,IF('III Tool Overview'!$H$6="Eilean Siar Local Authority",0,new_yll(10,B73,C73,D73,$C$1,G73,1,F73,E73*F73))))))) -> 0 | X73: =IF('III Tool Overview'!$H$6="Orkney Health Board",0,IF('III Tool Overview'!$H$6="Shetland Health Board",0,IF('III Tool Overview'!$H$6="Western Isles Health Board",0,IF('III Tool Overview'!$H$6="Orkney Islands Local Authority",0,IF('III Tool Overview'!$H$6="Shetland Islands Local Authority",0,IF('III Tool Overview'!$H$6="Eilean Siar Local Authority",0,new_yll(10,B73,C73,D73,$C$1,G73+H73,1,F73,E73*F73))))))) -> 0 | Y73: 0 | Z73: =IF('III Tool Overview'!$H$6="Orkney Health Board",0,IF('III Tool Overview'!$H$6="Shetland Health Board",0,IF('III Tool Overview'!$H$6="Western Isles Health Board",0,IF('III Tool Overview'!$H$6="Orkney Islands Local Authority",0,IF('III Tool Overview'!$H$6="Shetland Islands Local Authority",0,IF('III Tool Overview'!$H$6="Eilean Siar Local Authority",0,new_yll(20,B73,C73,D73,$C$1,G73,1,F73,E73*F73))))))) -> 0 | AA73: =IF('III Tool Overview'!$H$6="Orkney Health Board",0,IF('III Tool Overview'!$H$6="Shetland Health Board",0,IF('III Tool Overview'!$H$6="Western Isles Health Board",0,IF('III Tool Overview'!$H$6="Orkney Islands Local Authority",0,IF('III Tool Overview'!$H$6="Shetland Islands Local Authority",0,IF('III Tool Overview'!$H$6="Eilean Siar Local Authority",0,new_yll(20,B73,C73,D73,$C$1,G73+H73,1,F73,E73*F73))))))) -> 0 | AB73: 0 | AC73: =IF('III Tool Overview'!$H$6="Orkney Health Board",0,IF('III Tool Overview'!$H$6="Shetland Health Board",0,IF('III Tool Overview'!$H$6="Western Isles Health Board",0,IF('III Tool Overview'!$H$6="Orkney Islands Local Authority",0,IF('III Tool Overview'!$H$6="Shetland Islands Local Authority",0,IF('III Tool Overview'!$H$6="Eilean Siar Local Authority",0,hosp_count(2,B73,C73,D73,$C$1,G73,1,F73,E73*F73))))))) -> 0 | AD73: =IF('III Tool Overview'!$H$6="Orkney Health Board",0,IF('III Tool Overview'!$H$6="Shetland Health Board",0,IF('III Tool Overview'!$H$6="Western Isles Health Board",0,IF('III Tool Overview'!$H$6="Orkney Islands Local Authority",0,IF('III Tool Overview'!$H$6="Shetland Islands Local Authority",0,IF('III Tool Overview'!$H$6="Eilean Siar Local Authority",0,hosp_count(2,B73,C73,D73,$C$1,G73+H73,1,F73,E73*F73))))))) -> 0 | AE73: 0 | AF73: =IF('III Tool Overview'!$H$6="Orkney Health Board",0,IF('III Tool Overview'!$H$6="Shetland Health Board",0,IF('III Tool Overview'!$H$6="Western Isles Health Board",0,IF('III Tool Overview'!$H$6="Orkney Islands Local Authority",0,IF('III Tool Overview'!$H$6="Shetland Islands Local Authority",0,IF('III Tool Overview'!$H$6="Eilean Siar Local Authority",0,hosp_count(5,B73,C73,D73,$C$1,G73,1,F73,E73*F73))))))) -> 0 | AG73: =IF('III Tool Overview'!$H$6="Orkney Health Board",0,IF('III Tool Overview'!$H$6="Shetland Health Board",0,IF('III Tool Overview'!$H$6="Western Isles Health Board",0,IF('III Tool Overview'!$H$6="Orkney Islands Local Authority",0,IF('III Tool Overview'!$H$6="Shetland Islands Local Authority",0,IF('III Tool Overview'!$H$6="Eilean Siar Local Authority",0,hosp_count(5,B73,C73,D73,$C$1,G73+H73,1,F73,E73*F73))))))) -> 0 | AH73: 0 | AI73: =IF('III Tool Overview'!$H$6="Orkney Health Board",0,IF('III Tool Overview'!$H$6="Shetland Health Board",0,IF('III Tool Overview'!$H$6="Western Isles Health Board",0,IF('III Tool Overview'!$H$6="Orkney Islands Local Authority",0,IF('III Tool Overview'!$H$6="Shetland Islands Local Authority",0,IF('III Tool Overview'!$H$6="Eilean Siar Local Authority",0,hosp_count(10,B73,C73,D73,$C$1,G73,1,F73,E73*F73))))))) -> 0 | AJ73: =IF('III Tool Overview'!$H$6="Orkney Health Board",0,IF('III Tool Overview'!$H$6="Shetland Health Board",0,IF('III Tool Overview'!$H$6="Western Isles Health Board",0,IF('III Tool Overview'!$H$6="Orkney Islands Local Authority",0,IF('III Tool Overview'!$H$6="Shetland Islands Local Authority",0,IF('III Tool Overview'!$H$6="Eilean Siar Local Authority",0,hosp_count(10,B73,C73,D73,$C$1,G73+H73,1,F73,E73*F73))))))) -> 0 | AK73: 0 | AL73: =IF('III Tool Overview'!$H$6="Orkney Health Board",0,IF('III Tool Overview'!$H$6="Shetland Health Board",0,IF('III Tool Overview'!$H$6="Western Isles Health Board",0,IF('III Tool Overview'!$H$6="Orkney Islands Local Authority",0,IF('III Tool Overview'!$H$6="Shetland Islands Local Authority",0,IF('III Tool Overview'!$H$6="Eilean Siar Local Authority",0,hosp_count(20,B73,C73,D73,$C$1,G73,1,F73,E73*F73))))))) -> 0 | AM73: =IF('III Tool Overview'!$H$6="Orkney Health Board",0,IF('III Tool Overview'!$H$6="Shetland Health Board",0,IF('III Tool Overview'!$H$6="Western Isles Health Board",0,IF('III Tool Overview'!$H$6="Orkney Islands Local Authority",0,IF('III Tool Overview'!$H$6="Shetland Islands Local Authority",0,IF('III Tool Overview'!$H$6="Eilean Siar Local Authority",0,hosp_count(20,B73,C73,D73,$C$1,G73+H73,1,F73,E73*F73))))))) -> 0 | AN73: 0
A74: Male 35-39 | B74: 37.5 | C74: male | D74: 1 | E74: =HLOOKUP('III Tool Overview'!$H$6,Prevalence!$B$2:$AV$268,Prevalence!AW70,FALSE) -> 0.3287878788 | F74: =HLOOKUP('III Tool Overview'!$H$6,LookUpData_Pop!$B$1:$AV$269,LookUpData_Pop!BB75,FALSE)/5 -> 0 | G74: ='III Tool Overview'!$H$9/110 -> 0 | H74: =IF('III Tool Overview'!$H$10="Even distribution",Targeting!C72,IF('III Tool Overview'!$H$10="Targeting to Q1",Targeting!D72,IF('III Tool Overview'!$H$10="Targeting to Q1 & Q2",Targeting!E72,IF('III Tool Overview'!$H$10="Proportionate to need",Targeting!F72)))) -> 3.272727273 | I74: =IF('III Tool Overview'!$H$6="Orkney Health Board",0,IF('III Tool Overview'!$H$6="Shetland Health Board",0,IF('III Tool Overview'!$H$6="Western Isles Health Board",0,IF('III Tool Overview'!$H$6="Orkney Islands Local Authority",0,IF('III Tool Overview'!$H$6="Shetland Islands Local Authority",0,IF('III Tool Overview'!$H$6="Eilean Siar Local Authority",0,new_ci(2,B74,C74,D74,$C$1,G74,1,F74,E74*F74))))))) -> 0 | J74: =IF('III Tool Overview'!$H$6="Orkney Health Board",0,IF('III Tool Overview'!$H$6="Shetland Health Board",0,IF('III Tool Overview'!$H$6="Western Isles Health Board",0,IF('III Tool Overview'!$H$6="Orkney Islands Local Authority",0,IF('III Tool Overview'!$H$6="Shetland Islands Local Authority",0,IF('III Tool Overview'!$H$6="Eilean Siar Local Authority",0,new_ci(2,B74,C74,D74,$C$1,G74+H74,1,F74,E74*F74))))))) -> 0 | K74: =IF('III Tool Overview'!$H$6="Orkney Health Board",0,IF('III Tool Overview'!$H$6="Shetland Health Board",0,IF('III Tool Overview'!$H$6="Western Isles Health Board",0,IF('III Tool Overview'!$H$6="Orkney Islands Local Authority",0,IF('III Tool Overview'!$H$6="Shetland Islands Local Authority",0,IF('III Tool Overview'!$H$6="Eilean Siar Local Authority",0,new_ci(5,B74,C74,D74,$C$1,G74,1,F74,E74*F74))))))) -> 0 | L74: =IF('III Tool Overview'!$H$6="Orkney Health Board",0,IF('III Tool Overview'!$H$6="Shetland Health Board",0,IF('III Tool Overview'!$H$6="Western Isles Health Board",0,IF('III Tool Overview'!$H$6="Orkney Islands Local Authority",0,IF('III Tool Overview'!$H$6="Shetland Islands Local Authority",0,IF('III Tool Overview'!$H$6="Eilean Siar Local Authority",0,new_ci(5,B74,C74,D74,$C$1,G74+H74,1,F74,E74*F74))))))) -> 0 | M74: =IF('III Tool Overview'!$H$6="Orkney Health Board",0,IF('III Tool Overview'!$H$6="Shetland Health Board",0,IF('III Tool Overview'!$H$6="Western Isles Health Board",0,IF('III Tool Overview'!$H$6="Orkney Islands Local Authority",0,IF('III Tool Overview'!$H$6="Shetland Islands Local Authority",0,IF('III Tool Overview'!$H$6="Eilean Siar Local Authority",0,new_ci(10,B74,C74,D74,$C$1,G74,1,F74,E74*F74))))))) -> 0 | N74: =IF('III Tool Overview'!$H$6="Orkney Health Board",0,IF('III Tool Overview'!$H$6="Shetland Health Board",0,IF('III Tool Overview'!$H$6="Western Isles Health Board",0,IF('III Tool Overview'!$H$6="Orkney Islands Local Authority",0,IF('III Tool Overview'!$H$6="Shetland Islands Local Authority",0,IF('III Tool Overview'!$H$6="Eilean Siar Local Authority",0,new_ci(10,B74,C74,D74,$C$1,G74+H74,1,F74,E74*F74))))))) -> 0 | O74: =IF('III Tool Overview'!$H$6="Orkney Health Board",0,IF('III Tool Overview'!$H$6="Shetland Health Board",0,IF('III Tool Overview'!$H$6="Western Isles Health Board",0,IF('III Tool Overview'!$H$6="Orkney Islands Local Authority",0,IF('III Tool Overview'!$H$6="Shetland Islands Local Authority",0,IF('III Tool Overview'!$H$6="Eilean Siar Local Authority",0,new_ci(20,B74,C74,D74,$C$1,G74,1,F74,E74*F74))))))) -> 0 | P74: =IF('III Tool Overview'!$H$6="Orkney Health Board",0,IF('III Tool Overview'!$H$6="Shetland Health Board",0,IF('III Tool Overview'!$H$6="Western Isles Health Board",0,IF('III Tool Overview'!$H$6="Orkney Islands Local Authority",0,IF('III Tool Overview'!$H$6="Shetland Islands Local Authority",0,IF('III Tool Overview'!$H$6="Eilean Siar Local Authority",0,new_ci(20,B74,C74,D74,$C$1,G74+H74,1,F74,E74*F74))))))) -> 0 | Q74: =IF('III Tool Overview'!$H$6="Orkney Health Board",0,IF('III Tool Overview'!$H$6="Shetland Health Board",0,IF('III Tool Overview'!$H$6="Western Isles Health Board",0,IF('III Tool Overview'!$H$6="Orkney Islands Local Authority",0,IF('III Tool Overview'!$H$6="Shetland Islands Local Authority",0,IF('III Tool Overview'!$H$6="Eilean Siar Local Authority",0,new_yll(2,B74,C74,D74,$C$1,G74,1,F74,E74*F74))))))) -> 0 | R74: =IF('III Tool Overview'!$H$6="Orkney Health Board",0,IF('III Tool Overview'!$H$6="Shetland Health Board",0,IF('III Tool Overview'!$H$6="Western Isles Health Board",0,IF('III Tool Overview'!$H$6="Orkney Islands Local Authority",0,IF('III Tool Overview'!$H$6="Shetland Islands Local Authority",0,IF('III Tool Overview'!$H$6="Eilean Siar Local Authority",0,new_yll(2,B74,C74,D74,$C$1,G74+H74,1,F74,E74*F74))))))) -> 0 | S74: 0 | T74: =IF('III Tool Overview'!$H$6="Orkney Health Board",0,IF('III Tool Overview'!$H$6="Shetland Health Board",0,IF('III Tool Overview'!$H$6="Western Isles Health Board",0,IF('III Tool Overview'!$H$6="Orkney Islands Local Authority",0,IF('III Tool Overview'!$H$6="Shetland Islands Local Authority",0,IF('III Tool Overview'!$H$6="Eilean Siar Local Authority",0,new_yll(5,B74,C74,D74,$C$1,G74,1,F74,E74*F74))))))) -> 0 | U74: =IF('III Tool Overview'!$H$6="Orkney Health Board",0,IF('III Tool Overview'!$H$6="Shetland Health Board",0,IF('III Tool Overview'!$H$6="Western Isles Health Board",0,IF('III Tool Overview'!$H$6="Orkney Islands Local Authority",0,IF('III Tool Overview'!$H$6="Shetland Islands Local Authority",0,IF('III Tool Overview'!$H$6="Eilean Siar Local Authority",0,new_yll(5,B74,C74,D74,$C$1,G74+H74,1,F74,E74*F74))))))) -> 0 | V74: 0 | W74: =IF('III Tool Overview'!$H$6="Orkney Health Board",0,IF('III Tool Overview'!$H$6="Shetland Health Board",0,IF('III Tool Overview'!$H$6="Western Isles Health Board",0,IF('III Tool Overview'!$H$6="Orkney Islands Local Authority",0,IF('III Tool Overview'!$H$6="Shetland Islands Local Authority",0,IF('III Tool Overview'!$H$6="Eilean Siar Local Authority",0,new_yll(10,B74,C74,D74,$C$1,G74,1,F74,E74*F74))))))) -> 0 | X74: =IF('III Tool Overview'!$H$6="Orkney Health Board",0,IF('III Tool Overview'!$H$6="Shetland Health Board",0,IF('III Tool Overview'!$H$6="Western Isles Health Board",0,IF('III Tool Overview'!$H$6="Orkney Islands Local Authority",0,IF('III Tool Overview'!$H$6="Shetland Islands Local Authority",0,IF('III Tool Overview'!$H$6="Eilean Siar Local Authority",0,new_yll(10,B74,C74,D74,$C$1,G74+H74,1,F74,E74*F74))))))) -> 0 | Y74: 0 | Z74: =IF('III Tool Overview'!$H$6="Orkney Health Board",0,IF('III Tool Overview'!$H$6="Shetland Health Board",0,IF('III Tool Overview'!$H$6="Western Isles Health Board",0,IF('III Tool Overview'!$H$6="Orkney Islands Local Authority",0,IF('III Tool Overview'!$H$6="Shetland Islands Local Authority",0,IF('III Tool Overview'!$H$6="Eilean Siar Local Authority",0,new_yll(20,B74,C74,D74,$C$1,G74,1,F74,E74*F74))))))) -> 0 | AA74: =IF('III Tool Overview'!$H$6="Orkney Health Board",0,IF('III Tool Overview'!$H$6="Shetland Health Board",0,IF('III Tool Overview'!$H$6="Western Isles Health Board",0,IF('III Tool Overview'!$H$6="Orkney Islands Local Authority",0,IF('III Tool Overview'!$H$6="Shetland Islands Local Authority",0,IF('III Tool Overview'!$H$6="Eilean Siar Local Authority",0,new_yll(20,B74,C74,D74,$C$1,G74+H74,1,F74,E74*F74))))))) -> 0 | AB74: 0 | AC74: =IF('III Tool Overview'!$H$6="Orkney Health Board",0,IF('III Tool Overview'!$H$6="Shetland Health Board",0,IF('III Tool Overview'!$H$6="Western Isles Health Board",0,IF('III Tool Overview'!$H$6="Orkney Islands Local Authority",0,IF('III Tool Overview'!$H$6="Shetland Islands Local Authority",0,IF('III Tool Overview'!$H$6="Eilean Siar Local Authority",0,hosp_count(2,B74,C74,D74,$C$1,G74,1,F74,E74*F74))))))) -> 0 | AD74: =IF('III Tool Overview'!$H$6="Orkney Health Board",0,IF('III Tool Overview'!$H$6="Shetland Health Board",0,IF('III Tool Overview'!$H$6="Western Isles Health Board",0,IF('III Tool Overview'!$H$6="Orkney Islands Local Authority",0,IF('III Tool Overview'!$H$6="Shetland Islands Local Authority",0,IF('III Tool Overview'!$H$6="Eilean Siar Local Authority",0,hosp_count(2,B74,C74,D74,$C$1,G74+H74,1,F74,E74*F74))))))) -> 0 | AE74: 0 | AF74: =IF('III Tool Overview'!$H$6="Orkney Health Board",0,IF('III Tool Overview'!$H$6="Shetland Health Board",0,IF('III Tool Overview'!$H$6="Western Isles Health Board",0,IF('III Tool Overview'!$H$6="Orkney Islands Local Authority",0,IF('III Tool Overview'!$H$6="Shetland Islands Local Authority",0,IF('III Tool Overview'!$H$6="Eilean Siar Local Authority",0,hosp_count(5,B74,C74,D74,$C$1,G74,1,F74,E74*F74))))))) -> 0 | AG74: =IF('III Tool Overview'!$H$6="Orkney Health Board",0,IF('III Tool Overview'!$H$6="Shetland Health Board",0,IF('III Tool Overview'!$H$6="Western Isles Health Board",0,IF('III Tool Overview'!$H$6="Orkney Islands Local Authority",0,IF('III Tool Overview'!$H$6="Shetland Islands Local Authority",0,IF('III Tool Overview'!$H$6="Eilean Siar Local Authority",0,hosp_count(5,B74,C74,D74,$C$1,G74+H74,1,F74,E74*F74))))))) -> 0 | AH74: 0 | AI74: =IF('III Tool Overview'!$H$6="Orkney Health Board",0,IF('III Tool Overview'!$H$6="Shetland Health Board",0,IF('III Tool Overview'!$H$6="Western Isles Health Board",0,IF('III Tool Overview'!$H$6="Orkney Islands Local Authority",0,IF('III Tool Overview'!$H$6="Shetland Islands Local Authority",0,IF('III Tool Overview'!$H$6="Eilean Siar Local Authority",0,hosp_count(10,B74,C74,D74,$C$1,G74,1,F74,E74*F74))))))) -> 0 | AJ74: =IF('III Tool Overview'!$H$6="Orkney Health Board",0,IF('III Tool Overview'!$H$6="Shetland Health Board",0,IF('III Tool Overview'!$H$6="Western Isles Health Board",0,IF('III Tool Overview'!$H$6="Orkney Islands Local Authority",0,IF('III Tool Overview'!$H$6="Shetland Islands Local Authority",0,IF('III Tool Overview'!$H$6="Eilean Siar Local Authority",0,hosp_count(10,B74,C74,D74,$C$1,G74+H74,1,F74,E74*F74))))))) -> 0 | AK74: 0 | AL74: =IF('III Tool Overview'!$H$6="Orkney Health Board",0,IF('III Tool Overview'!$H$6="Shetland Health Board",0,IF('III Tool Overview'!$H$6="Western Isles Health Board",0,IF('III Tool Overview'!$H$6="Orkney Islands Local Authority",0,IF('III Tool Overview'!$H$6="Shetland Islands Local Authority",0,IF('III Tool Overview'!$H$6="Eilean Siar Local Authority",0,hosp_count(20,B74,C74,D74,$C$1,G74,1,F74,E74*F74))))))) -> 0 | AM74: =IF('III Tool Overview'!$H$6="Orkney Health Board",0,IF('III Tool Overview'!$H$6="Shetland Health Board",0,IF('III Tool Overview'!$H$6="Western Isles Health Board",0,IF('III Tool Overview'!$H$6="Orkney Islands Local Authority",0,IF('III Tool Overview'!$H$6="Shetland Islands Local Authority",0,IF('III Tool Overview'!$H$6="Eilean Siar Local Authority",0,hosp_count(20,B74,C74,D74,$C$1,G74+H74,1,F74,E74*F74))))))) -> 0 | AN74: 0
A75: Male 40-44 | B75: 42.5 | C75: male | D75: 1 | E75: =HLOOKUP('III Tool Overview'!$H$6,Prevalence!$B$2:$AV$268,Prevalence!AW71,FALSE) -> 0.3006060606 | F75: =HLOOKUP('III Tool Overview'!$H$6,LookUpData_Pop!$B$1:$AV$269,LookUpData_Pop!BB76,FALSE)/5 -> 0 | G75: ='III Tool Overview'!$H$9/110 -> 0 | H75: =IF('III Tool Overview'!$H$10="Even distribution",Targeting!C73,IF('III Tool Overview'!$H$10="Targeting to Q1",Targeting!D73,IF('III Tool Overview'!$H$10="Targeting to Q1 & Q2",Targeting!E73,IF('III Tool Overview'!$H$10="Proportionate to need",Targeting!F73)))) -> 3.272727273 | I75: =IF('III Tool Overview'!$H$6="Orkney Health Board",0,IF('III Tool Overview'!$H$6="Shetland Health Board",0,IF('III Tool Overview'!$H$6="Western Isles Health Board",0,IF('III Tool Overview'!$H$6="Orkney Islands Local Authority",0,IF('III Tool Overview'!$H$6="Shetland Islands Local Authority",0,IF('III Tool Overview'!$H$6="Eilean Siar Local Authority",0,new_ci(2,B75,C75,D75,$C$1,G75,1,F75,E75*F75))))))) -> 0 | J75: =IF('III Tool Overview'!$H$6="Orkney Health Board",0,IF('III Tool Overview'!$H$6="Shetland Health Board",0,IF('III Tool Overview'!$H$6="Western Isles Health Board",0,IF('III Tool Overview'!$H$6="Orkney Islands Local Authority",0,IF('III Tool Overview'!$H$6="Shetland Islands Local Authority",0,IF('III Tool Overview'!$H$6="Eilean Siar Local Authority",0,new_ci(2,B75,C75,D75,$C$1,G75+H75,1,F75,E75*F75))))))) -> 0 | K75: =IF('III Tool Overview'!$H$6="Orkney Health Board",0,IF('III Tool Overview'!$H$6="Shetland Health Board",0,IF('III Tool Overview'!$H$6="Western Isles Health Board",0,IF('III Tool Overview'!$H$6="Orkney Islands Local Authority",0,IF('III Tool Overview'!$H$6="Shetland Islands Local Authority",0,IF('III Tool Overview'!$H$6="Eilean Siar Local Authority",0,new_ci(5,B75,C75,D75,$C$1,G75,1,F75,E75*F75))))))) -> 0 | L75: =IF('III Tool Overview'!$H$6="Orkney Health Board",0,IF('III Tool Overview'!$H$6="Shetland Health Board",0,IF('III Tool Overview'!$H$6="Western Isles Health Board",0,IF('III Tool Overview'!$H$6="Orkney Islands Local Authority",0,IF('III Tool Overview'!$H$6="Shetland Islands Local Authority",0,IF('III Tool Overview'!$H$6="Eilean Siar Local Authority",0,new_ci(5,B75,C75,D75,$C$1,G75+H75,1,F75,E75*F75))))))) -> 0 | M75: =IF('III Tool Overview'!$H$6="Orkney Health Board",0,IF('III Tool Overview'!$H$6="Shetland Health Board",0,IF('III Tool Overview'!$H$6="Western Isles Health Board",0,IF('III Tool Overview'!$H$6="Orkney Islands Local Authority",0,IF('III Tool Overview'!$H$6="Shetland Islands Local Authority",0,IF('III Tool Overview'!$H$6="Eilean Siar Local Authority",0,new_ci(10,B75,C75,D75,$C$1,G75,1,F75,E75*F75))))))) -> 0 | N75: =IF('III Tool Overview'!$H$6="Orkney Health Board",0,IF('III Tool Overview'!$H$6="Shetland Health Board",0,IF('III Tool Overview'!$H$6="Western Isles Health Board",0,IF('III Tool Overview'!$H$6="Orkney Islands Local Authority",0,IF('III Tool Overview'!$H$6="Shetland Islands Local Authority",0,IF('III Tool Overview'!$H$6="Eilean Siar Local Authority",0,new_ci(10,B75,C75,D75,$C$1,G75+H75,1,F75,E75*F75))))))) -> 0 | O75: =IF('III Tool Overview'!$H$6="Orkney Health Board",0,IF('III Tool Overview'!$H$6="Shetland Health Board",0,IF('III Tool Overview'!$H$6="Western Isles Health Board",0,IF('III Tool Overview'!$H$6="Orkney Islands Local Authority",0,IF('III Tool Overview'!$H$6="Shetland Islands Local Authority",0,IF('III Tool Overview'!$H$6="Eilean Siar Local Authority",0,new_ci(20,B75,C75,D75,$C$1,G75,1,F75,E75*F75))))))) -> 0 | P75: =IF('III Tool Overview'!$H$6="Orkney Health Board",0,IF('III Tool Overview'!$H$6="Shetland Health Board",0,IF('III Tool Overview'!$H$6="Western Isles Health Board",0,IF('III Tool Overview'!$H$6="Orkney Islands Local Authority",0,IF('III Tool Overview'!$H$6="Shetland Islands Local Authority",0,IF('III Tool Overview'!$H$6="Eilean Siar Local Authority",0,new_ci(20,B75,C75,D75,$C$1,G75+H75,1,F75,E75*F75))))))) -> 0 | Q75: =IF('III Tool Overview'!$H$6="Orkney Health Board",0,IF('III Tool Overview'!$H$6="Shetland Health Board",0,IF('III Tool Overview'!$H$6="Western Isles Health Board",0,IF('III Tool Overview'!$H$6="Orkney Islands Local Authority",0,IF('III Tool Overview'!$H$6="Shetland Islands Local Authority",0,IF('III Tool Overview'!$H$6="Eilean Siar Local Authority",0,new_yll(2,B75,C75,D75,$C$1,G75,1,F75,E75*F75))))))) -> 0 | R75: =IF('III Tool Overview'!$H$6="Orkney Health Board",0,IF('III Tool Overview'!$H$6="Shetland Health Board",0,IF('III Tool Overview'!$H$6="Western Isles Health Board",0,IF('III Tool Overview'!$H$6="Orkney Islands Local Authority",0,IF('III Tool Overview'!$H$6="Shetland Islands Local Authority",0,IF('III Tool Overview'!$H$6="Eilean Siar Local Authority",0,new_yll(2,B75,C75,D75,$C$1,G75+H75,1,F75,E75*F75))))))) -> 0 | S75: 0 | T75: =IF('III Tool Overview'!$H$6="Orkney Health Board",0,IF('III Tool Overview'!$H$6="Shetland Health Board",0,IF('III Tool Overview'!$H$6="Western Isles Health Board",0,IF('III Tool Overview'!$H$6="Orkney Islands Local Authority",0,IF('III Tool Overview'!$H$6="Shetland Islands Local Authority",0,IF('III Tool Overview'!$H$6="Eilean Siar Local Authority",0,new_yll(5,B75,C75,D75,$C$1,G75,1,F75,E75*F75))))))) -> 0 | U75: =IF('III Tool Overview'!$H$6="Orkney Health Board",0,IF('III Tool Overview'!$H$6="Shetland Health Board",0,IF('III Tool Overview'!$H$6="Western Isles Health Board",0,IF('III Tool Overview'!$H$6="Orkney Islands Local Authority",0,IF('III Tool Overview'!$H$6="Shetland Islands Local Authority",0,IF('III Tool Overview'!$H$6="Eilean Siar Local Authority",0,new_yll(5,B75,C75,D75,$C$1,G75+H75,1,F75,E75*F75))))))) -> 0 | V75: 0 | W75: =IF('III Tool Overview'!$H$6="Orkney Health Board",0,IF('III Tool Overview'!$H$6="Shetland Health Board",0,IF('III Tool Overview'!$H$6="Western Isles Health Board",0,IF('III Tool Overview'!$H$6="Orkney Islands Local Authority",0,IF('III Tool Overview'!$H$6="Shetland Islands Local Authority",0,IF('III Tool Overview'!$H$6="Eilean Siar Local Authority",0,new_yll(10,B75,C75,D75,$C$1,G75,1,F75,E75*F75))))))) -> 0 | X75: =IF('III Tool Overview'!$H$6="Orkney Health Board",0,IF('III Tool Overview'!$H$6="Shetland Health Board",0,IF('III Tool Overview'!$H$6="Western Isles Health Board",0,IF('III Tool Overview'!$H$6="Orkney Islands Local Authority",0,IF('III Tool Overview'!$H$6="Shetland Islands Local Authority",0,IF('III Tool Overview'!$H$6="Eilean Siar Local Authority",0,new_yll(10,B75,C75,D75,$C$1,G75+H75,1,F75,E75*F75))))))) -> 0 | Y75: 0 | Z75: =IF('III Tool Overview'!$H$6="Orkney Health Board",0,IF('III Tool Overview'!$H$6="Shetland Health Board",0,IF('III Tool Overview'!$H$6="Western Isles Health Board",0,IF('III Tool Overview'!$H$6="Orkney Islands Local Authority",0,IF('III Tool Overview'!$H$6="Shetland Islands Local Authority",0,IF('III Tool Overview'!$H$6="Eilean Siar Local Authority",0,new_yll(20,B75,C75,D75,$C$1,G75,1,F75,E75*F75))))))) -> 0 | AA75: =IF('III Tool Overview'!$H$6="Orkney Health Board",0,IF('III Tool Overview'!$H$6="Shetland Health Board",0,IF('III Tool Overview'!$H$6="Western Isles Health Board",0,IF('III Tool Overview'!$H$6="Orkney Islands Local Authority",0,IF('III Tool Overview'!$H$6="Shetland Islands Local Authority",0,IF('III Tool Overview'!$H$6="Eilean Siar Local Authority",0,new_yll(20,B75,C75,D75,$C$1,G75+H75,1,F75,E75*F75))))))) -> 0 | AB75: 0 | AC75: =IF('III Tool Overview'!$H$6="Orkney Health Board",0,IF('III Tool Overview'!$H$6="Shetland Health Board",0,IF('III Tool Overview'!$H$6="Western Isles Health Board",0,IF('III Tool Overview'!$H$6="Orkney Islands Local Authority",0,IF('III Tool Overview'!$H$6="Shetland Islands Local Authority",0,IF('III Tool Overview'!$H$6="Eilean Siar Local Authority",0,hosp_count(2,B75,C75,D75,$C$1,G75,1,F75,E75*F75))))))) -> 0 | AD75: =IF('III Tool Overview'!$H$6="Orkney Health Board",0,IF('III Tool Overview'!$H$6="Shetland Health Board",0,IF('III Tool Overview'!$H$6="Western Isles Health Board",0,IF('III Tool Overview'!$H$6="Orkney Islands Local Authority",0,IF('III Tool Overview'!$H$6="Shetland Islands Local Authority",0,IF('III Tool Overview'!$H$6="Eilean Siar Local Authority",0,hosp_count(2,B75,C75,D75,$C$1,G75+H75,1,F75,E75*F75))))))) -> 0 | AE75: 0 | AF75: =IF('III Tool Overview'!$H$6="Orkney Health Board",0,IF('III Tool Overview'!$H$6="Shetland Health Board",0,IF('III Tool Overview'!$H$6="Western Isles Health Board",0,IF('III Tool Overview'!$H$6="Orkney Islands Local Authority",0,IF('III Tool Overview'!$H$6="Shetland Islands Local Authority",0,IF('III Tool Overview'!$H$6="Eilean Siar Local Authority",0,hosp_count(5,B75,C75,D75,$C$1,G75,1,F75,E75*F75))))))) -> 0 | AG75: =IF('III Tool Overview'!$H$6="Orkney Health Board",0,IF('III Tool Overview'!$H$6="Shetland Health Board",0,IF('III Tool Overview'!$H$6="Western Isles Health Board",0,IF('III Tool Overview'!$H$6="Orkney Islands Local Authority",0,IF('III Tool Overview'!$H$6="Shetland Islands Local Authority",0,IF('III Tool Overview'!$H$6="Eilean Siar Local Authority",0,hosp_count(5,B75,C75,D75,$C$1,G75+H75,1,F75,E75*F75))))))) -> 0 | AH75: 0 | AI75: =IF('III Tool Overview'!$H$6="Orkney Health Board",0,IF('III Tool Overview'!$H$6="Shetland Health Board",0,IF('III Tool Overview'!$H$6="Western Isles Health Board",0,IF('III Tool Overview'!$H$6="Orkney Islands Local Authority",0,IF('III Tool Overview'!$H$6="Shetland Islands Local Authority",0,IF('III Tool Overview'!$H$6="Eilean Siar Local Authority",0,hosp_count(10,B75,C75,D75,$C$1,G75,1,F75,E75*F75))))))) -> 0 | AJ75: =IF('III Tool Overview'!$H$6="Orkney Health Board",0,IF('III Tool Overview'!$H$6="Shetland Health Board",0,IF('III Tool Overview'!$H$6="Western Isles Health Board",0,IF('III Tool Overview'!$H$6="Orkney Islands Local Authority",0,IF('III Tool Overview'!$H$6="Shetland Islands Local Authority",0,IF('III Tool Overview'!$H$6="Eilean Siar Local Authority",0,hosp_count(10,B75,C75,D75,$C$1,G75+H75,1,F75,E75*F75))))))) -> 0 | AK75: 0 | AL75: =IF('III Tool Overview'!$H$6="Orkney Health Board",0,IF('III Tool Overview'!$H$6="Shetland Health Board",0,IF('III Tool Overview'!$H$6="Western Isles Health Board",0,IF('III Tool Overview'!$H$6="Orkney Islands Local Authority",0,IF('III Tool Overview'!$H$6="Shetland Islands Local Authority",0,IF('III Tool Overview'!$H$6="Eilean Siar Local Authority",0,hosp_count(20,B75,C75,D75,$C$1,G75,1,F75,E75*F75))))))) -> 0 | AM75: =IF('III Tool Overview'!$H$6="Orkney Health Board",0,IF('III Tool Overview'!$H$6="Shetland Health Board",0,IF('III Tool Overview'!$H$6="Western Isles Health Board",0,IF('III Tool Overview'!$H$6="Orkney Islands Local Authority",0,IF('III Tool Overview'!$H$6="Shetland Islands Local Authority",0,IF('III Tool Overview'!$H$6="Eilean Siar Local Authority",0,hosp_count(20,B75,C75,D75,$C$1,G75+H75,1,F75,E75*F75))))))) -> 0 | AN75: 0
A76: Male 45-49 | B76: 47.5 | C76: male | D76: 1 | E76: =HLOOKUP('III Tool Overview'!$H$6,Prevalence!$B$2:$AV$268,Prevalence!AW72,FALSE) -> 0.31 | F76: =HLOOKUP('III Tool Overview'!$H$6,LookUpData_Pop!$B$1:$AV$269,LookUpData_Pop!BB77,FALSE)/5 -> 0 | G76: ='III Tool Overview'!$H$9/110 -> 0 | H76: =IF('III Tool Overview'!$H$10="Even distribution",Targeting!C74,IF('III Tool Overview'!$H$10="Targeting to Q1",Targeting!D74,IF('III Tool Overview'!$H$10="Targeting to Q1 & Q2",Targeting!E74,IF('III Tool Overview'!$H$10="Proportionate to need",Targeting!F74)))) -> 3.272727273 | I76: =IF('III Tool Overview'!$H$6="Orkney Health Board",0,IF('III Tool Overview'!$H$6="Shetland Health Board",0,IF('III Tool Overview'!$H$6="Western Isles Health Board",0,IF('III Tool Overview'!$H$6="Orkney Islands Local Authority",0,IF('III Tool Overview'!$H$6="Shetland Islands Local Authority",0,IF('III Tool Overview'!$H$6="Eilean Siar Local Authority",0,new_ci(2,B76,C76,D76,$C$1,G76,1,F76,E76*F76))))))) -> 0 | J76: =IF('III Tool Overview'!$H$6="Orkney Health Board",0,IF('III Tool Overview'!$H$6="Shetland Health Board",0,IF('III Tool Overview'!$H$6="Western Isles Health Board",0,IF('III Tool Overview'!$H$6="Orkney Islands Local Authority",0,IF('III Tool Overview'!$H$6="Shetland Islands Local Authority",0,IF('III Tool Overview'!$H$6="Eilean Siar Local Authority",0,new_ci(2,B76,C76,D76,$C$1,G76+H76,1,F76,E76*F76))))))) -> 0 | K76: =IF('III Tool Overview'!$H$6="Orkney Health Board",0,IF('III Tool Overview'!$H$6="Shetland Health Board",0,IF('III Tool Overview'!$H$6="Western Isles Health Board",0,IF('III Tool Overview'!$H$6="Orkney Islands Local Authority",0,IF('III Tool Overview'!$H$6="Shetland Islands Local Authority",0,IF('III Tool Overview'!$H$6="Eilean Siar Local Authority",0,new_ci(5,B76,C76,D76,$C$1,G76,1,F76,E76*F76))))))) -> 0 | L76: =IF('III Tool Overview'!$H$6="Orkney Health Board",0,IF('III Tool Overview'!$H$6="Shetland Health Board",0,IF('III Tool Overview'!$H$6="Western Isles Health Board",0,IF('III Tool Overview'!$H$6="Orkney Islands Local Authority",0,IF('III Tool Overview'!$H$6="Shetland Islands Local Authority",0,IF('III Tool Overview'!$H$6="Eilean Siar Local Authority",0,new_ci(5,B76,C76,D76,$C$1,G76+H76,1,F76,E76*F76))))))) -> 0 | M76: =IF('III Tool Overview'!$H$6="Orkney Health Board",0,IF('III Tool Overview'!$H$6="Shetland Health Board",0,IF('III Tool Overview'!$H$6="Western Isles Health Board",0,IF('III Tool Overview'!$H$6="Orkney Islands Local Authority",0,IF('III Tool Overview'!$H$6="Shetland Islands Local Authority",0,IF('III Tool Overview'!$H$6="Eilean Siar Local Authority",0,new_ci(10,B76,C76,D76,$C$1,G76,1,F76,E76*F76))))))) -> 0 | N76: =IF('III Tool Overview'!$H$6="Orkney Health Board",0,IF('III Tool Overview'!$H$6="Shetland Health Board",0,IF('III Tool Overview'!$H$6="Western Isles Health Board",0,IF('III Tool Overview'!$H$6="Orkney Islands Local Authority",0,IF('III Tool Overview'!$H$6="Shetland Islands Local Authority",0,IF('III Tool Overview'!$H$6="Eilean Siar Local Authority",0,new_ci(10,B76,C76,D76,$C$1,G76+H76,1,F76,E76*F76))))))) -> 0 | O76: =IF('III Tool Overview'!$H$6="Orkney Health Board",0,IF('III Tool Overview'!$H$6="Shetland Health Board",0,IF('III Tool Overview'!$H$6="Western Isles Health Board",0,IF('III Tool Overview'!$H$6="Orkney Islands Local Authority",0,IF('III Tool Overview'!$H$6="Shetland Islands Local Authority",0,IF('III Tool Overview'!$H$6="Eilean Siar Local Authority",0,new_ci(20,B76,C76,D76,$C$1,G76,1,F76,E76*F76))))))) -> 0 | P76: =IF('III Tool Overview'!$H$6="Orkney Health Board",0,IF('III Tool Overview'!$H$6="Shetland Health Board",0,IF('III Tool Overview'!$H$6="Western Isles Health Board",0,IF('III Tool Overview'!$H$6="Orkney Islands Local Authority",0,IF('III Tool Overview'!$H$6="Shetland Islands Local Authority",0,IF('III Tool Overview'!$H$6="Eilean Siar Local Authority",0,new_ci(20,B76,C76,D76,$C$1,G76+H76,1,F76,E76*F76))))))) -> 0 | Q76: =IF('III Tool Overview'!$H$6="Orkney Health Board",0,IF('III Tool Overview'!$H$6="Shetland Health Board",0,IF('III Tool Overview'!$H$6="Western Isles Health Board",0,IF('III Tool Overview'!$H$6="Orkney Islands Local Authority",0,IF('III Tool Overview'!$H$6="Shetland Islands Local Authority",0,IF('III Tool Overview'!$H$6="Eilean Siar Local Authority",0,new_yll(2,B76,C76,D76,$C$1,G76,1,F76,E76*F76))))))) -> 0 | R76: =IF('III Tool Overview'!$H$6="Orkney Health Board",0,IF('III Tool Overview'!$H$6="Shetland Health Board",0,IF('III Tool Overview'!$H$6="Western Isles Health Board",0,IF('III Tool Overview'!$H$6="Orkney Islands Local Authority",0,IF('III Tool Overview'!$H$6="Shetland Islands Local Authority",0,IF('III Tool Overview'!$H$6="Eilean Siar Local Authority",0,new_yll(2,B76,C76,D76,$C$1,G76+H76,1,F76,E76*F76))))))) -> 0 | S76: 0 | T76: =IF('III Tool Overview'!$H$6="Orkney Health Board",0,IF('III Tool Overview'!$H$6="Shetland Health Board",0,IF('III Tool Overview'!$H$6="Western Isles Health Board",0,IF('III Tool Overview'!$H$6="Orkney Islands Local Authority",0,IF('III Tool Overview'!$H$6="Shetland Islands Local Authority",0,IF('III Tool Overview'!$H$6="Eilean Siar Local Authority",0,new_yll(5,B76,C76,D76,$C$1,G76,1,F76,E76*F76))))))) -> 0 | U76: =IF('III Tool Overview'!$H$6="Orkney Health Board",0,IF('III Tool Overview'!$H$6="Shetland Health Board",0,IF('III Tool Overview'!$H$6="Western Isles Health Board",0,IF('III Tool Overview'!$H$6="Orkney Islands Local Authority",0,IF('III Tool Overview'!$H$6="Shetland Islands Local Authority",0,IF('III Tool Overview'!$H$6="Eilean Siar Local Authority",0,new_yll(5,B76,C76,D76,$C$1,G76+H76,1,F76,E76*F76))))))) -> 0 | V76: 0 | W76: =IF('III Tool Overview'!$H$6="Orkney Health Board",0,IF('III Tool Overview'!$H$6="Shetland Health Board",0,IF('III Tool Overview'!$H$6="Western Isles Health Board",0,IF('III Tool Overview'!$H$6="Orkney Islands Local Authority",0,IF('III Tool Overview'!$H$6="Shetland Islands Local Authority",0,IF('III Tool Overview'!$H$6="Eilean Siar Local Authority",0,new_yll(10,B76,C76,D76,$C$1,G76,1,F76,E76*F76))))))) -> 0 | X76: =IF('III Tool Overview'!$H$6="Orkney Health Board",0,IF('III Tool Overview'!$H$6="Shetland Health Board",0,IF('III Tool Overview'!$H$6="Western Isles Health Board",0,IF('III Tool Overview'!$H$6="Orkney Islands Local Authority",0,IF('III Tool Overview'!$H$6="Shetland Islands Local Authority",0,IF('III Tool Overview'!$H$6="Eilean Siar Local Authority",0,new_yll(10,B76,C76,D76,$C$1,G76+H76,1,F76,E76*F76))))))) -> 0 | Y76: 0 | Z76: =IF('III Tool Overview'!$H$6="Orkney Health Board",0,IF('III Tool Overview'!$H$6="Shetland Health Board",0,IF('III Tool Overview'!$H$6="Western Isles Health Board",0,IF('III Tool Overview'!$H$6="Orkney Islands Local Authority",0,IF('III Tool Overview'!$H$6="Shetland Islands Local Authority",0,IF('III Tool Overview'!$H$6="Eilean Siar Local Authority",0,new_yll(20,B76,C76,D76,$C$1,G76,1,F76,E76*F76))))))) -> 0 | AA76: =IF('III Tool Overview'!$H$6="Orkney Health Board",0,IF('III Tool Overview'!$H$6="Shetland Health Board",0,IF('III Tool Overview'!$H$6="Western Isles Health Board",0,IF('III Tool Overview'!$H$6="Orkney Islands Local Authority",0,IF('III Tool Overview'!$H$6="Shetland Islands Local Authority",0,IF('III Tool Overview'!$H$6="Eilean Siar Local Authority",0,new_yll(20,B76,C76,D76,$C$1,G76+H76,1,F76,E76*F76))))))) -> 0 | AB76: 0 | AC76: =IF('III Tool Overview'!$H$6="Orkney Health Board",0,IF('III Tool Overview'!$H$6="Shetland Health Board",0,IF('III Tool Overview'!$H$6="Western Isles Health Board",0,IF('III Tool Overview'!$H$6="Orkney Islands Local Authority",0,IF('III Tool Overview'!$H$6="Shetland Islands Local Authority",0,IF('III Tool Overview'!$H$6="Eilean Siar Local Authority",0,hosp_count(2,B76,C76,D76,$C$1,G76,1,F76,E76*F76))))))) -> 0 | AD76: =IF('III Tool Overview'!$H$6="Orkney Health Board",0,IF('III Tool Overview'!$H$6="Shetland Health Board",0,IF('III Tool Overview'!$H$6="Western Isles Health Board",0,IF('III Tool Overview'!$H$6="Orkney Islands Local Authority",0,IF('III Tool Overview'!$H$6="Shetland Islands Local Authority",0,IF('III Tool Overview'!$H$6="Eilean Siar Local Authority",0,hosp_count(2,B76,C76,D76,$C$1,G76+H76,1,F76,E76*F76))))))) -> 0 | AE76: 0 | AF76: =IF('III Tool Overview'!$H$6="Orkney Health Board",0,IF('III Tool Overview'!$H$6="Shetland Health Board",0,IF('III Tool Overview'!$H$6="Western Isles Health Board",0,IF('III Tool Overview'!$H$6="Orkney Islands Local Authority",0,IF('III Tool Overview'!$H$6="Shetland Islands Local Authority",0,IF('III Tool Overview'!$H$6="Eilean Siar Local Authority",0,hosp_count(5,B76,C76,D76,$C$1,G76,1,F76,E76*F76))))))) -> 0 | AG76: =IF('III Tool Overview'!$H$6="Orkney Health Board",0,IF('III Tool Overview'!$H$6="Shetland Health Board",0,IF('III Tool Overview'!$H$6="Western Isles Health Board",0,IF('III Tool Overview'!$H$6="Orkney Islands Local Authority",0,IF('III Tool Overview'!$H$6="Shetland Islands Local Authority",0,IF('III Tool Overview'!$H$6="Eilean Siar Local Authority",0,hosp_count(5,B76,C76,D76,$C$1,G76+H76,1,F76,E76*F76))))))) -> 0 | AH76: 0 | AI76: =IF('III Tool Overview'!$H$6="Orkney Health Board",0,IF('III Tool Overview'!$H$6="Shetland Health Board",0,IF('III Tool Overview'!$H$6="Western Isles Health Board",0,IF('III Tool Overview'!$H$6="Orkney Islands Local Authority",0,IF('III Tool Overview'!$H$6="Shetland Islands Local Authority",0,IF('III Tool Overview'!$H$6="Eilean Siar Local Authority",0,hosp_count(10,B76,C76,D76,$C$1,G76,1,F76,E76*F76))))))) -> 0 | AJ76: =IF('III Tool Overview'!$H$6="Orkney Health Board",0,IF('III Tool Overview'!$H$6="Shetland Health Board",0,IF('III Tool Overview'!$H$6="Western Isles Health Board",0,IF('III Tool Overview'!$H$6="Orkney Islands Local Authority",0,IF('III Tool Overview'!$H$6="Shetland Islands Local Authority",0,IF('III Tool Overview'!$H$6="Eilean Siar Local Authority",0,hosp_count(10,B76,C76,D76,$C$1,G76+H76,1,F76,E76*F76))))))) -> 0 | AK76: 0 | AL76: =IF('III Tool Overview'!$H$6="Orkney Health Board",0,IF('III Tool Overview'!$H$6="Shetland Health Board",0,IF('III Tool Overview'!$H$6="Western Isles Health Board",0,IF('III Tool Overview'!$H$6="Orkney Islands Local Authority",0,IF('III Tool Overview'!$H$6="Shetland Islands Local Authority",0,IF('III Tool Overview'!$H$6="Eilean Siar Local Authority",0,hosp_count(20,B76,C76,D76,$C$1,G76,1,F76,E76*F76))))))) -> 0 | AM76: =IF('III Tool Overview'!$H$6="Orkney Health Board",0,IF('III Tool Overview'!$H$6="Shetland Health Board",0,IF('III Tool Overview'!$H$6="Western Isles Health Board",0,IF('III Tool Overview'!$H$6="Orkney Islands Local Authority",0,IF('III Tool Overview'!$H$6="Shetland Islands Local Authority",0,IF('III Tool Overview'!$H$6="Eilean Siar Local Authority",0,hosp_count(20,B76,C76,D76,$C$1,G76+H76,1,F76,E76*F76))))))) -> 0 | AN76: 0
A77: Male 50-54 | B77: 52.5 | C77: male | D77: 1 | E77: =HLOOKUP('III Tool Overview'!$H$6,Prevalence!$B$2:$AV$268,Prevalence!AW73,FALSE) -> 0.3663636364 | F77: =HLOOKUP('III Tool Overview'!$H$6,LookUpData_Pop!$B$1:$AV$269,LookUpData_Pop!BB78,FALSE)/5 -> 0 | G77: ='III Tool Overview'!$H$9/110 -> 0 | H77: =IF('III Tool Overview'!$H$10="Even distribution",Targeting!C75,IF('III Tool Overview'!$H$10="Targeting to Q1",Targeting!D75,IF('III Tool Overview'!$H$10="Targeting to Q1 & Q2",Targeting!E75,IF('III Tool Overview'!$H$10="Proportionate to need",Targeting!F75)))) -> 3.272727273 | I77: =IF('III Tool Overview'!$H$6="Orkney Health Board",0,IF('III Tool Overview'!$H$6="Shetland Health Board",0,IF('III Tool Overview'!$H$6="Western Isles Health Board",0,IF('III Tool Overview'!$H$6="Orkney Islands Local Authority",0,IF('III Tool Overview'!$H$6="Shetland Islands Local Authority",0,IF('III Tool Overview'!$H$6="Eilean Siar Local Authority",0,new_ci(2,B77,C77,D77,$C$1,G77,1,F77,E77*F77))))))) -> 0 | J77: =IF('III Tool Overview'!$H$6="Orkney Health Board",0,IF('III Tool Overview'!$H$6="Shetland Health Board",0,IF('III Tool Overview'!$H$6="Western Isles Health Board",0,IF('III Tool Overview'!$H$6="Orkney Islands Local Authority",0,IF('III Tool Overview'!$H$6="Shetland Islands Local Authority",0,IF('III Tool Overview'!$H$6="Eilean Siar Local Authority",0,new_ci(2,B77,C77,D77,$C$1,G77+H77,1,F77,E77*F77))))))) -> 0 | K77: =IF('III Tool Overview'!$H$6="Orkney Health Board",0,IF('III Tool Overview'!$H$6="Shetland Health Board",0,IF('III Tool Overview'!$H$6="Western Isles Health Board",0,IF('III Tool Overview'!$H$6="Orkney Islands Local Authority",0,IF('III Tool Overview'!$H$6="Shetland Islands Local Authority",0,IF('III Tool Overview'!$H$6="Eilean Siar Local Authority",0,new_ci(5,B77,C77,D77,$C$1,G77,1,F77,E77*F77))))))) -> 0 | L77: =IF('III Tool Overview'!$H$6="Orkney Health Board",0,IF('III Tool Overview'!$H$6="Shetland Health Board",0,IF('III Tool Overview'!$H$6="Western Isles Health Board",0,IF('III Tool Overview'!$H$6="Orkney Islands Local Authority",0,IF('III Tool Overview'!$H$6="Shetland Islands Local Authority",0,IF('III Tool Overview'!$H$6="Eilean Siar Local Authority",0,new_ci(5,B77,C77,D77,$C$1,G77+H77,1,F77,E77*F77))))))) -> 0 | M77: =IF('III Tool Overview'!$H$6="Orkney Health Board",0,IF('III Tool Overview'!$H$6="Shetland Health Board",0,IF('III Tool Overview'!$H$6="Western Isles Health Board",0,IF('III Tool Overview'!$H$6="Orkney Islands Local Authority",0,IF('III Tool Overview'!$H$6="Shetland Islands Local Authority",0,IF('III Tool Overview'!$H$6="Eilean Siar Local Authority",0,new_ci(10,B77,C77,D77,$C$1,G77,1,F77,E77*F77))))))) -> 0 | N77: =IF('III Tool Overview'!$H$6="Orkney Health Board",0,IF('III Tool Overview'!$H$6="Shetland Health Board",0,IF('III Tool Overview'!$H$6="Western Isles Health Board",0,IF('III Tool Overview'!$H$6="Orkney Islands Local Authority",0,IF('III Tool Overview'!$H$6="Shetland Islands Local Authority",0,IF('III Tool Overview'!$H$6="Eilean Siar Local Authority",0,new_ci(10,B77,C77,D77,$C$1,G77+H77,1,F77,E77*F77))))))) -> 0 | O77: =IF('III Tool Overview'!$H$6="Orkney Health Board",0,IF('III Tool Overview'!$H$6="Shetland Health Board",0,IF('III Tool Overview'!$H$6="Western Isles Health Board",0,IF('III Tool Overview'!$H$6="Orkney Islands Local Authority",0,IF('III Tool Overview'!$H$6="Shetland Islands Local Authority",0,IF('III Tool Overview'!$H$6="Eilean Siar Local Authority",0,new_ci(20,B77,C77,D77,$C$1,G77,1,F77,E77*F77))))))) -> 0 | P77: =IF('III Tool Overview'!$H$6="Orkney Health Board",0,IF('III Tool Overview'!$H$6="Shetland Health Board",0,IF('III Tool Overview'!$H$6="Western Isles Health Board",0,IF('III Tool Overview'!$H$6="Orkney Islands Local Authority",0,IF('III Tool Overview'!$H$6="Shetland Islands Local Authority",0,IF('III Tool Overview'!$H$6="Eilean Siar Local Authority",0,new_ci(20,B77,C77,D77,$C$1,G77+H77,1,F77,E77*F77))))))) -> 0 | Q77: =IF('III Tool Overview'!$H$6="Orkney Health Board",0,IF('III Tool Overview'!$H$6="Shetland Health Board",0,IF('III Tool Overview'!$H$6="Western Isles Health Board",0,IF('III Tool Overview'!$H$6="Orkney Islands Local Authority",0,IF('III Tool Overview'!$H$6="Shetland Islands Local Authority",0,IF('III Tool Overview'!$H$6="Eilean Siar Local Authority",0,new_yll(2,B77,C77,D77,$C$1,G77,1,F77,E77*F77))))))) -> 0 | R77: =IF('III Tool Overview'!$H$6="Orkney Health Board",0,IF('III Tool Overview'!$H$6="Shetland Health Board",0,IF('III Tool Overview'!$H$6="Western Isles Health Board",0,IF('III Tool Overview'!$H$6="Orkney Islands Local Authority",0,IF('III Tool Overview'!$H$6="Shetland Islands Local Authority",0,IF('III Tool Overview'!$H$6="Eilean Siar Local Authority",0,new_yll(2,B77,C77,D77,$C$1,G77+H77,1,F77,E77*F77))))))) -> 0 | S77: 0 | T77: =IF('III Tool Overview'!$H$6="Orkney Health Board",0,IF('III Tool Overview'!$H$6="Shetland Health Board",0,IF('III Tool Overview'!$H$6="Western Isles Health Board",0,IF('III Tool Overview'!$H$6="Orkney Islands Local Authority",0,IF('III Tool Overview'!$H$6="Shetland Islands Local Authority",0,IF('III Tool Overview'!$H$6="Eilean Siar Local Authority",0,new_yll(5,B77,C77,D77,$C$1,G77,1,F77,E77*F77))))))) -> 0 | U77: =IF('III Tool Overview'!$H$6="Orkney Health Board",0,IF('III Tool Overview'!$H$6="Shetland Health Board",0,IF('III Tool Overview'!$H$6="Western Isles Health Board",0,IF('III Tool Overview'!$H$6="Orkney Islands Local Authority",0,IF('III Tool Overview'!$H$6="Shetland Islands Local Authority",0,IF('III Tool Overview'!$H$6="Eilean Siar Local Authority",0,new_yll(5,B77,C77,D77,$C$1,G77+H77,1,F77,E77*F77))))))) -> 0 | V77: 0 | W77: =IF('III Tool Overview'!$H$6="Orkney Health Board",0,IF('III Tool Overview'!$H$6="Shetland Health Board",0,IF('III Tool Overview'!$H$6="Western Isles Health Board",0,IF('III Tool Overview'!$H$6="Orkney Islands Local Authority",0,IF('III Tool Overview'!$H$6="Shetland Islands Local Authority",0,IF('III Tool Overview'!$H$6="Eilean Siar Local Authority",0,new_yll(10,B77,C77,D77,$C$1,G77,1,F77,E77*F77))))))) -> 0 | X77: =IF('III Tool Overview'!$H$6="Orkney Health Board",0,IF('III Tool Overview'!$H$6="Shetland Health Board",0,IF('III Tool Overview'!$H$6="Western Isles Health Board",0,IF('III Tool Overview'!$H$6="Orkney Islands Local Authority",0,IF('III Tool Overview'!$H$6="Shetland Islands Local Authority",0,IF('III Tool Overview'!$H$6="Eilean Siar Local Authority",0,new_yll(10,B77,C77,D77,$C$1,G77+H77,1,F77,E77*F77))))))) -> 0 | Y77: 0 | Z77: =IF('III Tool Overview'!$H$6="Orkney Health Board",0,IF('III Tool Overview'!$H$6="Shetland Health Board",0,IF('III Tool Overview'!$H$6="Western Isles Health Board",0,IF('III Tool Overview'!$H$6="Orkney Islands Local Authority",0,IF('III Tool Overview'!$H$6="Shetland Islands Local Authority",0,IF('III Tool Overview'!$H$6="Eilean Siar Local Authority",0,new_yll(20,B77,C77,D77,$C$1,G77,1,F77,E77*F77))))))) -> 0 | AA77: =IF('III Tool Overview'!$H$6="Orkney Health Board",0,IF('III Tool Overview'!$H$6="Shetland Health Board",0,IF('III Tool Overview'!$H$6="Western Isles Health Board",0,IF('III Tool Overview'!$H$6="Orkney Islands Local Authority",0,IF('III Tool Overview'!$H$6="Shetland Islands Local Authority",0,IF('III Tool Overview'!$H$6="Eilean Siar Local Authority",0,new_yll(20,B77,C77,D77,$C$1,G77+H77,1,F77,E77*F77))))))) -> 0 | AB77: 0 | AC77: =IF('III Tool Overview'!$H$6="Orkney Health Board",0,IF('III Tool Overview'!$H$6="Shetland Health Board",0,IF('III Tool Overview'!$H$6="Western Isles Health Board",0,IF('III Tool Overview'!$H$6="Orkney Islands Local Authority",0,IF('III Tool Overview'!$H$6="Shetland Islands Local Authority",0,IF('III Tool Overview'!$H$6="Eilean Siar Local Authority",0,hosp_count(2,B77,C77,D77,$C$1,G77,1,F77,E77*F77))))))) -> 0 | AD77: =IF('III Tool Overview'!$H$6="Orkney Health Board",0,IF('III Tool Overview'!$H$6="Shetland Health Board",0,IF('III Tool Overview'!$H$6="Western Isles Health Board",0,IF('III Tool Overview'!$H$6="Orkney Islands Local Authority",0,IF('III Tool Overview'!$H$6="Shetland Islands Local Authority",0,IF('III Tool Overview'!$H$6="Eilean Siar Local Authority",0,hosp_count(2,B77,C77,D77,$C$1,G77+H77,1,F77,E77*F77))))))) -> 0 | AE77: 0 | AF77: =IF('III Tool Overview'!$H$6="Orkney Health Board",0,IF('III Tool Overview'!$H$6="Shetland Health Board",0,IF('III Tool Overview'!$H$6="Western Isles Health Board",0,IF('III Tool Overview'!$H$6="Orkney Islands Local Authority",0,IF('III Tool Overview'!$H$6="Shetland Islands Local Authority",0,IF('III Tool Overview'!$H$6="Eilean Siar Local Authority",0,hosp_count(5,B77,C77,D77,$C$1,G77,1,F77,E77*F77))))))) -> 0 | AG77: =IF('III Tool Overview'!$H$6="Orkney Health Board",0,IF('III Tool Overview'!$H$6="Shetland Health Board",0,IF('III Tool Overview'!$H$6="Western Isles Health Board",0,IF('III Tool Overview'!$H$6="Orkney Islands Local Authority",0,IF('III Tool Overview'!$H$6="Shetland Islands Local Authority",0,IF('III Tool Overview'!$H$6="Eilean Siar Local Authority",0,hosp_count(5,B77,C77,D77,$C$1,G77+H77,1,F77,E77*F77))))))) -> 0 | AH77: 0 | AI77: =IF('III Tool Overview'!$H$6="Orkney Health Board",0,IF('III Tool Overview'!$H$6="Shetland Health Board",0,IF('III Tool Overview'!$H$6="Western Isles Health Board",0,IF('III Tool Overview'!$H$6="Orkney Islands Local Authority",0,IF('III Tool Overview'!$H$6="Shetland Islands Local Authority",0,IF('III Tool Overview'!$H$6="Eilean Siar Local Authority",0,hosp_count(10,B77,C77,D77,$C$1,G77,1,F77,E77*F77))))))) -> 0 | AJ77: =IF('III Tool Overview'!$H$6="Orkney Health Board",0,IF('III Tool Overview'!$H$6="Shetland Health Board",0,IF('III Tool Overview'!$H$6="Western Isles Health Board",0,IF('III Tool Overview'!$H$6="Orkney Islands Local Authority",0,IF('III Tool Overview'!$H$6="Shetland Islands Local Authority",0,IF('III Tool Overview'!$H$6="Eilean Siar Local Authority",0,hosp_count(10,B77,C77,D77,$C$1,G77+H77,1,F77,E77*F77))))))) -> 0 | AK77: 0 | AL77: =IF('III Tool Overview'!$H$6="Orkney Health Board",0,IF('III Tool Overview'!$H$6="Shetland Health Board",0,IF('III Tool Overview'!$H$6="Western Isles Health Board",0,IF('III Tool Overview'!$H$6="Orkney Islands Local Authority",0,IF('III Tool Overview'!$H$6="Shetland Islands Local Authority",0,IF('III Tool Overview'!$H$6="Eilean Siar Local Authority",0,hosp_count(20,B77,C77,D77,$C$1,G77,1,F77,E77*F77))))))) -> 0 | AM77: =IF('III Tool Overview'!$H$6="Orkney Health Board",0,IF('III Tool Overview'!$H$6="Shetland Health Board",0,IF('III Tool Overview'!$H$6="Western Isles Health Board",0,IF('III Tool Overview'!$H$6="Orkney Islands Local Authority",0,IF('III Tool Overview'!$H$6="Shetland Islands Local Authority",0,IF('III Tool Overview'!$H$6="Eilean Siar Local Authority",0,hosp_count(20,B77,C77,D77,$C$1,G77+H77,1,F77,E77*F77))))))) -> 0 | AN77: 0
A78: Male 55-59 | B78: 57.5 | C78: male | D78: 1 | E78: =HLOOKUP('III Tool Overview'!$H$6,Prevalence!$B$2:$AV$268,Prevalence!AW74,FALSE) -> 0.5072727273 | F78: =HLOOKUP('III Tool Overview'!$H$6,LookUpData_Pop!$B$1:$AV$269,LookUpData_Pop!BB79,FALSE)/5 -> 0 | G78: ='III Tool Overview'!$H$9/110 -> 0 | H78: =IF('III Tool Overview'!$H$10="Even distribution",Targeting!C76,IF('III Tool Overview'!$H$10="Targeting to Q1",Targeting!D76,IF('III Tool Overview'!$H$10="Targeting to Q1 & Q2",Targeting!E76,IF('III Tool Overview'!$H$10="Proportionate to need",Targeting!F76)))) -> 3.272727273 | I78: =IF('III Tool Overview'!$H$6="Orkney Health Board",0,IF('III Tool Overview'!$H$6="Shetland Health Board",0,IF('III Tool Overview'!$H$6="Western Isles Health Board",0,IF('III Tool Overview'!$H$6="Orkney Islands Local Authority",0,IF('III Tool Overview'!$H$6="Shetland Islands Local Authority",0,IF('III Tool Overview'!$H$6="Eilean Siar Local Authority",0,new_ci(2,B78,C78,D78,$C$1,G78,1,F78,E78*F78))))))) -> 0 | J78: =IF('III Tool Overview'!$H$6="Orkney Health Board",0,IF('III Tool Overview'!$H$6="Shetland Health Board",0,IF('III Tool Overview'!$H$6="Western Isles Health Board",0,IF('III Tool Overview'!$H$6="Orkney Islands Local Authority",0,IF('III Tool Overview'!$H$6="Shetland Islands Local Authority",0,IF('III Tool Overview'!$H$6="Eilean Siar Local Authority",0,new_ci(2,B78,C78,D78,$C$1,G78+H78,1,F78,E78*F78))))))) -> 0 | K78: =IF('III Tool Overview'!$H$6="Orkney Health Board",0,IF('III Tool Overview'!$H$6="Shetland Health Board",0,IF('III Tool Overview'!$H$6="Western Isles Health Board",0,IF('III Tool Overview'!$H$6="Orkney Islands Local Authority",0,IF('III Tool Overview'!$H$6="Shetland Islands Local Authority",0,IF('III Tool Overview'!$H$6="Eilean Siar Local Authority",0,new_ci(5,B78,C78,D78,$C$1,G78,1,F78,E78*F78))))))) -> 0 | L78: =IF('III Tool Overview'!$H$6="Orkney Health Board",0,IF('III Tool Overview'!$H$6="Shetland Health Board",0,IF('III Tool Overview'!$H$6="Western Isles Health Board",0,IF('III Tool Overview'!$H$6="Orkney Islands Local Authority",0,IF('III Tool Overview'!$H$6="Shetland Islands Local Authority",0,IF('III Tool Overview'!$H$6="Eilean Siar Local Authority",0,new_ci(5,B78,C78,D78,$C$1,G78+H78,1,F78,E78*F78))))))) -> 0 | M78: =IF('III Tool Overview'!$H$6="Orkney Health Board",0,IF('III Tool Overview'!$H$6="Shetland Health Board",0,IF('III Tool Overview'!$H$6="Western Isles Health Board",0,IF('III Tool Overview'!$H$6="Orkney Islands Local Authority",0,IF('III Tool Overview'!$H$6="Shetland Islands Local Authority",0,IF('III Tool Overview'!$H$6="Eilean Siar Local Authority",0,new_ci(10,B78,C78,D78,$C$1,G78,1,F78,E78*F78))))))) -> 0 | N78: =IF('III Tool Overview'!$H$6="Orkney Health Board",0,IF('III Tool Overview'!$H$6="Shetland Health Board",0,IF('III Tool Overview'!$H$6="Western Isles Health Board",0,IF('III Tool Overview'!$H$6="Orkney Islands Local Authority",0,IF('III Tool Overview'!$H$6="Shetland Islands Local Authority",0,IF('III Tool Overview'!$H$6="Eilean Siar Local Authority",0,new_ci(10,B78,C78,D78,$C$1,G78+H78,1,F78,E78*F78))))))) -> 0 | O78: =IF('III Tool Overview'!$H$6="Orkney Health Board",0,IF('III Tool Overview'!$H$6="Shetland Health Board",0,IF('III Tool Overview'!$H$6="Western Isles Health Board",0,IF('III Tool Overview'!$H$6="Orkney Islands Local Authority",0,IF('III Tool Overview'!$H$6="Shetland Islands Local Authority",0,IF('III Tool Overview'!$H$6="Eilean Siar Local Authority",0,new_ci(20,B78,C78,D78,$C$1,G78,1,F78,E78*F78))))))) -> 0 | P78: =IF('III Tool Overview'!$H$6="Orkney Health Board",0,IF('III Tool Overview'!$H$6="Shetland Health Board",0,IF('III Tool Overview'!$H$6="Western Isles Health Board",0,IF('III Tool Overview'!$H$6="Orkney Islands Local Authority",0,IF('III Tool Overview'!$H$6="Shetland Islands Local Authority",0,IF('III Tool Overview'!$H$6="Eilean Siar Local Authority",0,new_ci(20,B78,C78,D78,$C$1,G78+H78,1,F78,E78*F78))))))) -> 0 | Q78: =IF('III Tool Overview'!$H$6="Orkney Health Board",0,IF('III Tool Overview'!$H$6="Shetland Health Board",0,IF('III Tool Overview'!$H$6="Western Isles Health Board",0,IF('III Tool Overview'!$H$6="Orkney Islands Local Authority",0,IF('III Tool Overview'!$H$6="Shetland Islands Local Authority",0,IF('III Tool Overview'!$H$6="Eilean Siar Local Authority",0,new_yll(2,B78,C78,D78,$C$1,G78,1,F78,E78*F78))))))) -> 0 | R78: =IF('III Tool Overview'!$H$6="Orkney Health Board",0,IF('III Tool Overview'!$H$6="Shetland Health Board",0,IF('III Tool Overview'!$H$6="Western Isles Health Board",0,IF('III Tool Overview'!$H$6="Orkney Islands Local Authority",0,IF('III Tool Overview'!$H$6="Shetland Islands Local Authority",0,IF('III Tool Overview'!$H$6="Eilean Siar Local Authority",0,new_yll(2,B78,C78,D78,$C$1,G78+H78,1,F78,E78*F78))))))) -> 0 | S78: 0 | T78: =IF('III Tool Overview'!$H$6="Orkney Health Board",0,IF('III Tool Overview'!$H$6="Shetland Health Board",0,IF('III Tool Overview'!$H$6="Western Isles Health Board",0,IF('III Tool Overview'!$H$6="Orkney Islands Local Authority",0,IF('III Tool Overview'!$H$6="Shetland Islands Local Authority",0,IF('III Tool Overview'!$H$6="Eilean Siar Local Authority",0,new_yll(5,B78,C78,D78,$C$1,G78,1,F78,E78*F78))))))) -> 0 | U78: =IF('III Tool Overview'!$H$6="Orkney Health Board",0,IF('III Tool Overview'!$H$6="Shetland Health Board",0,IF('III Tool Overview'!$H$6="Western Isles Health Board",0,IF('III Tool Overview'!$H$6="Orkney Islands Local Authority",0,IF('III Tool Overview'!$H$6="Shetland Islands Local Authority",0,IF('III Tool Overview'!$H$6="Eilean Siar Local Authority",0,new_yll(5,B78,C78,D78,$C$1,G78+H78,1,F78,E78*F78))))))) -> 0 | V78: 0 | W78: =IF('III Tool Overview'!$H$6="Orkney Health Board",0,IF('III Tool Overview'!$H$6="Shetland Health Board",0,IF('III Tool Overview'!$H$6="Western Isles Health Board",0,IF('III Tool Overview'!$H$6="Orkney Islands Local Authority",0,IF('III Tool Overview'!$H$6="Shetland Islands Local Authority",0,IF('III Tool Overview'!$H$6="Eilean Siar Local Authority",0,new_yll(10,B78,C78,D78,$C$1,G78,1,F78,E78*F78))))))) -> 0 | X78: =IF('III Tool Overview'!$H$6="Orkney Health Board",0,IF('III Tool Overview'!$H$6="Shetland Health Board",0,IF('III Tool Overview'!$H$6="Western Isles Health Board",0,IF('III Tool Overview'!$H$6="Orkney Islands Local Authority",0,IF('III Tool Overview'!$H$6="Shetland Islands Local Authority",0,IF('III Tool Overview'!$H$6="Eilean Siar Local Authority",0,new_yll(10,B78,C78,D78,$C$1,G78+H78,1,F78,E78*F78))))))) -> 0 | Y78: 0 | Z78: =IF('III Tool Overview'!$H$6="Orkney Health Board",0,IF('III Tool Overview'!$H$6="Shetland Health Board",0,IF('III Tool Overview'!$H$6="Western Isles Health Board",0,IF('III Tool Overview'!$H$6="Orkney Islands Local Authority",0,IF('III Tool Overview'!$H$6="Shetland Islands Local Authority",0,IF('III Tool Overview'!$H$6="Eilean Siar Local Authority",0,new_yll(20,B78,C78,D78,$C$1,G78,1,F78,E78*F78))))))) -> 0 | AA78: =IF('III Tool Overview'!$H$6="Orkney Health Board",0,IF('III Tool Overview'!$H$6="Shetland Health Board",0,IF('III Tool Overview'!$H$6="Western Isles Health Board",0,IF('III Tool Overview'!$H$6="Orkney Islands Local Authority",0,IF('III Tool Overview'!$H$6="Shetland Islands Local Authority",0,IF('III Tool Overview'!$H$6="Eilean Siar Local Authority",0,new_yll(20,B78,C78,D78,$C$1,G78+H78,1,F78,E78*F78))))))) -> 0 | AB78: 0 | AC78: =IF('III Tool Overview'!$H$6="Orkney Health Board",0,IF('III Tool Overview'!$H$6="Shetland Health Board",0,IF('III Tool Overview'!$H$6="Western Isles Health Board",0,IF('III Tool Overview'!$H$6="Orkney Islands Local Authority",0,IF('III Tool Overview'!$H$6="Shetland Islands Local Authority",0,IF('III Tool Overview'!$H$6="Eilean Siar Local Authority",0,hosp_count(2,B78,C78,D78,$C$1,G78,1,F78,E78*F78))))))) -> 0 | AD78: =IF('III Tool Overview'!$H$6="Orkney Health Board",0,IF('III Tool Overview'!$H$6="Shetland Health Board",0,IF('III Tool Overview'!$H$6="Western Isles Health Board",0,IF('III Tool Overview'!$H$6="Orkney Islands Local Authority",0,IF('III Tool Overview'!$H$6="Shetland Islands Local Authority",0,IF('III Tool Overview'!$H$6="Eilean Siar Local Authority",0,hosp_count(2,B78,C78,D78,$C$1,G78+H78,1,F78,E78*F78))))))) -> 0 | AE78: 0 | AF78: =IF('III Tool Overview'!$H$6="Orkney Health Board",0,IF('III Tool Overview'!$H$6="Shetland Health Board",0,IF('III Tool Overview'!$H$6="Western Isles Health Board",0,IF('III Tool Overview'!$H$6="Orkney Islands Local Authority",0,IF('III Tool Overview'!$H$6="Shetland Islands Local Authority",0,IF('III Tool Overview'!$H$6="Eilean Siar Local Authority",0,hosp_count(5,B78,C78,D78,$C$1,G78,1,F78,E78*F78))))))) -> 0 | AG78: =IF('III Tool Overview'!$H$6="Orkney Health Board",0,IF('III Tool Overview'!$H$6="Shetland Health Board",0,IF('III Tool Overview'!$H$6="Western Isles Health Board",0,IF('III Tool Overview'!$H$6="Orkney Islands Local Authority",0,IF('III Tool Overview'!$H$6="Shetland Islands Local Authority",0,IF('III Tool Overview'!$H$6="Eilean Siar Local Authority",0,hosp_count(5,B78,C78,D78,$C$1,G78+H78,1,F78,E78*F78))))))) -> 0 | AH78: 0 | AI78: =IF('III Tool Overview'!$H$6="Orkney Health Board",0,IF('III Tool Overview'!$H$6="Shetland Health Board",0,IF('III Tool Overview'!$H$6="Western Isles Health Board",0,IF('III Tool Overview'!$H$6="Orkney Islands Local Authority",0,IF('III Tool Overview'!$H$6="Shetland Islands Local Authority",0,IF('III Tool Overview'!$H$6="Eilean Siar Local Authority",0,hosp_count(10,B78,C78,D78,$C$1,G78,1,F78,E78*F78))))))) -> 0 | AJ78: =IF('III Tool Overview'!$H$6="Orkney Health Board",0,IF('III Tool Overview'!$H$6="Shetland Health Board",0,IF('III Tool Overview'!$H$6="Western Isles Health Board",0,IF('III Tool Overview'!$H$6="Orkney Islands Local Authority",0,IF('III Tool Overview'!$H$6="Shetland Islands Local Authority",0,IF('III Tool Overview'!$H$6="Eilean Siar Local Authority",0,hosp_count(10,B78,C78,D78,$C$1,G78+H78,1,F78,E78*F78))))))) -> 0 | AK78: 0 | AL78: =IF('III Tool Overview'!$H$6="Orkney Health Board",0,IF('III Tool Overview'!$H$6="Shetland Health Board",0,IF('III Tool Overview'!$H$6="Western Isles Health Board",0,IF('III Tool Overview'!$H$6="Orkney Islands Local Authority",0,IF('III Tool Overview'!$H$6="Shetland Islands Local Authority",0,IF('III Tool Overview'!$H$6="Eilean Siar Local Authority",0,hosp_count(20,B78,C78,D78,$C$1,G78,1,F78,E78*F78))))))) -> 0 | AM78: =IF('III Tool Overview'!$H$6="Orkney Health Board",0,IF('III Tool Overview'!$H$6="Shetland Health Board",0,IF('III Tool Overview'!$H$6="Western Isles Health Board",0,IF('III Tool Overview'!$H$6="Orkney Islands Local Authority",0,IF('III Tool Overview'!$H$6="Shetland Islands Local Authority",0,IF('III Tool Overview'!$H$6="Eilean Siar Local Authority",0,hosp_count(20,B78,C78,D78,$C$1,G78+H78,1,F78,E78*F78))))))) -> 0 | AN78: 0
A79: Male 60-64 | B79: 62.5 | C79: male | D79: 1 | E79: =HLOOKUP('III Tool Overview'!$H$6,Prevalence!$B$2:$AV$268,Prevalence!AW75,FALSE) -> 0.5260606061 | F79: =HLOOKUP('III Tool Overview'!$H$6,LookUpData_Pop!$B$1:$AV$269,LookUpData_Pop!BB80,FALSE)/5 -> 0 | G79: ='III Tool Overview'!$H$9/110 -> 0 | H79: =IF('III Tool Overview'!$H$10="Even distribution",Targeting!C77,IF('III Tool Overview'!$H$10="Targeting to Q1",Targeting!D77,IF('III Tool Overview'!$H$10="Targeting to Q1 & Q2",Targeting!E77,IF('III Tool Overview'!$H$10="Proportionate to need",Targeting!F77)))) -> 3.272727273 | I79: =IF('III Tool Overview'!$H$6="Orkney Health Board",0,IF('III Tool Overview'!$H$6="Shetland Health Board",0,IF('III Tool Overview'!$H$6="Western Isles Health Board",0,IF('III Tool Overview'!$H$6="Orkney Islands Local Authority",0,IF('III Tool Overview'!$H$6="Shetland Islands Local Authority",0,IF('III Tool Overview'!$H$6="Eilean Siar Local Authority",0,new_ci(2,B79,C79,D79,$C$1,G79,1,F79,E79*F79))))))) -> 0 | J79: =IF('III Tool Overview'!$H$6="Orkney Health Board",0,IF('III Tool Overview'!$H$6="Shetland Health Board",0,IF('III Tool Overview'!$H$6="Western Isles Health Board",0,IF('III Tool Overview'!$H$6="Orkney Islands Local Authority",0,IF('III Tool Overview'!$H$6="Shetland Islands Local Authority",0,IF('III Tool Overview'!$H$6="Eilean Siar Local Authority",0,new_ci(2,B79,C79,D79,$C$1,G79+H79,1,F79,E79*F79))))))) -> 0 | K79: =IF('III Tool Overview'!$H$6="Orkney Health Board",0,IF('III Tool Overview'!$H$6="Shetland Health Board",0,IF('III Tool Overview'!$H$6="Western Isles Health Board",0,IF('III Tool Overview'!$H$6="Orkney Islands Local Authority",0,IF('III Tool Overview'!$H$6="Shetland Islands Local Authority",0,IF('III Tool Overview'!$H$6="Eilean Siar Local Authority",0,new_ci(5,B79,C79,D79,$C$1,G79,1,F79,E79*F79))))))) -> 0 | L79: =IF('III Tool Overview'!$H$6="Orkney Health Board",0,IF('III Tool Overview'!$H$6="Shetland Health Board",0,IF('III Tool Overview'!$H$6="Western Isles Health Board",0,IF('III Tool Overview'!$H$6="Orkney Islands Local Authority",0,IF('III Tool Overview'!$H$6="Shetland Islands Local Authority",0,IF('III Tool Overview'!$H$6="Eilean Siar Local Authority",0,new_ci(5,B79,C79,D79,$C$1,G79+H79,1,F79,E79*F79))))))) -> 0 | M79: =IF('III Tool Overview'!$H$6="Orkney Health Board",0,IF('III Tool Overview'!$H$6="Shetland Health Board",0,IF('III Tool Overview'!$H$6="Western Isles Health Board",0,IF('III Tool Overview'!$H$6="Orkney Islands Local Authority",0,IF('III Tool Overview'!$H$6="Shetland Islands Local Authority",0,IF('III Tool Overview'!$H$6="Eilean Siar Local Authority",0,new_ci(10,B79,C79,D79,$C$1,G79,1,F79,E79*F79))))))) -> 0 | N79: =IF('III Tool Overview'!$H$6="Orkney Health Board",0,IF('III Tool Overview'!$H$6="Shetland Health Board",0,IF('III Tool Overview'!$H$6="Western Isles Health Board",0,IF('III Tool Overview'!$H$6="Orkney Islands Local Authority",0,IF('III Tool Overview'!$H$6="Shetland Islands Local Authority",0,IF('III Tool Overview'!$H$6="Eilean Siar Local Authority",0,new_ci(10,B79,C79,D79,$C$1,G79+H79,1,F79,E79*F79))))))) -> 0 | O79: =IF('III Tool Overview'!$H$6="Orkney Health Board",0,IF('III Tool Overview'!$H$6="Shetland Health Board",0,IF('III Tool Overview'!$H$6="Western Isles Health Board",0,IF('III Tool Overview'!$H$6="Orkney Islands Local Authority",0,IF('III Tool Overview'!$H$6="Shetland Islands Local Authority",0,IF('III Tool Overview'!$H$6="Eilean Siar Local Authority",0,new_ci(20,B79,C79,D79,$C$1,G79,1,F79,E79*F79))))))) -> 0 | P79: =IF('III Tool Overview'!$H$6="Orkney Health Board",0,IF('III Tool Overview'!$H$6="Shetland Health Board",0,IF('III Tool Overview'!$H$6="Western Isles Health Board",0,IF('III Tool Overview'!$H$6="Orkney Islands Local Authority",0,IF('III Tool Overview'!$H$6="Shetland Islands Local Authority",0,IF('III Tool Overview'!$H$6="Eilean Siar Local Authority",0,new_ci(20,B79,C79,D79,$C$1,G79+H79,1,F79,E79*F79))))))) -> 0 | Q79: =IF('III Tool Overview'!$H$6="Orkney Health Board",0,IF('III Tool Overview'!$H$6="Shetland Health Board",0,IF('III Tool Overview'!$H$6="Western Isles Health Board",0,IF('III Tool Overview'!$H$6="Orkney Islands Local Authority",0,IF('III Tool Overview'!$H$6="Shetland Islands Local Authority",0,IF('III Tool Overview'!$H$6="Eilean Siar Local Authority",0,new_yll(2,B79,C79,D79,$C$1,G79,1,F79,E79*F79))))))) -> 0 | R79: =IF('III Tool Overview'!$H$6="Orkney Health Board",0,IF('III Tool Overview'!$H$6="Shetland Health Board",0,IF('III Tool Overview'!$H$6="Western Isles Health Board",0,IF('III Tool Overview'!$H$6="Orkney Islands Local Authority",0,IF('III Tool Overview'!$H$6="Shetland Islands Local Authority",0,IF('III Tool Overview'!$H$6="Eilean Siar Local Authority",0,new_yll(2,B79,C79,D79,$C$1,G79+H79,1,F79,E79*F79))))))) -> 0 | S79: 0 | T79: =IF('III Tool Overview'!$H$6="Orkney Health Board",0,IF('III Tool Overview'!$H$6="Shetland Health Board",0,IF('III Tool Overview'!$H$6="Western Isles Health Board",0,IF('III Tool Overview'!$H$6="Orkney Islands Local Authority",0,IF('III Tool Overview'!$H$6="Shetland Islands Local Authority",0,IF('III Tool Overview'!$H$6="Eilean Siar Local Authority",0,new_yll(5,B79,C79,D79,$C$1,G79,1,F79,E79*F79))))))) -> 0 | U79: =IF('III Tool Overview'!$H$6="Orkney Health Board",0,IF('III Tool Overview'!$H$6="Shetland Health Board",0,IF('III Tool Overview'!$H$6="Western Isles Health Board",0,IF('III Tool Overview'!$H$6="Orkney Islands Local Authority",0,IF('III Tool Overview'!$H$6="Shetland Islands Local Authority",0,IF('III Tool Overview'!$H$6="Eilean Siar Local Authority",0,new_yll(5,B79,C79,D79,$C$1,G79+H79,1,F79,E79*F79))))))) -> 0 | V79: 0 | W79: =IF('III Tool Overview'!$H$6="Orkney Health Board",0,IF('III Tool Overview'!$H$6="Shetland Health Board",0,IF('III Tool Overview'!$H$6="Western Isles Health Board",0,IF('III Tool Overview'!$H$6="Orkney Islands Local Authority",0,IF('III Tool Overview'!$H$6="Shetland Islands Local Authority",0,IF('III Tool Overview'!$H$6="Eilean Siar Local Authority",0,new_yll(10,B79,C79,D79,$C$1,G79,1,F79,E79*F79))))))) -> 0 | X79: =IF('III Tool Overview'!$H$6="Orkney Health Board",0,IF('III Tool Overview'!$H$6="Shetland Health Board",0,IF('III Tool Overview'!$H$6="Western Isles Health Board",0,IF('III Tool Overview'!$H$6="Orkney Islands Local Authority",0,IF('III Tool Overview'!$H$6="Shetland Islands Local Authority",0,IF('III Tool Overview'!$H$6="Eilean Siar Local Authority",0,new_yll(10,B79,C79,D79,$C$1,G79+H79,1,F79,E79*F79))))))) -> 0 | Y79: 0 | Z79: =IF('III Tool Overview'!$H$6="Orkney Health Board",0,IF('III Tool Overview'!$H$6="Shetland Health Board",0,IF('III Tool Overview'!$H$6="Western Isles Health Board",0,IF('III Tool Overview'!$H$6="Orkney Islands Local Authority",0,IF('III Tool Overview'!$H$6="Shetland Islands Local Authority",0,IF('III Tool Overview'!$H$6="Eilean Siar Local Authority",0,new_yll(20,B79,C79,D79,$C$1,G79,1,F79,E79*F79))))))) -> 0 | AA79: =IF('III Tool Overview'!$H$6="Orkney Health Board",0,IF('III Tool Overview'!$H$6="Shetland Health Board",0,IF('III Tool Overview'!$H$6="Western Isles Health Board",0,IF('III Tool Overview'!$H$6="Orkney Islands Local Authority",0,IF('III Tool Overview'!$H$6="Shetland Islands Local Authority",0,IF('III Tool Overview'!$H$6="Eilean Siar Local Authority",0,new_yll(20,B79,C79,D79,$C$1,G79+H79,1,F79,E79*F79))))))) -> 0 | AB79: 0 | AC79: =IF('III Tool Overview'!$H$6="Orkney Health Board",0,IF('III Tool Overview'!$H$6="Shetland Health Board",0,IF('III Tool Overview'!$H$6="Western Isles Health Board",0,IF('III Tool Overview'!$H$6="Orkney Islands Local Authority",0,IF('III Tool Overview'!$H$6="Shetland Islands Local Authority",0,IF('III Tool Overview'!$H$6="Eilean Siar Local Authority",0,hosp_count(2,B79,C79,D79,$C$1,G79,1,F79,E79*F79))))))) -> 0 | AD79: =IF('III Tool Overview'!$H$6="Orkney Health Board",0,IF('III Tool Overview'!$H$6="Shetland Health Board",0,IF('III Tool Overview'!$H$6="Western Isles Health Board",0,IF('III Tool Overview'!$H$6="Orkney Islands Local Authority",0,IF('III Tool Overview'!$H$6="Shetland Islands Local Authority",0,IF('III Tool Overview'!$H$6="Eilean Siar Local Authority",0,hosp_count(2,B79,C79,D79,$C$1,G79+H79,1,F79,E79*F79))))))) -> 0 | AE79: 0 | AF79: =IF('III Tool Overview'!$H$6="Orkney Health Board",0,IF('III Tool Overview'!$H$6="Shetland Health Board",0,IF('III Tool Overview'!$H$6="Western Isles Health Board",0,IF('III Tool Overview'!$H$6="Orkney Islands Local Authority",0,IF('III Tool Overview'!$H$6="Shetland Islands Local Authority",0,IF('III Tool Overview'!$H$6="Eilean Siar Local Authority",0,hosp_count(5,B79,C79,D79,$C$1,G79,1,F79,E79*F79))))))) -> 0 | AG79: =IF('III Tool Overview'!$H$6="Orkney Health Board",0,IF('III Tool Overview'!$H$6="Shetland Health Board",0,IF('III Tool Overview'!$H$6="Western Isles Health Board",0,IF('III Tool Overview'!$H$6="Orkney Islands Local Authority",0,IF('III Tool Overview'!$H$6="Shetland Islands Local Authority",0,IF('III Tool Overview'!$H$6="Eilean Siar Local Authority",0,hosp_count(5,B79,C79,D79,$C$1,G79+H79,1,F79,E79*F79))))))) -> 0 | AH79: 0 | AI79: =IF('III Tool Overview'!$H$6="Orkney Health Board",0,IF('III Tool Overview'!$H$6="Shetland Health Board",0,IF('III Tool Overview'!$H$6="Western Isles Health Board",0,IF('III Tool Overview'!$H$6="Orkney Islands Local Authority",0,IF('III Tool Overview'!$H$6="Shetland Islands Local Authority",0,IF('III Tool Overview'!$H$6="Eilean Siar Local Authority",0,hosp_count(10,B79,C79,D79,$C$1,G79,1,F79,E79*F79))))))) -> 0 | AJ79: =IF('III Tool Overview'!$H$6="Orkney Health Board",0,IF('III Tool Overview'!$H$6="Shetland Health Board",0,IF('III Tool Overview'!$H$6="Western Isles Health Board",0,IF('III Tool Overview'!$H$6="Orkney Islands Local Authority",0,IF('III Tool Overview'!$H$6="Shetland Islands Local Authority",0,IF('III Tool Overview'!$H$6="Eilean Siar Local Authority",0,hosp_count(10,B79,C79,D79,$C$1,G79+H79,1,F79,E79*F79))))))) -> 0 | AK79: 0 | AL79: =IF('III Tool Overview'!$H$6="Orkney Health Board",0,IF('III Tool Overview'!$H$6="Shetland Health Board",0,IF('III Tool Overview'!$H$6="Western Isles Health Board",0,IF('III Tool Overview'!$H$6="Orkney Islands Local Authority",0,IF('III Tool Overview'!$H$6="Shetland Islands Local Authority",0,IF('III Tool Overview'!$H$6="Eilean Siar Local Authority",0,hosp_count(20,B79,C79,D79,$C$1,G79,1,F79,E79*F79))))))) -> 0 | AM79: =IF('III Tool Overview'!$H$6="Orkney Health Board",0,IF('III Tool Overview'!$H$6="Shetland Health Board",0,IF('III Tool Overview'!$H$6="Western Isles Health Board",0,IF('III Tool Overview'!$H$6="Orkney Islands Local Authority",0,IF('III Tool Overview'!$H$6="Shetland Islands Local Authority",0,IF('III Tool Overview'!$H$6="Eilean Siar Local Authority",0,hosp_count(20,B79,C79,D79,$C$1,G79+H79,1,F79,E79*F79))))))) -> 0 | AN79: 0
A80: Male 65-69 | B80: 67.5 | C80: male | D80: 1 | E80: =HLOOKUP('III Tool Overview'!$H$6,Prevalence!$B$2:$AV$268,Prevalence!AW76,FALSE) -> 0.9112121212 | F80: =HLOOKUP('III Tool Overview'!$H$6,LookUpData_Pop!$B$1:$AV$269,LookUpData_Pop!BB81,FALSE)/5 -> 0 | G80: ='III Tool Overview'!$H$9/110 -> 0 | H80: =IF('III Tool Overview'!$H$10="Even distribution",Targeting!C78,IF('III Tool Overview'!$H$10="Targeting to Q1",Targeting!D78,IF('III Tool Overview'!$H$10="Targeting to Q1 & Q2",Targeting!E78,IF('III Tool Overview'!$H$10="Proportionate to need",Targeting!F78)))) -> 3.272727273 | I80: =IF('III Tool Overview'!$H$6="Orkney Health Board",0,IF('III Tool Overview'!$H$6="Shetland Health Board",0,IF('III Tool Overview'!$H$6="Western Isles Health Board",0,IF('III Tool Overview'!$H$6="Orkney Islands Local Authority",0,IF('III Tool Overview'!$H$6="Shetland Islands Local Authority",0,IF('III Tool Overview'!$H$6="Eilean Siar Local Authority",0,new_ci(2,B80,C80,D80,$C$1,G80,1,F80,E80*F80))))))) -> 0 | J80: =IF('III Tool Overview'!$H$6="Orkney Health Board",0,IF('III Tool Overview'!$H$6="Shetland Health Board",0,IF('III Tool Overview'!$H$6="Western Isles Health Board",0,IF('III Tool Overview'!$H$6="Orkney Islands Local Authority",0,IF('III Tool Overview'!$H$6="Shetland Islands Local Authority",0,IF('III Tool Overview'!$H$6="Eilean Siar Local Authority",0,new_ci(2,B80,C80,D80,$C$1,G80+H80,1,F80,E80*F80))))))) -> 0 | K80: =IF('III Tool Overview'!$H$6="Orkney Health Board",0,IF('III Tool Overview'!$H$6="Shetland Health Board",0,IF('III Tool Overview'!$H$6="Western Isles Health Board",0,IF('III Tool Overview'!$H$6="Orkney Islands Local Authority",0,IF('III Tool Overview'!$H$6="Shetland Islands Local Authority",0,IF('III Tool Overview'!$H$6="Eilean Siar Local Authority",0,new_ci(5,B80,C80,D80,$C$1,G80,1,F80,E80*F80))))))) -> 0 | L80: =IF('III Tool Overview'!$H$6="Orkney Health Board",0,IF('III Tool Overview'!$H$6="Shetland Health Board",0,IF('III Tool Overview'!$H$6="Western Isles Health Board",0,IF('III Tool Overview'!$H$6="Orkney Islands Local Authority",0,IF('III Tool Overview'!$H$6="Shetland Islands Local Authority",0,IF('III Tool Overview'!$H$6="Eilean Siar Local Authority",0,new_ci(5,B80,C80,D80,$C$1,G80+H80,1,F80,E80*F80))))))) -> 0 | M80: =IF('III Tool Overview'!$H$6="Orkney Health Board",0,IF('III Tool Overview'!$H$6="Shetland Health Board",0,IF('III Tool Overview'!$H$6="Western Isles Health Board",0,IF('III Tool Overview'!$H$6="Orkney Islands Local Authority",0,IF('III Tool Overview'!$H$6="Shetland Islands Local Authority",0,IF('III Tool Overview'!$H$6="Eilean Siar Local Authority",0,new_ci(10,B80,C80,D80,$C$1,G80,1,F80,E80*F80))))))) -> 0 | N80: =IF('III Tool Overview'!$H$6="Orkney Health Board",0,IF('III Tool Overview'!$H$6="Shetland Health Board",0,IF('III Tool Overview'!$H$6="Western Isles Health Board",0,IF('III Tool Overview'!$H$6="Orkney Islands Local Authority",0,IF('III Tool Overview'!$H$6="Shetland Islands Local Authority",0,IF('III Tool Overview'!$H$6="Eilean Siar Local Authority",0,new_ci(10,B80,C80,D80,$C$1,G80+H80,1,F80,E80*F80))))))) -> 0 | O80: =IF('III Tool Overview'!$H$6="Orkney Health Board",0,IF('III Tool Overview'!$H$6="Shetland Health Board",0,IF('III Tool Overview'!$H$6="Western Isles Health Board",0,IF('III Tool Overview'!$H$6="Orkney Islands Local Authority",0,IF('III Tool Overview'!$H$6="Shetland Islands Local Authority",0,IF('III Tool Overview'!$H$6="Eilean Siar Local Authority",0,new_ci(20,B80,C80,D80,$C$1,G80,1,F80,E80*F80))))))) -> 0 | P80: =IF('III Tool Overview'!$H$6="Orkney Health Board",0,IF('III Tool Overview'!$H$6="Shetland Health Board",0,IF('III Tool Overview'!$H$6="Western Isles Health Board",0,IF('III Tool Overview'!$H$6="Orkney Islands Local Authority",0,IF('III Tool Overview'!$H$6="Shetland Islands Local Authority",0,IF('III Tool Overview'!$H$6="Eilean Siar Local Authority",0,new_ci(20,B80,C80,D80,$C$1,G80+H80,1,F80,E80*F80))))))) -> 0 | Q80: =IF('III Tool Overview'!$H$6="Orkney Health Board",0,IF('III Tool Overview'!$H$6="Shetland Health Board",0,IF('III Tool Overview'!$H$6="Western Isles Health Board",0,IF('III Tool Overview'!$H$6="Orkney Islands Local Authority",0,IF('III Tool Overview'!$H$6="Shetland Islands Local Authority",0,IF('III Tool Overview'!$H$6="Eilean Siar Local Authority",0,new_yll(2,B80,C80,D80,$C$1,G80,1,F80,E80*F80))))))) -> 0 | R80: =IF('III Tool Overview'!$H$6="Orkney Health Board",0,IF('III Tool Overview'!$H$6="Shetland Health Board",0,IF('III Tool Overview'!$H$6="Western Isles Health Board",0,IF('III Tool Overview'!$H$6="Orkney Islands Local Authority",0,IF('III Tool Overview'!$H$6="Shetland Islands Local Authority",0,IF('III Tool Overview'!$H$6="Eilean Siar Local Authority",0,new_yll(2,B80,C80,D80,$C$1,G80+H80,1,F80,E80*F80))))))) -> 0 | S80: 0 | T80: =IF('III Tool Overview'!$H$6="Orkney Health Board",0,IF('III Tool Overview'!$H$6="Shetland Health Board",0,IF('III Tool Overview'!$H$6="Western Isles Health Board",0,IF('III Tool Overview'!$H$6="Orkney Islands Local Authority",0,IF('III Tool Overview'!$H$6="Shetland Islands Local Authority",0,IF('III Tool Overview'!$H$6="Eilean Siar Local Authority",0,new_yll(5,B80,C80,D80,$C$1,G80,1,F80,E80*F80))))))) -> 0 | U80: =IF('III Tool Overview'!$H$6="Orkney Health Board",0,IF('III Tool Overview'!$H$6="Shetland Health Board",0,IF('III Tool Overview'!$H$6="Western Isles Health Board",0,IF('III Tool Overview'!$H$6="Orkney Islands Local Authority",0,IF('III Tool Overview'!$H$6="Shetland Islands Local Authority",0,IF('III Tool Overview'!$H$6="Eilean Siar Local Authority",0,new_yll(5,B80,C80,D80,$C$1,G80+H80,1,F80,E80*F80))))))) -> 0 | V80: 0 | W80: =IF('III Tool Overview'!$H$6="Orkney Health Board",0,IF('III Tool Overview'!$H$6="Shetland Health Board",0,IF('III Tool Overview'!$H$6="Western Isles Health Board",0,IF('III Tool Overview'!$H$6="Orkney Islands Local Authority",0,IF('III Tool Overview'!$H$6="Shetland Islands Local Authority",0,IF('III Tool Overview'!$H$6="Eilean Siar Local Authority",0,new_yll(10,B80,C80,D80,$C$1,G80,1,F80,E80*F80))))))) -> 0 | X80: =IF('III Tool Overview'!$H$6="Orkney Health Board",0,IF('III Tool Overview'!$H$6="Shetland Health Board",0,IF('III Tool Overview'!$H$6="Western Isles Health Board",0,IF('III Tool Overview'!$H$6="Orkney Islands Local Authority",0,IF('III Tool Overview'!$H$6="Shetland Islands Local Authority",0,IF('III Tool Overview'!$H$6="Eilean Siar Local Authority",0,new_yll(10,B80,C80,D80,$C$1,G80+H80,1,F80,E80*F80))))))) -> 0 | Y80: 0 | Z80: =IF('III Tool Overview'!$H$6="Orkney Health Board",0,IF('III Tool Overview'!$H$6="Shetland Health Board",0,IF('III Tool Overview'!$H$6="Western Isles Health Board",0,IF('III Tool Overview'!$H$6="Orkney Islands Local Authority",0,IF('III Tool Overview'!$H$6="Shetland Islands Local Authority",0,IF('III Tool Overview'!$H$6="Eilean Siar Local Authority",0,new_yll(20,B80,C80,D80,$C$1,G80,1,F80,E80*F80))))))) -> 0 | AA80: =IF('III Tool Overview'!$H$6="Orkney Health Board",0,IF('III Tool Overview'!$H$6="Shetland Health Board",0,IF('III Tool Overview'!$H$6="Western Isles Health Board",0,IF('III Tool Overview'!$H$6="Orkney Islands Local Authority",0,IF('III Tool Overview'!$H$6="Shetland Islands Local Authority",0,IF('III Tool Overview'!$H$6="Eilean Siar Local Authority",0,new_yll(20,B80,C80,D80,$C$1,G80+H80,1,F80,E80*F80))))))) -> 0 | AB80: 0 | AC80: =IF('III Tool Overview'!$H$6="Orkney Health Board",0,IF('III Tool Overview'!$H$6="Shetland Health Board",0,IF('III Tool Overview'!$H$6="Western Isles Health Board",0,IF('III Tool Overview'!$H$6="Orkney Islands Local Authority",0,IF('III Tool Overview'!$H$6="Shetland Islands Local Authority",0,IF('III Tool Overview'!$H$6="Eilean Siar Local Authority",0,hosp_count(2,B80,C80,D80,$C$1,G80,1,F80,E80*F80))))))) -> 0 | AD80: =IF('III Tool Overview'!$H$6="Orkney Health Board",0,IF('III Tool Overview'!$H$6="Shetland Health Board",0,IF('III Tool Overview'!$H$6="Western Isles Health Board",0,IF('III Tool Overview'!$H$6="Orkney Islands Local Authority",0,IF('III Tool Overview'!$H$6="Shetland Islands Local Authority",0,IF('III Tool Overview'!$H$6="Eilean Siar Local Authority",0,hosp_count(2,B80,C80,D80,$C$1,G80+H80,1,F80,E80*F80))))))) -> 0 | AE80: 0 | AF80: =IF('III Tool Overview'!$H$6="Orkney Health Board",0,IF('III Tool Overview'!$H$6="Shetland Health Board",0,IF('III Tool Overview'!$H$6="Western Isles Health Board",0,IF('III Tool Overview'!$H$6="Orkney Islands Local Authority",0,IF('III Tool Overview'!$H$6="Shetland Islands Local Authority",0,IF('III Tool Overview'!$H$6="Eilean Siar Local Authority",0,hosp_count(5,B80,C80,D80,$C$1,G80,1,F80,E80*F80))))))) -> 0 | AG80: =IF('III Tool Overview'!$H$6="Orkney Health Board",0,IF('III Tool Overview'!$H$6="Shetland Health Board",0,IF('III Tool Overview'!$H$6="Western Isles Health Board",0,IF('III Tool Overview'!$H$6="Orkney Islands Local Authority",0,IF('III Tool Overview'!$H$6="Shetland Islands Local Authority",0,IF('III Tool Overview'!$H$6="Eilean Siar Local Authority",0,hosp_count(5,B80,C80,D80,$C$1,G80+H80,1,F80,E80*F80))))))) -> 0 | AH80: 0 | AI80: =IF('III Tool Overview'!$H$6="Orkney Health Board",0,IF('III Tool Overview'!$H$6="Shetland Health Board",0,IF('III Tool Overview'!$H$6="Western Isles Health Board",0,IF('III Tool Overview'!$H$6="Orkney Islands Local Authority",0,IF('III Tool Overview'!$H$6="Shetland Islands Local Authority",0,IF('III Tool Overview'!$H$6="Eilean Siar Local Authority",0,hosp_count(10,B80,C80,D80,$C$1,G80,1,F80,E80*F80))))))) -> 0 | AJ80: =IF('III Tool Overview'!$H$6="Orkney Health Board",0,IF('III Tool Overview'!$H$6="Shetland Health Board",0,IF('III Tool Overview'!$H$6="Western Isles Health Board",0,IF('III Tool Overview'!$H$6="Orkney Islands Local Authority",0,IF('III Tool Overview'!$H$6="Shetland Islands Local Authority",0,IF('III Tool Overview'!$H$6="Eilean Siar Local Authority",0,hosp_count(10,B80,C80,D80,$C$1,G80+H80,1,F80,E80*F80))))))) -> 0 | AK80: 0 | AL80: =IF('III Tool Overview'!$H$6="Orkney Health Board",0,IF('III Tool Overview'!$H$6="Shetland Health Board",0,IF('III Tool Overview'!$H$6="Western Isles Health Board",0,IF('III Tool Overview'!$H$6="Orkney Islands Local Authority",0,IF('III Tool Overview'!$H$6="Shetland Islands Local Authority",0,IF('III Tool Overview'!$H$6="Eilean Siar Local Authority",0,hosp_count(20,B80,C80,D80,$C$1,G80,1,F80,E80*F80))))))) -> 0 | AM80: =IF('III Tool Overview'!$H$6="Orkney Health Board",0,IF('III Tool Overview'!$H$6="Shetland Health Board",0,IF('III Tool Overview'!$H$6="Western Isles Health Board",0,IF('III Tool Overview'!$H$6="Orkney Islands Local Authority",0,IF('III Tool Overview'!$H$6="Shetland Islands Local Authority",0,IF('III Tool Overview'!$H$6="Eilean Siar Local Authority",0,hosp_count(20,B80,C80,D80,$C$1,G80+H80,1,F80,E80*F80))))))) -> 0 | AN80: 0
A81: Male 70-74 | B81: 72.5 | C81: male | D81: 1 | E81: =HLOOKUP('III Tool Overview'!$H$6,Prevalence!$B$2:$AV$268,Prevalence!AW77,FALSE) -> 0 | F81: =HLOOKUP('III Tool Overview'!$H$6,LookUpData_Pop!$B$1:$AV$269,LookUpData_Pop!BB82,FALSE)/5 -> 0
A82: Male 75-79 | B82: 77.5 | C82: male | D82: 1 | E82: =HLOOKUP('III Tool Overview'!$H$6,Prevalence!$B$2:$AV$268,Prevalence!AW78,FALSE) -> 0 | F82: =HLOOKUP('III Tool Overview'!$H$6,LookUpData_Pop!$B$1:$AV$269,LookUpData_Pop!BB83,FALSE)/5 -> 0
A83: Male 80-84 | B83: 82.5 | C83: male | D83: 1 | E83: =HLOOKUP('III Tool Overview'!$H$6,Prevalence!$B$2:$AV$268,Prevalence!AW79,FALSE) -> 0 | F83: =HLOOKUP('III Tool Overview'!$H$6,LookUpData_Pop!$B$1:$AV$269,LookUpData_Pop!BB84,FALSE)/5 -> 0
A84: Male 85-89 | B84: 87.5 | C84: male | D84: 1 | E84: =HLOOKUP('III Tool Overview'!$H$6,Prevalence!$B$2:$AV$268,Prevalence!AW80,FALSE) -> 0 | F84: =HLOOKUP('III Tool Overview'!$H$6,LookUpData_Pop!$B$1:$AV$269,LookUpData_Pop!BB85,FALSE)/5 -> 0
A85: Male 90+ | B85: 95 | C85: male | D85: 1 | F85: =HLOOKUP('III Tool Overview'!$H$6,LookUpData_Pop!$B$1:$AV$269,LookUpData_Pop!BB86,FALSE)/5 -> 0
A86: TOTAL | F86: =SUM(F70:F80) -> 0 | G86: =SUM(G70:G80) -> 0 | H86: 36 | I86: =SUM(I70:I80) -> 0 | J86: 0 | K86: 0 | L86: 0 | M86: 0 | N86: 0 | O86: 0 | P86: 0 | Q86: 0 | R86: 0 | S86: 0 | T86: 0 | U86: 0 | V86: 0 | W86: 0 | X86: 0 | Y86: 0 | Z86: 0 | AA86: 0 | AB86: 0 | AC86: 0 | AD86: 0 | AE86: 0 | AF86: 0 | AG86: 0 | AH86: 0 | AI86: 0 | AJ86: 0 | AK86: 0 | AL86: 0 | AM86: 0 | AN86: 0
A87: Female <1 | B87: 0.5 | C87: female | D87: 1 | F87: =HLOOKUP('III Tool Overview'!$H$6,LookUpData_Pop!$B$1:$AV$269,LookUpData_Pop!BB87,FALSE)/5 -> 0
A88: Female 1-4 | B88: 2.5 | C88: female | D88: 1 | F88: =HLOOKUP('III Tool Overview'!$H$6,LookUpData_Pop!$B$1:$AV$269,LookUpData_Pop!BB88,FALSE)/5 -> 0
A89: Female 5-9 | B89: 7.5 | C89: female | D89: 1 | F89: =HLOOKUP('III Tool Overview'!$H$6,LookUpData_Pop!$B$1:$AV$269,LookUpData_Pop!BB89,FALSE)/5 -> 0
A90: Female 10-14 | B90: 12.5 | C90: female | D90: 1 | F90: =HLOOKUP('III Tool Overview'!$H$6,LookUpData_Pop!$B$1:$AV$269,LookUpData_Pop!BB90,FALSE)/5 -> 0
A91: Female 15-19 | B91: 17.5 | C91: female | D91: 1 | E91: =HLOOKUP('III Tool Overview'!$H$6,Prevalence!$B$2:$AV$268,Prevalence!AW86,FALSE) -> 0.2095238095 | F91: =HLOOKUP('III Tool Overview'!$H$6,LookUpData_Pop!$B$1:$AV$269,LookUpData_Pop!BB91,FALSE)/5 -> 0 | G91: ='III Tool Overview'!$H$9/110 -> 0 | H91: =IF('III Tool Overview'!$H$10="Even distribution",Targeting!C88,IF('III Tool Overview'!$H$10="Targeting to Q1",Targeting!D88,IF('III Tool Overview'!$H$10="Targeting to Q1 & Q2",Targeting!E88,IF('III Tool Overview'!$H$10="Proportionate to need",Targeting!F88)))) -> 3.272727273 | I91: =IF('III Tool Overview'!$H$6="Orkney Health Board",0,IF('III Tool Overview'!$H$6="Shetland Health Board",0,IF('III Tool Overview'!$H$6="Western Isles Health Board",0,IF('III Tool Overview'!$H$6="Orkney Islands Local Authority",0,IF('III Tool Overview'!$H$6="Shetland Islands Local Authority",0,IF('III Tool Overview'!$H$6="Eilean Siar Local Authority",0,new_ci(2,B91,C91,D91,$C$1,G91,1,F91,E91*F91))))))) -> 0 | J91: =IF('III Tool Overview'!$H$6="Orkney Health Board",0,IF('III Tool Overview'!$H$6="Shetland Health Board",0,IF('III Tool Overview'!$H$6="Western Isles Health Board",0,IF('III Tool Overview'!$H$6="Orkney Islands Local Authority",0,IF('III Tool Overview'!$H$6="Shetland Islands Local Authority",0,IF('III Tool Overview'!$H$6="Eilean Siar Local Authority",0,new_ci(2,B91,C91,D91,$C$1,G91+H91,1,F91,E91*F91))))))) -> 0 | K91: =IF('III Tool Overview'!$H$6="Orkney Health Board",0,IF('III Tool Overview'!$H$6="Shetland Health Board",0,IF('III Tool Overview'!$H$6="Western Isles Health Board",0,IF('III Tool Overview'!$H$6="Orkney Islands Local Authority",0,IF('III Tool Overview'!$H$6="Shetland Islands Local Authority",0,IF('III Tool Overview'!$H$6="Eilean Siar Local Authority",0,new_ci(5,B91,C91,D91,$C$1,G91,1,F91,E91*F91))))))) -> 0 | L91: =IF('III Tool Overview'!$H$6="Orkney Health Board",0,IF('III Tool Overview'!$H$6="Shetland Health Board",0,IF('III Tool Overview'!$H$6="Western Isles Health Board",0,IF('III Tool Overview'!$H$6="Orkney Islands Local Authority",0,IF('III Tool Overview'!$H$6="Shetland Islands Local Authority",0,IF('III Tool Overview'!$H$6="Eilean Siar Local Authority",0,new_ci(5,B91,C91,D91,$C$1,G91+H91,1,F91,E91*F91))))))) -> 0 | M91: =IF('III Tool Overview'!$H$6="Orkney Health Board",0,IF('III Tool Overview'!$H$6="Shetland Health Board",0,IF('III Tool Overview'!$H$6="Western Isles Health Board",0,IF('III Tool Overview'!$H$6="Orkney Islands Local Authority",0,IF('III Tool Overview'!$H$6="Shetland Islands Local Authority",0,IF('III Tool Overview'!$H$6="Eilean Siar Local Authority",0,new_ci(10,B91,C91,D91,$C$1,G91,1,F91,E91*F91))))))) -> 0 | N91: =IF('III Tool Overview'!$H$6="Orkney Health Board",0,IF('III Tool Overview'!$H$6="Shetland Health Board",0,IF('III Tool Overview'!$H$6="Western Isles Health Board",0,IF('III Tool Overview'!$H$6="Orkney Islands Local Authority",0,IF('III Tool Overview'!$H$6="Shetland Islands Local Authority",0,IF('III Tool Overview'!$H$6="Eilean Siar Local Authority",0,new_ci(10,B91,C91,D91,$C$1,G91+H91,1,F91,E91*F91))))))) -> 0 | O91: =IF('III Tool Overview'!$H$6="Orkney Health Board",0,IF('III Tool Overview'!$H$6="Shetland Health Board",0,IF('III Tool Overview'!$H$6="Western Isles Health Board",0,IF('III Tool Overview'!$H$6="Orkney Islands Local Authority",0,IF('III Tool Overview'!$H$6="Shetland Islands Local Authority",0,IF('III Tool Overview'!$H$6="Eilean Siar Local Authority",0,new_ci(20,B91,C91,D91,$C$1,G91,1,F91,E91*F91))))))) -> 0 | P91: =IF('III Tool Overview'!$H$6="Orkney Health Board",0,IF('III Tool Overview'!$H$6="Shetland Health Board",0,IF('III Tool Overview'!$H$6="Western Isles Health Board",0,IF('III Tool Overview'!$H$6="Orkney Islands Local Authority",0,IF('III Tool Overview'!$H$6="Shetland Islands Local Authority",0,IF('III Tool Overview'!$H$6="Eilean Siar Local Authority",0,new_ci(20,B91,C91,D91,$C$1,G91+H91,1,F91,E91*F91))))))) -> 0 | Q91: =IF('III Tool Overview'!$H$6="Orkney Health Board",0,IF('III Tool Overview'!$H$6="Shetland Health Board",0,IF('III Tool Overview'!$H$6="Western Isles Health Board",0,IF('III Tool Overview'!$H$6="Orkney Islands Local Authority",0,IF('III Tool Overview'!$H$6="Shetland Islands Local Authority",0,IF('III Tool Overview'!$H$6="Eilean Siar Local Authority",0,new_yll(2,B91,C91,D91,$C$1,G91,1,F91,E91*F91))))))) -> 0 | R91: =IF('III Tool Overview'!$H$6="Orkney Health Board",0,IF('III Tool Overview'!$H$6="Shetland Health Board",0,IF('III Tool Overview'!$H$6="Western Isles Health Board",0,IF('III Tool Overview'!$H$6="Orkney Islands Local Authority",0,IF('III Tool Overview'!$H$6="Shetland Islands Local Authority",0,IF('III Tool Overview'!$H$6="Eilean Siar Local Authority",0,new_yll(2,B91,C91,D91,$C$1,G91+H91,1,F91,E91*F91))))))) -> 0 | S91: =Q91-R91 -> 0 | T91: =IF('III Tool Overview'!$H$6="Orkney Health Board",0,IF('III Tool Overview'!$H$6="Shetland Health Board",0,IF('III Tool Overview'!$H$6="Western Isles Health Board",0,IF('III Tool Overview'!$H$6="Orkney Islands Local Authority",0,IF('III Tool Overview'!$H$6="Shetland Islands Local Authority",0,IF('III Tool Overview'!$H$6="Eilean Siar Local Authority",0,new_yll(5,B91,C91,D91,$C$1,G91,1,F91,E91*F91))))))) -> 0 | U91: =IF('III Tool Overview'!$H$6="Orkney Health Board",0,IF('III Tool Overview'!$H$6="Shetland Health Board",0,IF('III Tool Overview'!$H$6="Western Isles Health Board",0,IF('III Tool Overview'!$H$6="Orkney Islands Local Authority",0,IF('III Tool Overview'!$H$6="Shetland Islands Local Authority",0,IF('III Tool Overview'!$H$6="Eilean Siar Local Authority",0,new_yll(5,B91,C91,D91,$C$1,G91+H91,1,F91,E91*F91))))))) -> 0 | V91: =T91-U91 -> 0 | W91: =IF('III Tool Overview'!$H$6="Orkney Health Board",0,IF('III Tool Overview'!$H$6="Shetland Health Board",0,IF('III Tool Overview'!$H$6="Western Isles Health Board",0,IF('III Tool Overview'!$H$6="Orkney Islands Local Authority",0,IF('III Tool Overview'!$H$6="Shetland Islands Local Authority",0,IF('III Tool Overview'!$H$6="Eilean Siar Local Authority",0,new_yll(10,B91,C91,D91,$C$1,G91,1,F91,E91*F91))))))) -> 0 | X91: =IF('III Tool Overview'!$H$6="Orkney Health Board",0,IF('III Tool Overview'!$H$6="Shetland Health Board",0,IF('III Tool Overview'!$H$6="Western Isles Health Board",0,IF('III Tool Overview'!$H$6="Orkney Islands Local Authority",0,IF('III Tool Overview'!$H$6="Shetland Islands Local Authority",0,IF('III Tool Overview'!$H$6="Eilean Siar Local Authority",0,new_yll(10,B91,C91,D91,$C$1,G91+H91,1,F91,E91*F91))))))) -> 0 | Y91: =W91-X91 -> 0 | Z91: =IF('III Tool Overview'!$H$6="Orkney Health Board",0,IF('III Tool Overview'!$H$6="Shetland Health Board",0,IF('III Tool Overview'!$H$6="Western Isles Health Board",0,IF('III Tool Overview'!$H$6="Orkney Islands Local Authority",0,IF('III Tool Overview'!$H$6="Shetland Islands Local Authority",0,IF('III Tool Overview'!$H$6="Eilean Siar Local Authority",0,new_yll(20,B91,C91,D91,$C$1,G91,1,F91,E91*F91))))))) -> 0 | AA91: =IF('III Tool Overview'!$H$6="Orkney Health Board",0,IF('III Tool Overview'!$H$6="Shetland Health Board",0,IF('III Tool Overview'!$H$6="Western Isles Health Board",0,IF('III Tool Overview'!$H$6="Orkney Islands Local Authority",0,IF('III Tool Overview'!$H$6="Shetland Islands Local Authority",0,IF('III Tool Overview'!$H$6="Eilean Siar Local Authority",0,new_yll(20,B91,C91,D91,$C$1,G91+H91,1,F91,E91*F91))))))) -> 0 | AB91: =Z91-AA91 -> 0 | AC91: =IF('III Tool Overview'!$H$6="Orkney Health Board",0,IF('III Tool Overview'!$H$6="Shetland Health Board",0,IF('III Tool Overview'!$H$6="Western Isles Health Board",0,IF('III Tool Overview'!$H$6="Orkney Islands Local Authority",0,IF('III Tool Overview'!$H$6="Shetland Islands Local Authority",0,IF('III Tool Overview'!$H$6="Eilean Siar Local Authority",0,hosp_count(2,B91,C91,D91,$C$1,G91,1,F91,E91*F91))))))) -> 0 | AD91: =IF('III Tool Overview'!$H$6="Orkney Health Board",0,IF('III Tool Overview'!$H$6="Shetland Health Board",0,IF('III Tool Overview'!$H$6="Western Isles Health Board",0,IF('III Tool Overview'!$H$6="Orkney Islands Local Authority",0,IF('III Tool Overview'!$H$6="Shetland Islands Local Authority",0,IF('III Tool Overview'!$H$6="Eilean Siar Local Authority",0,hosp_count(2,B91,C91,D91,$C$1,G91+H91,1,F91,E91*F91))))))) -> 0 | AE91: =AC91-AD91 -> 0 | AF91: =IF('III Tool Overview'!$H$6="Orkney Health Board",0,IF('III Tool Overview'!$H$6="Shetland Health Board",0,IF('III Tool Overview'!$H$6="Western Isles Health Board",0,IF('III Tool Overview'!$H$6="Orkney Islands Local Authority",0,IF('III Tool Overview'!$H$6="Shetland Islands Local Authority",0,IF('III Tool Overview'!$H$6="Eilean Siar Local Authority",0,hosp_count(5,B91,C91,D91,$C$1,G91,1,F91,E91*F91))))))) -> 0 | AG91: =IF('III Tool Overview'!$H$6="Orkney Health Board",0,IF('III Tool Overview'!$H$6="Shetland Health Board",0,IF('III Tool Overview'!$H$6="Western Isles Health Board",0,IF('III Tool Overview'!$H$6="Orkney Islands Local Authority",0,IF('III Tool Overview'!$H$6="Shetland Islands Local Authority",0,IF('III Tool Overview'!$H$6="Eilean Siar Local Authority",0,hosp_count(5,B91,C91,D91,$C$1,G91+H91,1,F91,E91*F91))))))) -> 0 | AH91: =AF91-AG91 -> 0 | AI91: =IF('III Tool Overview'!$H$6="Orkney Health Board",0,IF('III Tool Overview'!$H$6="Shetland Health Board",0,IF('III Tool Overview'!$H$6="Western Isles Health Board",0,IF('III Tool Overview'!$H$6="Orkney Islands Local Authority",0,IF('III Tool Overview'!$H$6="Shetland Islands Local Authority",0,IF('III Tool Overview'!$H$6="Eilean Siar Local Authority",0,hosp_count(10,B91,C91,D91,$C$1,G91,1,F91,E91*F91))))))) -> 0 | AJ91: =IF('III Tool Overview'!$H$6="Orkney Health Board",0,IF('III Tool Overview'!$H$6="Shetland Health Board",0,IF('III Tool Overview'!$H$6="Western Isles Health Board",0,IF('III Tool Overview'!$H$6="Orkney Islands Local Authority",0,IF('III Tool Overview'!$H$6="Shetland Islands Local Authority",0,IF('III Tool Overview'!$H$6="Eilean Siar Local Authority",0,hosp_count(10,B91,C91,D91,$C$1,G91+H91,1,F91,E91*F91))))))) -> 0 | AK91: =AI91-AJ91 -> 0 | AL91: =IF('III Tool Overview'!$H$6="Orkney Health Board",0,IF('III Tool Overview'!$H$6="Shetland Health Board",0,IF('III Tool Overview'!$H$6="Western Isles Health Board",0,IF('III Tool Overview'!$H$6="Orkney Islands Local Authority",0,IF('III Tool Overview'!$H$6="Shetland Islands Local Authority",0,IF('III Tool Overview'!$H$6="Eilean Siar Local Authority",0,hosp_count(20,B91,C91,D91,$C$1,G91,1,F91,E91*F91))))))) -> 0 | AM91: =IF('III Tool Overview'!$H$6="Orkney Health Board",0,IF('III Tool Overview'!$H$6="Shetland Health Board",0,IF('III Tool Overview'!$H$6="Western Isles Health Board",0,IF('III Tool Overview'!$H$6="Orkney Islands Local Authority",0,IF('III Tool Overview'!$H$6="Shetland Islands Local Authority",0,IF('III Tool Overview'!$H$6="Eilean Siar Local Authority",0,hosp_count(20,B91,C91,D91,$C$1,G91+H91,1,F91,E91*F91))))))) -> 0 | AN91: =AL91-AM91 -> 0
A92: Female 20-24 | B92: 22.5 | C92: female | D92: 1 | E92: =HLOOKUP('III Tool Overview'!$H$6,Prevalence!$B$2:$AV$268,Prevalence!AW87,FALSE) -> 0.3142857143 | F92: =HLOOKUP('III Tool Overview'!$H$6,LookUpData_Pop!$B$1:$AV$269,LookUpData_Pop!BB92,FALSE)/5 -> 0 | G92: ='III Tool Overview'!$H$9/110 -> 0 | H92: =IF('III Tool Overview'!$H$10="Even distribution",Targeting!C89,IF('III Tool Overview'!$H$10="Targeting to Q1",Targeting!D89,IF('III Tool Overview'!$H$10="Targeting to Q1 & Q2",Targeting!E89,IF('III Tool Overview'!$H$10="Proportionate to need",Targeting!F89)))) -> 3.272727273 | I92: =IF('III Tool Overview'!$H$6="Orkney Health Board",0,IF('III Tool Overview'!$H$6="Shetland Health Board",0,IF('III Tool Overview'!$H$6="Western Isles Health Board",0,IF('III Tool Overview'!$H$6="Orkney Islands Local Authority",0,IF('III Tool Overview'!$H$6="Shetland Islands Local Authority",0,IF('III Tool Overview'!$H$6="Eilean Siar Local Authority",0,new_ci(2,B92,C92,D92,$C$1,G92,1,F92,E92*F92))))))) -> 0 | J92: =IF('III Tool Overview'!$H$6="Orkney Health Board",0,IF('III Tool Overview'!$H$6="Shetland Health Board",0,IF('III Tool Overview'!$H$6="Western Isles Health Board",0,IF('III Tool Overview'!$H$6="Orkney Islands Local Authority",0,IF('III Tool Overview'!$H$6="Shetland Islands Local Authority",0,IF('III Tool Overview'!$H$6="Eilean Siar Local Authority",0,new_ci(2,B92,C92,D92,$C$1,G92+H92,1,F92,E92*F92))))))) -> 0 | K92: =IF('III Tool Overview'!$H$6="Orkney Health Board",0,IF('III Tool Overview'!$H$6="Shetland Health Board",0,IF('III Tool Overview'!$H$6="Western Isles Health Board",0,IF('III Tool Overview'!$H$6="Orkney Islands Local Authority",0,IF('III Tool Overview'!$H$6="Shetland Islands Local Authority",0,IF('III Tool Overview'!$H$6="Eilean Siar Local Authority",0,new_ci(5,B92,C92,D92,$C$1,G92,1,F92,E92*F92))))))) -> 0 | L92: =IF('III Tool Overview'!$H$6="Orkney Health Board",0,IF('III Tool Overview'!$H$6="Shetland Health Board",0,IF('III Tool Overview'!$H$6="Western Isles Health Board",0,IF('III Tool Overview'!$H$6="Orkney Islands Local Authority",0,IF('III Tool Overview'!$H$6="Shetland Islands Local Authority",0,IF('III Tool Overview'!$H$6="Eilean Siar Local Authority",0,new_ci(5,B92,C92,D92,$C$1,G92+H92,1,F92,E92*F92))))))) -> 0 | M92: =IF('III Tool Overview'!$H$6="Orkney Health Board",0,IF('III Tool Overview'!$H$6="Shetland Health Board",0,IF('III Tool Overview'!$H$6="Western Isles Health Board",0,IF('III Tool Overview'!$H$6="Orkney Islands Local Authority",0,IF('III Tool Overview'!$H$6="Shetland Islands Local Authority",0,IF('III Tool Overview'!$H$6="Eilean Siar Local Authority",0,new_ci(10,B92,C92,D92,$C$1,G92,1,F92,E92*F92))))))) -> 0 | N92: =IF('III Tool Overview'!$H$6="Orkney Health Board",0,IF('III Tool Overview'!$H$6="Shetland Health Board",0,IF('III Tool Overview'!$H$6="Western Isles Health Board",0,IF('III Tool Overview'!$H$6="Orkney Islands Local Authority",0,IF('III Tool Overview'!$H$6="Shetland Islands Local Authority",0,IF('III Tool Overview'!$H$6="Eilean Siar Local Authority",0,new_ci(10,B92,C92,D92,$C$1,G92+H92,1,F92,E92*F92))))))) -> 0 | O92: =IF('III Tool Overview'!$H$6="Orkney Health Board",0,IF('III Tool Overview'!$H$6="Shetland Health Board",0,IF('III Tool Overview'!$H$6="Western Isles Health Board",0,IF('III Tool Overview'!$H$6="Orkney Islands Local Authority",0,IF('III Tool Overview'!$H$6="Shetland Islands Local Authority",0,IF('III Tool Overview'!$H$6="Eilean Siar Local Authority",0,new_ci(20,B92,C92,D92,$C$1,G92,1,F92,E92*F92))))))) -> 0 | P92: =IF('III Tool Overview'!$H$6="Orkney Health Board",0,IF('III Tool Overview'!$H$6="Shetland Health Board",0,IF('III Tool Overview'!$H$6="Western Isles Health Board",0,IF('III Tool Overview'!$H$6="Orkney Islands Local Authority",0,IF('III Tool Overview'!$H$6="Shetland Islands Local Authority",0,IF('III Tool Overview'!$H$6="Eilean Siar Local Authority",0,new_ci(20,B92,C92,D92,$C$1,G92+H92,1,F92,E92*F92))))))) -> 0 | Q92: =IF('III Tool Overview'!$H$6="Orkney Health Board",0,IF('III Tool Overview'!$H$6="Shetland Health Board",0,IF('III Tool Overview'!$H$6="Western Isles Health Board",0,IF('III Tool Overview'!$H$6="Orkney Islands Local Authority",0,IF('III Tool Overview'!$H$6="Shetland Islands Local Authority",0,IF('III Tool Overview'!$H$6="Eilean Siar Local Authority",0,new_yll(2,B92,C92,D92,$C$1,G92,1,F92,E92*F92))))))) -> 0 | R92: =IF('III Tool Overview'!$H$6="Orkney Health Board",0,IF('III Tool Overview'!$H$6="Shetland Health Board",0,IF('III Tool Overview'!$H$6="Western Isles Health Board",0,IF('III Tool Overview'!$H$6="Orkney Islands Local Authority",0,IF('III Tool Overview'!$H$6="Shetland Islands Local Authority",0,IF('III Tool Overview'!$H$6="Eilean Siar Local Authority",0,new_yll(2,B92,C92,D92,$C$1,G92+H92,1,F92,E92*F92))))))) -> 0 | S92: =Q92-R92 -> 0 | T92: =IF('III Tool Overview'!$H$6="Orkney Health Board",0,IF('III Tool Overview'!$H$6="Shetland Health Board",0,IF('III Tool Overview'!$H$6="Western Isles Health Board",0,IF('III Tool Overview'!$H$6="Orkney Islands Local Authority",0,IF('III Tool Overview'!$H$6="Shetland Islands Local Authority",0,IF('III Tool Overview'!$H$6="Eilean Siar Local Authority",0,new_yll(5,B92,C92,D92,$C$1,G92,1,F92,E92*F92))))))) -> 0 | U92: =IF('III Tool Overview'!$H$6="Orkney Health Board",0,IF('III Tool Overview'!$H$6="Shetland Health Board",0,IF('III Tool Overview'!$H$6="Western Isles Health Board",0,IF('III Tool Overview'!$H$6="Orkney Islands Local Authority",0,IF('III Tool Overview'!$H$6="Shetland Islands Local Authority",0,IF('III Tool Overview'!$H$6="Eilean Siar Local Authority",0,new_yll(5,B92,C92,D92,$C$1,G92+H92,1,F92,E92*F92))))))) -> 0 | V92: =T92-U92 -> 0 | W92: =IF('III Tool Overview'!$H$6="Orkney Health Board",0,IF('III Tool Overview'!$H$6="Shetland Health Board",0,IF('III Tool Overview'!$H$6="Western Isles Health Board",0,IF('III Tool Overview'!$H$6="Orkney Islands Local Authority",0,IF('III Tool Overview'!$H$6="Shetland Islands Local Authority",0,IF('III Tool Overview'!$H$6="Eilean Siar Local Authority",0,new_yll(10,B92,C92,D92,$C$1,G92,1,F92,E92*F92))))))) -> 0 | X92: =IF('III Tool Overview'!$H$6="Orkney Health Board",0,IF('III Tool Overview'!$H$6="Shetland Health Board",0,IF('III Tool Overview'!$H$6="Western Isles Health Board",0,IF('III Tool Overview'!$H$6="Orkney Islands Local Authority",0,IF('III Tool Overview'!$H$6="Shetland Islands Local Authority",0,IF('III Tool Overview'!$H$6="Eilean Siar Local Authority",0,new_yll(10,B92,C92,D92,$C$1,G92+H92,1,F92,E92*F92))))))) -> 0 | Y92: =W92-X92 -> 0 | Z92: =IF('III Tool Overview'!$H$6="Orkney Health Board",0,IF('III Tool Overview'!$H$6="Shetland Health Board",0,IF('III Tool Overview'!$H$6="Western Isles Health Board",0,IF('III Tool Overview'!$H$6="Orkney Islands Local Authority",0,IF('III Tool Overview'!$H$6="Shetland Islands Local Authority",0,IF('III Tool Overview'!$H$6="Eilean Siar Local Authority",0,new_yll(20,B92,C92,D92,$C$1,G92,1,F92,E92*F92))))))) -> 0 | AA92: =IF('III Tool Overview'!$H$6="Orkney Health Board",0,IF('III Tool Overview'!$H$6="Shetland Health Board",0,IF('III Tool Overview'!$H$6="Western Isles Health Board",0,IF('III Tool Overview'!$H$6="Orkney Islands Local Authority",0,IF('III Tool Overview'!$H$6="Shetland Islands Local Authority",0,IF('III Tool Overview'!$H$6="Eilean Siar Local Authority",0,new_yll(20,B92,C92,D92,$C$1,G92+H92,1,F92,E92*F92))))))) -> 0 | AB92: =Z92-AA92 -> 0 | AC92: =IF('III Tool Overview'!$H$6="Orkney Health Board",0,IF('III Tool Overview'!$H$6="Shetland Health Board",0,IF('III Tool Overview'!$H$6="Western Isles Health Board",0,IF('III Tool Overview'!$H$6="Orkney Islands Local Authority",0,IF('III Tool Overview'!$H$6="Shetland Islands Local Authority",0,IF('III Tool Overview'!$H$6="Eilean Siar Local Authority",0,hosp_count(2,B92,C92,D92,$C$1,G92,1,F92,E92*F92))))))) -> 0 | AD92: =IF('III Tool Overview'!$H$6="Orkney Health Board",0,IF('III Tool Overview'!$H$6="Shetland Health Board",0,IF('III Tool Overview'!$H$6="Western Isles Health Board",0,IF('III Tool Overview'!$H$6="Orkney Islands Local Authority",0,IF('III Tool Overview'!$H$6="Shetland Islands Local Authority",0,IF('III Tool Overview'!$H$6="Eilean Siar Local Authority",0,hosp_count(2,B92,C92,D92,$C$1,G92+H92,1,F92,E92*F92))))))) -> 0 | AE92: =AC92-AD92 -> 0 | AF92: =IF('III Tool Overview'!$H$6="Orkney Health Board",0,IF('III Tool Overview'!$H$6="Shetland Health Board",0,IF('III Tool Overview'!$H$6="Western Isles Health Board",0,IF('III Tool Overview'!$H$6="Orkney Islands Local Authority",0,IF('III Tool Overview'!$H$6="Shetland Islands Local Authority",0,IF('III Tool Overview'!$H$6="Eilean Siar Local Authority",0,hosp_count(5,B92,C92,D92,$C$1,G92,1,F92,E92*F92))))))) -> 0 | AG92: =IF('III Tool Overview'!$H$6="Orkney Health Board",0,IF('III Tool Overview'!$H$6="Shetland Health Board",0,IF('III Tool Overview'!$H$6="Western Isles Health Board",0,IF('III Tool Overview'!$H$6="Orkney Islands Local Authority",0,IF('III Tool Overview'!$H$6="Shetland Islands Local Authority",0,IF('III Tool Overview'!$H$6="Eilean Siar Local Authority",0,hosp_count(5,B92,C92,D92,$C$1,G92+H92,1,F92,E92*F92))))))) -> 0 | AH92: =AF92-AG92 -> 0 | AI92: =IF('III Tool Overview'!$H$6="Orkney Health Board",0,IF('III Tool Overview'!$H$6="Shetland Health Board",0,IF('III Tool Overview'!$H$6="Western Isles Health Board",0,IF('III Tool Overview'!$H$6="Orkney Islands Local Authority",0,IF('III Tool Overview'!$H$6="Shetland Islands Local Authority",0,IF('III Tool Overview'!$H$6="Eilean Siar Local Authority",0,hosp_count(10,B92,C92,D92,$C$1,G92,1,F92,E92*F92))))))) -> 0 | AJ92: =IF('III Tool Overview'!$H$6="Orkney Health Board",0,IF('III Tool Overview'!$H$6="Shetland Health Board",0,IF('III Tool Overview'!$H$6="Western Isles Health Board",0,IF('III Tool Overview'!$H$6="Orkney Islands Local Authority",0,IF('III Tool Overview'!$H$6="Shetland Islands Local Authority",0,IF('III Tool Overview'!$H$6="Eilean Siar Local Authority",0,hosp_count(10,B92,C92,D92,$C$1,G92+H92,1,F92,E92*F92))))))) -> 0 | AK92: =AI92-AJ92 -> 0 | AL92: =IF('III Tool Overview'!$H$6="Orkney Health Board",0,IF('III Tool Overview'!$H$6="Shetland Health Board",0,IF('III Tool Overview'!$H$6="Western Isles Health Board",0,IF('III Tool Overview'!$H$6="Orkney Islands Local Authority",0,IF('III Tool Overview'!$H$6="Shetland Islands Local Authority",0,IF('III Tool Overview'!$H$6="Eilean Siar Local Authority",0,hosp_count(20,B92,C92,D92,$C$1,G92,1,F92,E92*F92))))))) -> 0 | AM92: =IF('III Tool Overview'!$H$6="Orkney Health Board",0,IF('III Tool Overview'!$H$6="Shetland Health Board",0,IF('III Tool Overview'!$H$6="Western Isles Health Board",0,IF('III Tool Overview'!$H$6="Orkney Islands Local Authority",0,IF('III Tool Overview'!$H$6="Shetland Islands Local Authority",0,IF('III Tool Overview'!$H$6="Eilean Siar Local Authority",0,hosp_count(20,B92,C92,D92,$C$1,G92+H92,1,F92,E92*F92))))))) -> 0 | AN92: =AL92-AM92 -> 0
A93: Female 25-29 | B93: 27.5 | C93: female | D93: 1 | E93: =HLOOKUP('III Tool Overview'!$H$6,Prevalence!$B$2:$AV$268,Prevalence!AW88,FALSE) -> 0.4095238095 | F93: =HLOOKUP('III Tool Overview'!$H$6,LookUpData_Pop!$B$1:$AV$269,LookUpData_Pop!BB93,FALSE)/5 -> 0 | G93: ='III Tool Overview'!$H$9/110 -> 0 | H93: =IF('III Tool Overview'!$H$10="Even distribution",Targeting!C90,IF('III Tool Overview'!$H$10="Targeting to Q1",Targeting!D90,IF('III Tool Overview'!$H$10="Targeting to Q1 & Q2",Targeting!E90,IF('III Tool Overview'!$H$10="Proportionate to need",Targeting!F90)))) -> 3.272727273 | I93: =IF('III Tool Overview'!$H$6="Orkney Health Board",0,IF('III Tool Overview'!$H$6="Shetland Health Board",0,IF('III Tool Overview'!$H$6="Western Isles Health Board",0,IF('III Tool Overview'!$H$6="Orkney Islands Local Authority",0,IF('III Tool Overview'!$H$6="Shetland Islands Local Authority",0,IF('III Tool Overview'!$H$6="Eilean Siar Local Authority",0,new_ci(2,B93,C93,D93,$C$1,G93,1,F93,E93*F93))))))) -> 0 | J93: =IF('III Tool Overview'!$H$6="Orkney Health Board",0,IF('III Tool Overview'!$H$6="Shetland Health Board",0,IF('III Tool Overview'!$H$6="Western Isles Health Board",0,IF('III Tool Overview'!$H$6="Orkney Islands Local Authority",0,IF('III Tool Overview'!$H$6="Shetland Islands Local Authority",0,IF('III Tool Overview'!$H$6="Eilean Siar Local Authority",0,new_ci(2,B93,C93,D93,$C$1,G93+H93,1,F93,E93*F93))))))) -> 0 | K93: =IF('III Tool Overview'!$H$6="Orkney Health Board",0,IF('III Tool Overview'!$H$6="Shetland Health Board",0,IF('III Tool Overview'!$H$6="Western Isles Health Board",0,IF('III Tool Overview'!$H$6="Orkney Islands Local Authority",0,IF('III Tool Overview'!$H$6="Shetland Islands Local Authority",0,IF('III Tool Overview'!$H$6="Eilean Siar Local Authority",0,new_ci(5,B93,C93,D93,$C$1,G93,1,F93,E93*F93))))))) -> 0 | L93: =IF('III Tool Overview'!$H$6="Orkney Health Board",0,IF('III Tool Overview'!$H$6="Shetland Health Board",0,IF('III Tool Overview'!$H$6="Western Isles Health Board",0,IF('III Tool Overview'!$H$6="Orkney Islands Local Authority",0,IF('III Tool Overview'!$H$6="Shetland Islands Local Authority",0,IF('III Tool Overview'!$H$6="Eilean Siar Local Authority",0,new_ci(5,B93,C93,D93,$C$1,G93+H93,1,F93,E93*F93))))))) -> 0 | M93: =IF('III Tool Overview'!$H$6="Orkney Health Board",0,IF('III Tool Overview'!$H$6="Shetland Health Board",0,IF('III Tool Overview'!$H$6="Western Isles Health Board",0,IF('III Tool Overview'!$H$6="Orkney Islands Local Authority",0,IF('III Tool Overview'!$H$6="Shetland Islands Local Authority",0,IF('III Tool Overview'!$H$6="Eilean Siar Local Authority",0,new_ci(10,B93,C93,D93,$C$1,G93,1,F93,E93*F93))))))) -> 0 | N93: =IF('III Tool Overview'!$H$6="Orkney Health Board",0,IF('III Tool Overview'!$H$6="Shetland Health Board",0,IF('III Tool Overview'!$H$6="Western Isles Health Board",0,IF('III Tool Overview'!$H$6="Orkney Islands Local Authority",0,IF('III Tool Overview'!$H$6="Shetland Islands Local Authority",0,IF('III Tool Overview'!$H$6="Eilean Siar Local Authority",0,new_ci(10,B93,C93,D93,$C$1,G93+H93,1,F93,E93*F93))))))) -> 0 | O93: =IF('III Tool Overview'!$H$6="Orkney Health Board",0,IF('III Tool Overview'!$H$6="Shetland Health Board",0,IF('III Tool Overview'!$H$6="Western Isles Health Board",0,IF('III Tool Overview'!$H$6="Orkney Islands Local Authority",0,IF('III Tool Overview'!$H$6="Shetland Islands Local Authority",0,IF('III Tool Overview'!$H$6="Eilean Siar Local Authority",0,new_ci(20,B93,C93,D93,$C$1,G93,1,F93,E93*F93))))))) -> 0 | P93: =IF('III Tool Overview'!$H$6="Orkney Health Board",0,IF('III Tool Overview'!$H$6="Shetland Health Board",0,IF('III Tool Overview'!$H$6="Western Isles Health Board",0,IF('III Tool Overview'!$H$6="Orkney Islands Local Authority",0,IF('III Tool Overview'!$H$6="Shetland Islands Local Authority",0,IF('III Tool Overview'!$H$6="Eilean Siar Local Authority",0,new_ci(20,B93,C93,D93,$C$1,G93+H93,1,F93,E93*F93))))))) -> 0 | Q93: =IF('III Tool Overview'!$H$6="Orkney Health Board",0,IF('III Tool Overview'!$H$6="Shetland Health Board",0,IF('III Tool Overview'!$H$6="Western Isles Health Board",0,IF('III Tool Overview'!$H$6="Orkney Islands Local Authority",0,IF('III Tool Overview'!$H$6="Shetland Islands Local Authority",0,IF('III Tool Overview'!$H$6="Eilean Siar Local Authority",0,new_yll(2,B93,C93,D93,$C$1,G93,1,F93,E93*F93))))))) -> 0 | R93: =IF('III Tool Overview'!$H$6="Orkney Health Board",0,IF('III Tool Overview'!$H$6="Shetland Health Board",0,IF('III Tool Overview'!$H$6="Western Isles Health Board",0,IF('III Tool Overview'!$H$6="Orkney Islands Local Authority",0,IF('III Tool Overview'!$H$6="Shetland Islands Local Authority",0,IF('III Tool Overview'!$H$6="Eilean Siar Local Authority",0,new_yll(2,B93,C93,D93,$C$1,G93+H93,1,F93,E93*F93))))))) -> 0 | S93: 0 | T93: =IF('III Tool Overview'!$H$6="Orkney Health Board",0,IF('III Tool Overview'!$H$6="Shetland Health Board",0,IF('III Tool Overview'!$H$6="Western Isles Health Board",0,IF('III Tool Overview'!$H$6="Orkney Islands Local Authority",0,IF('III Tool Overview'!$H$6="Shetland Islands Local Authority",0,IF('III Tool Overview'!$H$6="Eilean Siar Local Authority",0,new_yll(5,B93,C93,D93,$C$1,G93,1,F93,E93*F93))))))) -> 0 | U93: =IF('III Tool Overview'!$H$6="Orkney Health Board",0,IF('III Tool Overview'!$H$6="Shetland Health Board",0,IF('III Tool Overview'!$H$6="Western Isles Health Board",0,IF('III Tool Overview'!$H$6="Orkney Islands Local Authority",0,IF('III Tool Overview'!$H$6="Shetland Islands Local Authority",0,IF('III Tool Overview'!$H$6="Eilean Siar Local Authority",0,new_yll(5,B93,C93,D93,$C$1,G93+H93,1,F93,E93*F93))))))) -> 0 | V93: 0 | W93: =IF('III Tool Overview'!$H$6="Orkney Health Board",0,IF('III Tool Overview'!$H$6="Shetland Health Board",0,IF('III Tool Overview'!$H$6="Western Isles Health Board",0,IF('III Tool Overview'!$H$6="Orkney Islands Local Authority",0,IF('III Tool Overview'!$H$6="Shetland Islands Local Authority",0,IF('III Tool Overview'!$H$6="Eilean Siar Local Authority",0,new_yll(10,B93,C93,D93,$C$1,G93,1,F93,E93*F93))))))) -> 0 | X93: =IF('III Tool Overview'!$H$6="Orkney Health Board",0,IF('III Tool Overview'!$H$6="Shetland Health Board",0,IF('III Tool Overview'!$H$6="Western Isles Health Board",0,IF('III Tool Overview'!$H$6="Orkney Islands Local Authority",0,IF('III Tool Overview'!$H$6="Shetland Islands Local Authority",0,IF('III Tool Overview'!$H$6="Eilean Siar Local Authority",0,new_yll(10,B93,C93,D93,$C$1,G93+H93,1,F93,E93*F93))))))) -> 0 | Y93: 0 | Z93: =IF('III Tool Overview'!$H$6="Orkney Health Board",0,IF('III Tool Overview'!$H$6="Shetland Health Board",0,IF('III Tool Overview'!$H$6="Western Isles Health Board",0,IF('III Tool Overview'!$H$6="Orkney Islands Local Authority",0,IF('III Tool Overview'!$H$6="Shetland Islands Local Authority",0,IF('III Tool Overview'!$H$6="Eilean Siar Local Authority",0,new_yll(20,B93,C93,D93,$C$1,G93,1,F93,E93*F93))))))) -> 0 | AA93: =IF('III Tool Overview'!$H$6="Orkney Health Board",0,IF('III Tool Overview'!$H$6="Shetland Health Board",0,IF('III Tool Overview'!$H$6="Western Isles Health Board",0,IF('III Tool Overview'!$H$6="Orkney Islands Local Authority",0,IF('III Tool Overview'!$H$6="Shetland Islands Local Authority",0,IF('III Tool Overview'!$H$6="Eilean Siar Local Authority",0,new_yll(20,B93,C93,D93,$C$1,G93+H93,1,F93,E93*F93))))))) -> 0 | AB93: 0 | AC93: =IF('III Tool Overview'!$H$6="Orkney Health Board",0,IF('III Tool Overview'!$H$6="Shetland Health Board",0,IF('III Tool Overview'!$H$6="Western Isles Health Board",0,IF('III Tool Overview'!$H$6="Orkney Islands Local Authority",0,IF('III Tool Overview'!$H$6="Shetland Islands Local Authority",0,IF('III Tool Overview'!$H$6="Eilean Siar Local Authority",0,hosp_count(2,B93,C93,D93,$C$1,G93,1,F93,E93*F93))))))) -> 0 | AD93: =IF('III Tool Overview'!$H$6="Orkney Health Board",0,IF('III Tool Overview'!$H$6="Shetland Health Board",0,IF('III Tool Overview'!$H$6="Western Isles Health Board",0,IF('III Tool Overview'!$H$6="Orkney Islands Local Authority",0,IF('III Tool Overview'!$H$6="Shetland Islands Local Authority",0,IF('III Tool Overview'!$H$6="Eilean Siar Local Authority",0,hosp_count(2,B93,C93,D93,$C$1,G93+H93,1,F93,E93*F93))))))) -> 0 | AE93: 0 | AF93: =IF('III Tool Overview'!$H$6="Orkney Health Board",0,IF('III Tool Overview'!$H$6="Shetland Health Board",0,IF('III Tool Overview'!$H$6="Western Isles Health Board",0,IF('III Tool Overview'!$H$6="Orkney Islands Local Authority",0,IF('III Tool Overview'!$H$6="Shetland Islands Local Authority",0,IF('III Tool Overview'!$H$6="Eilean Siar Local Authority",0,hosp_count(5,B93,C93,D93,$C$1,G93,1,F93,E93*F93))))))) -> 0 | AG93: =IF('III Tool Overview'!$H$6="Orkney Health Board",0,IF('III Tool Overview'!$H$6="Shetland Health Board",0,IF('III Tool Overview'!$H$6="Western Isles Health Board",0,IF('III Tool Overview'!$H$6="Orkney Islands Local Authority",0,IF('III Tool Overview'!$H$6="Shetland Islands Local Authority",0,IF('III Tool Overview'!$H$6="Eilean Siar Local Authority",0,hosp_count(5,B93,C93,D93,$C$1,G93+H93,1,F93,E93*F93))))))) -> 0 | AH93: 0 | AI93: =IF('III Tool Overview'!$H$6="Orkney Health Board",0,IF('III Tool Overview'!$H$6="Shetland Health Board",0,IF('III Tool Overview'!$H$6="Western Isles Health Board",0,IF('III Tool Overview'!$H$6="Orkney Islands Local Authority",0,IF('III Tool Overview'!$H$6="Shetland Islands Local Authority",0,IF('III Tool Overview'!$H$6="Eilean Siar Local Authority",0,hosp_count(10,B93,C93,D93,$C$1,G93,1,F93,E93*F93))))))) -> 0 | AJ93: =IF('III Tool Overview'!$H$6="Orkney Health Board",0,IF('III Tool Overview'!$H$6="Shetland Health Board",0,IF('III Tool Overview'!$H$6="Western Isles Health Board",0,IF('III Tool Overview'!$H$6="Orkney Islands Local Authority",0,IF('III Tool Overview'!$H$6="Shetland Islands Local Authority",0,IF('III Tool Overview'!$H$6="Eilean Siar Local Authority",0,hosp_count(10,B93,C93,D93,$C$1,G93+H93,1,F93,E93*F93))))))) -> 0 | AK93: 0 | AL93: =IF('III Tool Overview'!$H$6="Orkney Health Board",0,IF('III Tool Overview'!$H$6="Shetland Health Board",0,IF('III Tool Overview'!$H$6="Western Isles Health Board",0,IF('III Tool Overview'!$H$6="Orkney Islands Local Authority",0,IF('III Tool Overview'!$H$6="Shetland Islands Local Authority",0,IF('III Tool Overview'!$H$6="Eilean Siar Local Authority",0,hosp_count(20,B93,C93,D93,$C$1,G93,1,F93,E93*F93))))))) -> 0 | AM93: =IF('III Tool Overview'!$H$6="Orkney Health Board",0,IF('III Tool Overview'!$H$6="Shetland Health Board",0,IF('III Tool Overview'!$H$6="Western Isles Health Board",0,IF('III Tool Overview'!$H$6="Orkney Islands Local Authority",0,IF('III Tool Overview'!$H$6="Shetland Islands Local Authority",0,IF('III Tool Overview'!$H$6="Eilean Siar Local Authority",0,hosp_count(20,B93,C93,D93,$C$1,G93+H93,1,F93,E93*F93))))))) -> 0 | AN93: 0
A94: Female 30-34 | B94: 32.5 | C94: female | D94: 1 | E94: =HLOOKUP('III Tool Overview'!$H$6,Prevalence!$B$2:$AV$268,Prevalence!AW89,FALSE) -> 0.3619047619 | F94: =HLOOKUP('III Tool Overview'!$H$6,LookUpData_Pop!$B$1:$AV$269,LookUpData_Pop!BB94,FALSE)/5 -> 0 | G94: ='III Tool Overview'!$H$9/110 -> 0 | H94: =IF('III Tool Overview'!$H$10="Even distribution",Targeting!C91,IF('III Tool Overview'!$H$10="Targeting to Q1",Targeting!D91,IF('III Tool Overview'!$H$10="Targeting to Q1 & Q2",Targeting!E91,IF('III Tool Overview'!$H$10="Proportionate to need",Targeting!F91)))) -> 3.272727273 | I94: =IF('III Tool Overview'!$H$6="Orkney Health Board",0,IF('III Tool Overview'!$H$6="Shetland Health Board",0,IF('III Tool Overview'!$H$6="Western Isles Health Board",0,IF('III Tool Overview'!$H$6="Orkney Islands Local Authority",0,IF('III Tool Overview'!$H$6="Shetland Islands Local Authority",0,IF('III Tool Overview'!$H$6="Eilean Siar Local Authority",0,new_ci(2,B94,C94,D94,$C$1,G94,1,F94,E94*F94))))))) -> 0 | J94: =IF('III Tool Overview'!$H$6="Orkney Health Board",0,IF('III Tool Overview'!$H$6="Shetland Health Board",0,IF('III Tool Overview'!$H$6="Western Isles Health Board",0,IF('III Tool Overview'!$H$6="Orkney Islands Local Authority",0,IF('III Tool Overview'!$H$6="Shetland Islands Local Authority",0,IF('III Tool Overview'!$H$6="Eilean Siar Local Authority",0,new_ci(2,B94,C94,D94,$C$1,G94+H94,1,F94,E94*F94))))))) -> 0 | K94: =IF('III Tool Overview'!$H$6="Orkney Health Board",0,IF('III Tool Overview'!$H$6="Shetland Health Board",0,IF('III Tool Overview'!$H$6="Western Isles Health Board",0,IF('III Tool Overview'!$H$6="Orkney Islands Local Authority",0,IF('III Tool Overview'!$H$6="Shetland Islands Local Authority",0,IF('III Tool Overview'!$H$6="Eilean Siar Local Authority",0,new_ci(5,B94,C94,D94,$C$1,G94,1,F94,E94*F94))))))) -> 0 | L94: =IF('III Tool Overview'!$H$6="Orkney Health Board",0,IF('III Tool Overview'!$H$6="Shetland Health Board",0,IF('III Tool Overview'!$H$6="Western Isles Health Board",0,IF('III Tool Overview'!$H$6="Orkney Islands Local Authority",0,IF('III Tool Overview'!$H$6="Shetland Islands Local Authority",0,IF('III Tool Overview'!$H$6="Eilean Siar Local Authority",0,new_ci(5,B94,C94,D94,$C$1,G94+H94,1,F94,E94*F94))))))) -> 0 | M94: =IF('III Tool Overview'!$H$6="Orkney Health Board",0,IF('III Tool Overview'!$H$6="Shetland Health Board",0,IF('III Tool Overview'!$H$6="Western Isles Health Board",0,IF('III Tool Overview'!$H$6="Orkney Islands Local Authority",0,IF('III Tool Overview'!$H$6="Shetland Islands Local Authority",0,IF('III Tool Overview'!$H$6="Eilean Siar Local Authority",0,new_ci(10,B94,C94,D94,$C$1,G94,1,F94,E94*F94))))))) -> 0 | N94: =IF('III Tool Overview'!$H$6="Orkney Health Board",0,IF('III Tool Overview'!$H$6="Shetland Health Board",0,IF('III Tool Overview'!$H$6="Western Isles Health Board",0,IF('III Tool Overview'!$H$6="Orkney Islands Local Authority",0,IF('III Tool Overview'!$H$6="Shetland Islands Local Authority",0,IF('III Tool Overview'!$H$6="Eilean Siar Local Authority",0,new_ci(10,B94,C94,D94,$C$1,G94+H94,1,F94,E94*F94))))))) -> 0 | O94: =IF('III Tool Overview'!$H$6="Orkney Health Board",0,IF('III Tool Overview'!$H$6="Shetland Health Board",0,IF('III Tool Overview'!$H$6="Western Isles Health Board",0,IF('III Tool Overview'!$H$6="Orkney Islands Local Authority",0,IF('III Tool Overview'!$H$6="Shetland Islands Local Authority",0,IF('III Tool Overview'!$H$6="Eilean Siar Local Authority",0,new_ci(20,B94,C94,D94,$C$1,G94,1,F94,E94*F94))))))) -> 0 | P94: =IF('III Tool Overview'!$H$6="Orkney Health Board",0,IF('III Tool Overview'!$H$6="Shetland Health Board",0,IF('III Tool Overview'!$H$6="Western Isles Health Board",0,IF('III Tool Overview'!$H$6="Orkney Islands Local Authority",0,IF('III Tool Overview'!$H$6="Shetland Islands Local Authority",0,IF('III Tool Overview'!$H$6="Eilean Siar Local Authority",0,new_ci(20,B94,C94,D94,$C$1,G94+H94,1,F94,E94*F94))))))) -> 0 | Q94: =IF('III Tool Overview'!$H$6="Orkney Health Board",0,IF('III Tool Overview'!$H$6="Shetland Health Board",0,IF('III Tool Overview'!$H$6="Western Isles Health Board",0,IF('III Tool Overview'!$H$6="Orkney Islands Local Authority",0,IF('III Tool Overview'!$H$6="Shetland Islands Local Authority",0,IF('III Tool Overview'!$H$6="Eilean Siar Local Authority",0,new_yll(2,B94,C94,D94,$C$1,G94,1,F94,E94*F94))))))) -> 0 | R94: =IF('III Tool Overview'!$H$6="Orkney Health Board",0,IF('III Tool Overview'!$H$6="Shetland Health Board",0,IF('III Tool Overview'!$H$6="Western Isles Health Board",0,IF('III Tool Overview'!$H$6="Orkney Islands Local Authority",0,IF('III Tool Overview'!$H$6="Shetland Islands Local Authority",0,IF('III Tool Overview'!$H$6="Eilean Siar Local Authority",0,new_yll(2,B94,C94,D94,$C$1,G94+H94,1,F94,E94*F94))))))) -> 0 | S94: 0 | T94: =IF('III Tool Overview'!$H$6="Orkney Health Board",0,IF('III Tool Overview'!$H$6="Shetland Health Board",0,IF('III Tool Overview'!$H$6="Western Isles Health Board",0,IF('III Tool Overview'!$H$6="Orkney Islands Local Authority",0,IF('III Tool Overview'!$H$6="Shetland Islands Local Authority",0,IF('III Tool Overview'!$H$6="Eilean Siar Local Authority",0,new_yll(5,B94,C94,D94,$C$1,G94,1,F94,E94*F94))))))) -> 0 | U94: =IF('III Tool Overview'!$H$6="Orkney Health Board",0,IF('III Tool Overview'!$H$6="Shetland Health Board",0,IF('III Tool Overview'!$H$6="Western Isles Health Board",0,IF('III Tool Overview'!$H$6="Orkney Islands Local Authority",0,IF('III Tool Overview'!$H$6="Shetland Islands Local Authority",0,IF('III Tool Overview'!$H$6="Eilean Siar Local Authority",0,new_yll(5,B94,C94,D94,$C$1,G94+H94,1,F94,E94*F94))))))) -> 0 | V94: 0 | W94: =IF('III Tool Overview'!$H$6="Orkney Health Board",0,IF('III Tool Overview'!$H$6="Shetland Health Board",0,IF('III Tool Overview'!$H$6="Western Isles Health Board",0,IF('III Tool Overview'!$H$6="Orkney Islands Local Authority",0,IF('III Tool Overview'!$H$6="Shetland Islands Local Authority",0,IF('III Tool Overview'!$H$6="Eilean Siar Local Authority",0,new_yll(10,B94,C94,D94,$C$1,G94,1,F94,E94*F94))))))) -> 0 | X94: =IF('III Tool Overview'!$H$6="Orkney Health Board",0,IF('III Tool Overview'!$H$6="Shetland Health Board",0,IF('III Tool Overview'!$H$6="Western Isles Health Board",0,IF('III Tool Overview'!$H$6="Orkney Islands Local Authority",0,IF('III Tool Overview'!$H$6="Shetland Islands Local Authority",0,IF('III Tool Overview'!$H$6="Eilean Siar Local Authority",0,new_yll(10,B94,C94,D94,$C$1,G94+H94,1,F94,E94*F94))))))) -> 0 | Y94: 0 | Z94: =IF('III Tool Overview'!$H$6="Orkney Health Board",0,IF('III Tool Overview'!$H$6="Shetland Health Board",0,IF('III Tool Overview'!$H$6="Western Isles Health Board",0,IF('III Tool Overview'!$H$6="Orkney Islands Local Authority",0,IF('III Tool Overview'!$H$6="Shetland Islands Local Authority",0,IF('III Tool Overview'!$H$6="Eilean Siar Local Authority",0,new_yll(20,B94,C94,D94,$C$1,G94,1,F94,E94*F94))))))) -> 0 | AA94: =IF('III Tool Overview'!$H$6="Orkney Health Board",0,IF('III Tool Overview'!$H$6="Shetland Health Board",0,IF('III Tool Overview'!$H$6="Western Isles Health Board",0,IF('III Tool Overview'!$H$6="Orkney Islands Local Authority",0,IF('III Tool Overview'!$H$6="Shetland Islands Local Authority",0,IF('III Tool Overview'!$H$6="Eilean Siar Local Authority",0,new_yll(20,B94,C94,D94,$C$1,G94+H94,1,F94,E94*F94))))))) -> 0 | AB94: 0 | AC94: =IF('III Tool Overview'!$H$6="Orkney Health Board",0,IF('III Tool Overview'!$H$6="Shetland Health Board",0,IF('III Tool Overview'!$H$6="Western Isles Health Board",0,IF('III Tool Overview'!$H$6="Orkney Islands Local Authority",0,IF('III Tool Overview'!$H$6="Shetland Islands Local Authority",0,IF('III Tool Overview'!$H$6="Eilean Siar Local Authority",0,hosp_count(2,B94,C94,D94,$C$1,G94,1,F94,E94*F94))))))) -> 0 | AD94: =IF('III Tool Overview'!$H$6="Orkney Health Board",0,IF('III Tool Overview'!$H$6="Shetland Health Board",0,IF('III Tool Overview'!$H$6="Western Isles Health Board",0,IF('III Tool Overview'!$H$6="Orkney Islands Local Authority",0,IF('III Tool Overview'!$H$6="Shetland Islands Local Authority",0,IF('III Tool Overview'!$H$6="Eilean Siar Local Authority",0,hosp_count(2,B94,C94,D94,$C$1,G94+H94,1,F94,E94*F94))))))) -> 0 | AE94: 0 | AF94: =IF('III Tool Overview'!$H$6="Orkney Health Board",0,IF('III Tool Overview'!$H$6="Shetland Health Board",0,IF('III Tool Overview'!$H$6="Western Isles Health Board",0,IF('III Tool Overview'!$H$6="Orkney Islands Local Authority",0,IF('III Tool Overview'!$H$6="Shetland Islands Local Authority",0,IF('III Tool Overview'!$H$6="Eilean Siar Local Authority",0,hosp_count(5,B94,C94,D94,$C$1,G94,1,F94,E94*F94))))))) -> 0 | AG94: =IF('III Tool Overview'!$H$6="Orkney Health Board",0,IF('III Tool Overview'!$H$6="Shetland Health Board",0,IF('III Tool Overview'!$H$6="Western Isles Health Board",0,IF('III Tool Overview'!$H$6="Orkney Islands Local Authority",0,IF('III Tool Overview'!$H$6="Shetland Islands Local Authority",0,IF('III Tool Overview'!$H$6="Eilean Siar Local Authority",0,hosp_count(5,B94,C94,D94,$C$1,G94+H94,1,F94,E94*F94))))))) -> 0 | AH94: 0 | AI94: =IF('III Tool Overview'!$H$6="Orkney Health Board",0,IF('III Tool Overview'!$H$6="Shetland Health Board",0,IF('III Tool Overview'!$H$6="Western Isles Health Board",0,IF('III Tool Overview'!$H$6="Orkney Islands Local Authority",0,IF('III Tool Overview'!$H$6="Shetland Islands Local Authority",0,IF('III Tool Overview'!$H$6="Eilean Siar Local Authority",0,hosp_count(10,B94,C94,D94,$C$1,G94,1,F94,E94*F94))))))) -> 0 | AJ94: =IF('III Tool Overview'!$H$6="Orkney Health Board",0,IF('III Tool Overview'!$H$6="Shetland Health Board",0,IF('III Tool Overview'!$H$6="Western Isles Health Board",0,IF('III Tool Overview'!$H$6="Orkney Islands Local Authority",0,IF('III Tool Overview'!$H$6="Shetland Islands Local Authority",0,IF('III Tool Overview'!$H$6="Eilean Siar Local Authority",0,hosp_count(10,B94,C94,D94,$C$1,G94+H94,1,F94,E94*F94))))))) -> 0 | AK94: 0 | AL94: =IF('III Tool Overview'!$H$6="Orkney Health Board",0,IF('III Tool Overview'!$H$6="Shetland Health Board",0,IF('III Tool Overview'!$H$6="Western Isles Health Board",0,IF('III Tool Overview'!$H$6="Orkney Islands Local Authority",0,IF('III Tool Overview'!$H$6="Shetland Islands Local Authority",0,IF('III Tool Overview'!$H$6="Eilean Siar Local Authority",0,hosp_count(20,B94,C94,D94,$C$1,G94,1,F94,E94*F94))))))) -> 0 | AM94: =IF('III Tool Overview'!$H$6="Orkney Health Board",0,IF('III Tool Overview'!$H$6="Shetland Health Board",0,IF('III Tool Overview'!$H$6="Western Isles Health Board",0,IF('III Tool Overview'!$H$6="Orkney Islands Local Authority",0,IF('III Tool Overview'!$H$6="Shetland Islands Local Authority",0,IF('III Tool Overview'!$H$6="Eilean Siar Local Authority",0,hosp_count(20,B94,C94,D94,$C$1,G94+H94,1,F94,E94*F94))))))) -> 0 | AN94: 0
A95: Female 35-39 | B95: 37.5 | C95: female | D95: 1 | E95: =HLOOKUP('III Tool Overview'!$H$6,Prevalence!$B$2:$AV$268,Prevalence!AW90,FALSE) -> 0.3714285714 | F95: =HLOOKUP('III Tool Overview'!$H$6,LookUpData_Pop!$B$1:$AV$269,LookUpData_Pop!BB95,FALSE)/5 -> 0 | G95: ='III Tool Overview'!$H$9/110 -> 0 | H95: =IF('III Tool Overview'!$H$10="Even distribution",Targeting!C92,IF('III Tool Overview'!$H$10="Targeting to Q1",Targeting!D92,IF('III Tool Overview'!$H$10="Targeting to Q1 & Q2",Targeting!E92,IF('III Tool Overview'!$H$10="Proportionate to need",Targeting!F92)))) -> 3.272727273 | I95: =IF('III Tool Overview'!$H$6="Orkney Health Board",0,IF('III Tool Overview'!$H$6="Shetland Health Board",0,IF('III Tool Overview'!$H$6="Western Isles Health Board",0,IF('III Tool Overview'!$H$6="Orkney Islands Local Authority",0,IF('III Tool Overview'!$H$6="Shetland Islands Local Authority",0,IF('III Tool Overview'!$H$6="Eilean Siar Local Authority",0,new_ci(2,B95,C95,D95,$C$1,G95,1,F95,E95*F95))))))) -> 0 | J95: =IF('III Tool Overview'!$H$6="Orkney Health Board",0,IF('III Tool Overview'!$H$6="Shetland Health Board",0,IF('III Tool Overview'!$H$6="Western Isles Health Board",0,IF('III Tool Overview'!$H$6="Orkney Islands Local Authority",0,IF('III Tool Overview'!$H$6="Shetland Islands Local Authority",0,IF('III Tool Overview'!$H$6="Eilean Siar Local Authority",0,new_ci(2,B95,C95,D95,$C$1,G95+H95,1,F95,E95*F95))))))) -> 0 | K95: =IF('III Tool Overview'!$H$6="Orkney Health Board",0,IF('III Tool Overview'!$H$6="Shetland Health Board",0,IF('III Tool Overview'!$H$6="Western Isles Health Board",0,IF('III Tool Overview'!$H$6="Orkney Islands Local Authority",0,IF('III Tool Overview'!$H$6="Shetland Islands Local Authority",0,IF('III Tool Overview'!$H$6="Eilean Siar Local Authority",0,new_ci(5,B95,C95,D95,$C$1,G95,1,F95,E95*F95))))))) -> 0 | L95: =IF('III Tool Overview'!$H$6="Orkney Health Board",0,IF('III Tool Overview'!$H$6="Shetland Health Board",0,IF('III Tool Overview'!$H$6="Western Isles Health Board",0,IF('III Tool Overview'!$H$6="Orkney Islands Local Authority",0,IF('III Tool Overview'!$H$6="Shetland Islands Local Authority",0,IF('III Tool Overview'!$H$6="Eilean Siar Local Authority",0,new_ci(5,B95,C95,D95,$C$1,G95+H95,1,F95,E95*F95))))))) -> 0 | M95: =IF('III Tool Overview'!$H$6="Orkney Health Board",0,IF('III Tool Overview'!$H$6="Shetland Health Board",0,IF('III Tool Overview'!$H$6="Western Isles Health Board",0,IF('III Tool Overview'!$H$6="Orkney Islands Local Authority",0,IF('III Tool Overview'!$H$6="Shetland Islands Local Authority",0,IF('III Tool Overview'!$H$6="Eilean Siar Local Authority",0,new_ci(10,B95,C95,D95,$C$1,G95,1,F95,E95*F95))))))) -> 0 | N95: =IF('III Tool Overview'!$H$6="Orkney Health Board",0,IF('III Tool Overview'!$H$6="Shetland Health Board",0,IF('III Tool Overview'!$H$6="Western Isles Health Board",0,IF('III Tool Overview'!$H$6="Orkney Islands Local Authority",0,IF('III Tool Overview'!$H$6="Shetland Islands Local Authority",0,IF('III Tool Overview'!$H$6="Eilean Siar Local Authority",0,new_ci(10,B95,C95,D95,$C$1,G95+H95,1,F95,E95*F95))))))) -> 0 | O95: =IF('III Tool Overview'!$H$6="Orkney Health Board",0,IF('III Tool Overview'!$H$6="Shetland Health Board",0,IF('III Tool Overview'!$H$6="Western Isles Health Board",0,IF('III Tool Overview'!$H$6="Orkney Islands Local Authority",0,IF('III Tool Overview'!$H$6="Shetland Islands Local Authority",0,IF('III Tool Overview'!$H$6="Eilean Siar Local Authority",0,new_ci(20,B95,C95,D95,$C$1,G95,1,F95,E95*F95))))))) -> 0 | P95: =IF('III Tool Overview'!$H$6="Orkney Health Board",0,IF('III Tool Overview'!$H$6="Shetland Health Board",0,IF('III Tool Overview'!$H$6="Western Isles Health Board",0,IF('III Tool Overview'!$H$6="Orkney Islands Local Authority",0,IF('III Tool Overview'!$H$6="Shetland Islands Local Authority",0,IF('III Tool Overview'!$H$6="Eilean Siar Local Authority",0,new_ci(20,B95,C95,D95,$C$1,G95+H95,1,F95,E95*F95))))))) -> 0 | Q95: =IF('III Tool Overview'!$H$6="Orkney Health Board",0,IF('III Tool Overview'!$H$6="Shetland Health Board",0,IF('III Tool Overview'!$H$6="Western Isles Health Board",0,IF('III Tool Overview'!$H$6="Orkney Islands Local Authority",0,IF('III Tool Overview'!$H$6="Shetland Islands Local Authority",0,IF('III Tool Overview'!$H$6="Eilean Siar Local Authority",0,new_yll(2,B95,C95,D95,$C$1,G95,1,F95,E95*F95))))))) -> 0 | R95: =IF('III Tool Overview'!$H$6="Orkney Health Board",0,IF('III Tool Overview'!$H$6="Shetland Health Board",0,IF('III Tool Overview'!$H$6="Western Isles Health Board",0,IF('III Tool Overview'!$H$6="Orkney Islands Local Authority",0,IF('III Tool Overview'!$H$6="Shetland Islands Local Authority",0,IF('III Tool Overview'!$H$6="Eilean Siar Local Authority",0,new_yll(2,B95,C95,D95,$C$1,G95+H95,1,F95,E95*F95))))))) -> 0 | S95: 0 | T95: =IF('III Tool Overview'!$H$6="Orkney Health Board",0,IF('III Tool Overview'!$H$6="Shetland Health Board",0,IF('III Tool Overview'!$H$6="Western Isles Health Board",0,IF('III Tool Overview'!$H$6="Orkney Islands Local Authority",0,IF('III Tool Overview'!$H$6="Shetland Islands Local Authority",0,IF('III Tool Overview'!$H$6="Eilean Siar Local Authority",0,new_yll(5,B95,C95,D95,$C$1,G95,1,F95,E95*F95))))))) -> 0 | U95: =IF('III Tool Overview'!$H$6="Orkney Health Board",0,IF('III Tool Overview'!$H$6="Shetland Health Board",0,IF('III Tool Overview'!$H$6="Western Isles Health Board",0,IF('III Tool Overview'!$H$6="Orkney Islands Local Authority",0,IF('III Tool Overview'!$H$6="Shetland Islands Local Authority",0,IF('III Tool Overview'!$H$6="Eilean Siar Local Authority",0,new_yll(5,B95,C95,D95,$C$1,G95+H95,1,F95,E95*F95))))))) -> 0 | V95: 0 | W95: =IF('III Tool Overview'!$H$6="Orkney Health Board",0,IF('III Tool Overview'!$H$6="Shetland Health Board",0,IF('III Tool Overview'!$H$6="Western Isles Health Board",0,IF('III Tool Overview'!$H$6="Orkney Islands Local Authority",0,IF('III Tool Overview'!$H$6="Shetland Islands Local Authority",0,IF('III Tool Overview'!$H$6="Eilean Siar Local Authority",0,new_yll(10,B95,C95,D95,$C$1,G95,1,F95,E95*F95))))))) -> 0 | X95: =IF('III Tool Overview'!$H$6="Orkney Health Board",0,IF('III Tool Overview'!$H$6="Shetland Health Board",0,IF('III Tool Overview'!$H$6="Western Isles Health Board",0,IF('III Tool Overview'!$H$6="Orkney Islands Local Authority",0,IF('III Tool Overview'!$H$6="Shetland Islands Local Authority",0,IF('III Tool Overview'!$H$6="Eilean Siar Local Authority",0,new_yll(10,B95,C95,D95,$C$1,G95+H95,1,F95,E95*F95))))))) -> 0 | Y95: 0 | Z95: =IF('III Tool Overview'!$H$6="Orkney Health Board",0,IF('III Tool Overview'!$H$6="Shetland Health Board",0,IF('III Tool Overview'!$H$6="Western Isles Health Board",0,IF('III Tool Overview'!$H$6="Orkney Islands Local Authority",0,IF('III Tool Overview'!$H$6="Shetland Islands Local Authority",0,IF('III Tool Overview'!$H$6="Eilean Siar Local Authority",0,new_yll(20,B95,C95,D95,$C$1,G95,1,F95,E95*F95))))))) -> 0 | AA95: =IF('III Tool Overview'!$H$6="Orkney Health Board",0,IF('III Tool Overview'!$H$6="Shetland Health Board",0,IF('III Tool Overview'!$H$6="Western Isles Health Board",0,IF('III Tool Overview'!$H$6="Orkney Islands Local Authority",0,IF('III Tool Overview'!$H$6="Shetland Islands Local Authority",0,IF('III Tool Overview'!$H$6="Eilean Siar Local Authority",0,new_yll(20,B95,C95,D95,$C$1,G95+H95,1,F95,E95*F95))))))) -> 0 | AB95: 0 | AC95: =IF('III Tool Overview'!$H$6="Orkney Health Board",0,IF('III Tool Overview'!$H$6="Shetland Health Board",0,IF('III Tool Overview'!$H$6="Western Isles Health Board",0,IF('III Tool Overview'!$H$6="Orkney Islands Local Authority",0,IF('III Tool Overview'!$H$6="Shetland Islands Local Authority",0,IF('III Tool Overview'!$H$6="Eilean Siar Local Authority",0,hosp_count(2,B95,C95,D95,$C$1,G95,1,F95,E95*F95))))))) -> 0 | AD95: =IF('III Tool Overview'!$H$6="Orkney Health Board",0,IF('III Tool Overview'!$H$6="Shetland Health Board",0,IF('III Tool Overview'!$H$6="Western Isles Health Board",0,IF('III Tool Overview'!$H$6="Orkney Islands Local Authority",0,IF('III Tool Overview'!$H$6="Shetland Islands Local Authority",0,IF('III Tool Overview'!$H$6="Eilean Siar Local Authority",0,hosp_count(2,B95,C95,D95,$C$1,G95+H95,1,F95,E95*F95))))))) -> 0 | AE95: 0 | AF95: =IF('III Tool Overview'!$H$6="Orkney Health Board",0,IF('III Tool Overview'!$H$6="Shetland Health Board",0,IF('III Tool Overview'!$H$6="Western Isles Health Board",0,IF('III Tool Overview'!$H$6="Orkney Islands Local Authority",0,IF('III Tool Overview'!$H$6="Shetland Islands Local Authority",0,IF('III Tool Overview'!$H$6="Eilean Siar Local Authority",0,hosp_count(5,B95,C95,D95,$C$1,G95,1,F95,E95*F95))))))) -> 0 | AG95: =IF('III Tool Overview'!$H$6="Orkney Health Board",0,IF('III Tool Overview'!$H$6="Shetland Health Board",0,IF('III Tool Overview'!$H$6="Western Isles Health Board",0,IF('III Tool Overview'!$H$6="Orkney Islands Local Authority",0,IF('III Tool Overview'!$H$6="Shetland Islands Local Authority",0,IF('III Tool Overview'!$H$6="Eilean Siar Local Authority",0,hosp_count(5,B95,C95,D95,$C$1,G95+H95,1,F95,E95*F95))))))) -> 0 | AH95: 0 | AI95: =IF('III Tool Overview'!$H$6="Orkney Health Board",0,IF('III Tool Overview'!$H$6="Shetland Health Board",0,IF('III Tool Overview'!$H$6="Western Isles Health Board",0,IF('III Tool Overview'!$H$6="Orkney Islands Local Authority",0,IF('III Tool Overview'!$H$6="Shetland Islands Local Authority",0,IF('III Tool Overview'!$H$6="Eilean Siar Local Authority",0,hosp_count(10,B95,C95,D95,$C$1,G95,1,F95,E95*F95))))))) -> 0 | AJ95: =IF('III Tool Overview'!$H$6="Orkney Health Board",0,IF('III Tool Overview'!$H$6="Shetland Health Board",0,IF('III Tool Overview'!$H$6="Western Isles Health Board",0,IF('III Tool Overview'!$H$6="Orkney Islands Local Authority",0,IF('III Tool Overview'!$H$6="Shetland Islands Local Authority",0,IF('III Tool Overview'!$H$6="Eilean Siar Local Authority",0,hosp_count(10,B95,C95,D95,$C$1,G95+H95,1,F95,E95*F95))))))) -> 0 | AK95: 0 | AL95: =IF('III Tool Overview'!$H$6="Orkney Health Board",0,IF('III Tool Overview'!$H$6="Shetland Health Board",0,IF('III Tool Overview'!$H$6="Western Isles Health Board",0,IF('III Tool Overview'!$H$6="Orkney Islands Local Authority",0,IF('III Tool Overview'!$H$6="Shetland Islands Local Authority",0,IF('III Tool Overview'!$H$6="Eilean Siar Local Authority",0,hosp_count(20,B95,C95,D95,$C$1,G95,1,F95,E95*F95))))))) -> 0 | AM95: =IF('III Tool Overview'!$H$6="Orkney Health Board",0,IF('III Tool Overview'!$H$6="Shetland Health Board",0,IF('III Tool Overview'!$H$6="Western Isles Health Board",0,IF('III Tool Overview'!$H$6="Orkney Islands Local Authority",0,IF('III Tool Overview'!$H$6="Shetland Islands Local Authority",0,IF('III Tool Overview'!$H$6="Eilean Siar Local Authority",0,hosp_count(20,B95,C95,D95,$C$1,G95+H95,1,F95,E95*F95))))))) -> 0 | AN95: 0
A96: Female 40-44 | B96: 42.5 | C96: female | D96: 1 | E96: =HLOOKUP('III Tool Overview'!$H$6,Prevalence!$B$2:$AV$268,Prevalence!AW91,FALSE) -> 0.3523809524 | F96: =HLOOKUP('III Tool Overview'!$H$6,LookUpData_Pop!$B$1:$AV$269,LookUpData_Pop!BB96,FALSE)/5 -> 0 | G96: ='III Tool Overview'!$H$9/110 -> 0 | H96: =IF('III Tool Overview'!$H$10="Even distribution",Targeting!C93,IF('III Tool Overview'!$H$10="Targeting to Q1",Targeting!D93,IF('III Tool Overview'!$H$10="Targeting to Q1 & Q2",Targeting!E93,IF('III Tool Overview'!$H$10="Proportionate to need",Targeting!F93)))) -> 3.272727273 | I96: =IF('III Tool Overview'!$H$6="Orkney Health Board",0,IF('III Tool Overview'!$H$6="Shetland Health Board",0,IF('III Tool Overview'!$H$6="Western Isles Health Board",0,IF('III Tool Overview'!$H$6="Orkney Islands Local Authority",0,IF('III Tool Overview'!$H$6="Shetland Islands Local Authority",0,IF('III Tool Overview'!$H$6="Eilean Siar Local Authority",0,new_ci(2,B96,C96,D96,$C$1,G96,1,F96,E96*F96))))))) -> 0 | J96: =IF('III Tool Overview'!$H$6="Orkney Health Board",0,IF('III Tool Overview'!$H$6="Shetland Health Board",0,IF('III Tool Overview'!$H$6="Western Isles Health Board",0,IF('III Tool Overview'!$H$6="Orkney Islands Local Authority",0,IF('III Tool Overview'!$H$6="Shetland Islands Local Authority",0,IF('III Tool Overview'!$H$6="Eilean Siar Local Authority",0,new_ci(2,B96,C96,D96,$C$1,G96+H96,1,F96,E96*F96))))))) -> 0 | K96: =IF('III Tool Overview'!$H$6="Orkney Health Board",0,IF('III Tool Overview'!$H$6="Shetland Health Board",0,IF('III Tool Overview'!$H$6="Western Isles Health Board",0,IF('III Tool Overview'!$H$6="Orkney Islands Local Authority",0,IF('III Tool Overview'!$H$6="Shetland Islands Local Authority",0,IF('III Tool Overview'!$H$6="Eilean Siar Local Authority",0,new_ci(5,B96,C96,D96,$C$1,G96,1,F96,E96*F96))))))) -> 0 | L96: =IF('III Tool Overview'!$H$6="Orkney Health Board",0,IF('III Tool Overview'!$H$6="Shetland Health Board",0,IF('III Tool Overview'!$H$6="Western Isles Health Board",0,IF('III Tool Overview'!$H$6="Orkney Islands Local Authority",0,IF('III Tool Overview'!$H$6="Shetland Islands Local Authority",0,IF('III Tool Overview'!$H$6="Eilean Siar Local Authority",0,new_ci(5,B96,C96,D96,$C$1,G96+H96,1,F96,E96*F96))))))) -> 0 | M96: =IF('III Tool Overview'!$H$6="Orkney Health Board",0,IF('III Tool Overview'!$H$6="Shetland Health Board",0,IF('III Tool Overview'!$H$6="Western Isles Health Board",0,IF('III Tool Overview'!$H$6="Orkney Islands Local Authority",0,IF('III Tool Overview'!$H$6="Shetland Islands Local Authority",0,IF('III Tool Overview'!$H$6="Eilean Siar Local Authority",0,new_ci(10,B96,C96,D96,$C$1,G96,1,F96,E96*F96))))))) -> 0 | N96: =IF('III Tool Overview'!$H$6="Orkney Health Board",0,IF('III Tool Overview'!$H$6="Shetland Health Board",0,IF('III Tool Overview'!$H$6="Western Isles Health Board",0,IF('III Tool Overview'!$H$6="Orkney Islands Local Authority",0,IF('III Tool Overview'!$H$6="Shetland Islands Local Authority",0,IF('III Tool Overview'!$H$6="Eilean Siar Local Authority",0,new_ci(10,B96,C96,D96,$C$1,G96+H96,1,F96,E96*F96))))))) -> 0 | O96: =IF('III Tool Overview'!$H$6="Orkney Health Board",0,IF('III Tool Overview'!$H$6="Shetland Health Board",0,IF('III Tool Overview'!$H$6="Western Isles Health Board",0,IF('III Tool Overview'!$H$6="Orkney Islands Local Authority",0,IF('III Tool Overview'!$H$6="Shetland Islands Local Authority",0,IF('III Tool Overview'!$H$6="Eilean Siar Local Authority",0,new_ci(20,B96,C96,D96,$C$1,G96,1,F96,E96*F96))))))) -> 0 | P96: =IF('III Tool Overview'!$H$6="Orkney Health Board",0,IF('III Tool Overview'!$H$6="Shetland Health Board",0,IF('III Tool Overview'!$H$6="Western Isles Health Board",0,IF('III Tool Overview'!$H$6="Orkney Islands Local Authority",0,IF('III Tool Overview'!$H$6="Shetland Islands Local Authority",0,IF('III Tool Overview'!$H$6="Eilean Siar Local Authority",0,new_ci(20,B96,C96,D96,$C$1,G96+H96,1,F96,E96*F96))))))) -> 0 | Q96: =IF('III Tool Overview'!$H$6="Orkney Health Board",0,IF('III Tool Overview'!$H$6="Shetland Health Board",0,IF('III Tool Overview'!$H$6="Western Isles Health Board",0,IF('III Tool Overview'!$H$6="Orkney Islands Local Authority",0,IF('III Tool Overview'!$H$6="Shetland Islands Local Authority",0,IF('III Tool Overview'!$H$6="Eilean Siar Local Authority",0,new_yll(2,B96,C96,D96,$C$1,G96,1,F96,E96*F96))))))) -> 0 | R96: =IF('III Tool Overview'!$H$6="Orkney Health Board",0,IF('III Tool Overview'!$H$6="Shetland Health Board",0,IF('III Tool Overview'!$H$6="Western Isles Health Board",0,IF('III Tool Overview'!$H$6="Orkney Islands Local Authority",0,IF('III Tool Overview'!$H$6="Shetland Islands Local Authority",0,IF('III Tool Overview'!$H$6="Eilean Siar Local Authority",0,new_yll(2,B96,C96,D96,$C$1,G96+H96,1,F96,E96*F96))))))) -> 0 | S96: 0 | T96: =IF('III Tool Overview'!$H$6="Orkney Health Board",0,IF('III Tool Overview'!$H$6="Shetland Health Board",0,IF('III Tool Overview'!$H$6="Western Isles Health Board",0,IF('III Tool Overview'!$H$6="Orkney Islands Local Authority",0,IF('III Tool Overview'!$H$6="Shetland Islands Local Authority",0,IF('III Tool Overview'!$H$6="Eilean Siar Local Authority",0,new_yll(5,B96,C96,D96,$C$1,G96,1,F96,E96*F96))))))) -> 0 | U96: =IF('III Tool Overview'!$H$6="Orkney Health Board",0,IF('III Tool Overview'!$H$6="Shetland Health Board",0,IF('III Tool Overview'!$H$6="Western Isles Health Board",0,IF('III Tool Overview'!$H$6="Orkney Islands Local Authority",0,IF('III Tool Overview'!$H$6="Shetland Islands Local Authority",0,IF('III Tool Overview'!$H$6="Eilean Siar Local Authority",0,new_yll(5,B96,C96,D96,$C$1,G96+H96,1,F96,E96*F96))))))) -> 0 | V96: 0 | W96: =IF('III Tool Overview'!$H$6="Orkney Health Board",0,IF('III Tool Overview'!$H$6="Shetland Health Board",0,IF('III Tool Overview'!$H$6="Western Isles Health Board",0,IF('III Tool Overview'!$H$6="Orkney Islands Local Authority",0,IF('III Tool Overview'!$H$6="Shetland Islands Local Authority",0,IF('III Tool Overview'!$H$6="Eilean Siar Local Authority",0,new_yll(10,B96,C96,D96,$C$1,G96,1,F96,E96*F96))))))) -> 0 | X96: =IF('III Tool Overview'!$H$6="Orkney Health Board",0,IF('III Tool Overview'!$H$6="Shetland Health Board",0,IF('III Tool Overview'!$H$6="Western Isles Health Board",0,IF('III Tool Overview'!$H$6="Orkney Islands Local Authority",0,IF('III Tool Overview'!$H$6="Shetland Islands Local Authority",0,IF('III Tool Overview'!$H$6="Eilean Siar Local Authority",0,new_yll(10,B96,C96,D96,$C$1,G96+H96,1,F96,E96*F96))))))) -> 0 | Y96: 0 | Z96: =IF('III Tool Overview'!$H$6="Orkney Health Board",0,IF('III Tool Overview'!$H$6="Shetland Health Board",0,IF('III Tool Overview'!$H$6="Western Isles Health Board",0,IF('III Tool Overview'!$H$6="Orkney Islands Local Authority",0,IF('III Tool Overview'!$H$6="Shetland Islands Local Authority",0,IF('III Tool Overview'!$H$6="Eilean Siar Local Authority",0,new_yll(20,B96,C96,D96,$C$1,G96,1,F96,E96*F96))))))) -> 0 | AA96: =IF('III Tool Overview'!$H$6="Orkney Health Board",0,IF('III Tool Overview'!$H$6="Shetland Health Board",0,IF('III Tool Overview'!$H$6="Western Isles Health Board",0,IF('III Tool Overview'!$H$6="Orkney Islands Local Authority",0,IF('III Tool Overview'!$H$6="Shetland Islands Local Authority",0,IF('III Tool Overview'!$H$6="Eilean Siar Local Authority",0,new_yll(20,B96,C96,D96,$C$1,G96+H96,1,F96,E96*F96))))))) -> 0 | AB96: 0 | AC96: =IF('III Tool Overview'!$H$6="Orkney Health Board",0,IF('III Tool Overview'!$H$6="Shetland Health Board",0,IF('III Tool Overview'!$H$6="Western Isles Health Board",0,IF('III Tool Overview'!$H$6="Orkney Islands Local Authority",0,IF('III Tool Overview'!$H$6="Shetland Islands Local Authority",0,IF('III Tool Overview'!$H$6="Eilean Siar Local Authority",0,hosp_count(2,B96,C96,D96,$C$1,G96,1,F96,E96*F96))))))) -> 0 | AD96: =IF('III Tool Overview'!$H$6="Orkney Health Board",0,IF('III Tool Overview'!$H$6="Shetland Health Board",0,IF('III Tool Overview'!$H$6="Western Isles Health Board",0,IF('III Tool Overview'!$H$6="Orkney Islands Local Authority",0,IF('III Tool Overview'!$H$6="Shetland Islands Local Authority",0,IF('III Tool Overview'!$H$6="Eilean Siar Local Authority",0,hosp_count(2,B96,C96,D96,$C$1,G96+H96,1,F96,E96*F96))))))) -> 0 | AE96: 0 | AF96: =IF('III Tool Overview'!$H$6="Orkney Health Board",0,IF('III Tool Overview'!$H$6="Shetland Health Board",0,IF('III Tool Overview'!$H$6="Western Isles Health Board",0,IF('III Tool Overview'!$H$6="Orkney Islands Local Authority",0,IF('III Tool Overview'!$H$6="Shetland Islands Local Authority",0,IF('III Tool Overview'!$H$6="Eilean Siar Local Authority",0,hosp_count(5,B96,C96,D96,$C$1,G96,1,F96,E96*F96))))))) -> 0 | AG96: =IF('III Tool Overview'!$H$6="Orkney Health Board",0,IF('III Tool Overview'!$H$6="Shetland Health Board",0,IF('III Tool Overview'!$H$6="Western Isles Health Board",0,IF('III Tool Overview'!$H$6="Orkney Islands Local Authority",0,IF('III Tool Overview'!$H$6="Shetland Islands Local Authority",0,IF('III Tool Overview'!$H$6="Eilean Siar Local Authority",0,hosp_count(5,B96,C96,D96,$C$1,G96+H96,1,F96,E96*F96))))))) -> 0 | AH96: 0 | AI96: =IF('III Tool Overview'!$H$6="Orkney Health Board",0,IF('III Tool Overview'!$H$6="Shetland Health Board",0,IF('III Tool Overview'!$H$6="Western Isles Health Board",0,IF('III Tool Overview'!$H$6="Orkney Islands Local Authority",0,IF('III Tool Overview'!$H$6="Shetland Islands Local Authority",0,IF('III Tool Overview'!$H$6="Eilean Siar Local Authority",0,hosp_count(10,B96,C96,D96,$C$1,G96,1,F96,E96*F96))))))) -> 0 | AJ96: =IF('III Tool Overview'!$H$6="Orkney Health Board",0,IF('III Tool Overview'!$H$6="Shetland Health Board",0,IF('III Tool Overview'!$H$6="Western Isles Health Board",0,IF('III Tool Overview'!$H$6="Orkney Islands Local Authority",0,IF('III Tool Overview'!$H$6="Shetland Islands Local Authority",0,IF('III Tool Overview'!$H$6="Eilean Siar Local Authority",0,hosp_count(10,B96,C96,D96,$C$1,G96+H96,1,F96,E96*F96))))))) -> 0 | AK96: 0 | AL96: =IF('III Tool Overview'!$H$6="Orkney Health Board",0,IF('III Tool Overview'!$H$6="Shetland Health Board",0,IF('III Tool Overview'!$H$6="Western Isles Health Board",0,IF('III Tool Overview'!$H$6="Orkney Islands Local Authority",0,IF('III Tool Overview'!$H$6="Shetland Islands Local Authority",0,IF('III Tool Overview'!$H$6="Eilean Siar Local Authority",0,hosp_count(20,B96,C96,D96,$C$1,G96,1,F96,E96*F96))))))) -> 0 | AM96: =IF('III Tool Overview'!$H$6="Orkney Health Board",0,IF('III Tool Overview'!$H$6="Shetland Health Board",0,IF('III Tool Overview'!$H$6="Western Isles Health Board",0,IF('III Tool Overview'!$H$6="Orkney Islands Local Authority",0,IF('III Tool Overview'!$H$6="Shetland Islands Local Authority",0,IF('III Tool Overview'!$H$6="Eilean Siar Local Authority",0,hosp_count(20,B96,C96,D96,$C$1,G96+H96,1,F96,E96*F96))))))) -> 0 | AN96: 0
A97: Female 45-49 | B97: 47.5 | C97: female | D97: 1 | E97: =HLOOKUP('III Tool Overview'!$H$6,Prevalence!$B$2:$AV$268,Prevalence!AW92,FALSE) -> 0.419047619 | F97: =HLOOKUP('III Tool Overview'!$H$6,LookUpData_Pop!$B$1:$AV$269,LookUpData_Pop!BB97,FALSE)/5 -> 0 | G97: ='III Tool Overview'!$H$9/110 -> 0 | H97: =IF('III Tool Overview'!$H$10="Even distribution",Targeting!C94,IF('III Tool Overview'!$H$10="Targeting to Q1",Targeting!D94,IF('III Tool Overview'!$H$10="Targeting to Q1 & Q2",Targeting!E94,IF('III Tool Overview'!$H$10="Proportionate to need",Targeting!F94)))) -> 3.272727273 | I97: =IF('III Tool Overview'!$H$6="Orkney Health Board",0,IF('III Tool Overview'!$H$6="Shetland Health Board",0,IF('III Tool Overview'!$H$6="Western Isles Health Board",0,IF('III Tool Overview'!$H$6="Orkney Islands Local Authority",0,IF('III Tool Overview'!$H$6="Shetland Islands Local Authority",0,IF('III Tool Overview'!$H$6="Eilean Siar Local Authority",0,new_ci(2,B97,C97,D97,$C$1,G97,1,F97,E97*F97))))))) -> 0 | J97: =IF('III Tool Overview'!$H$6="Orkney Health Board",0,IF('III Tool Overview'!$H$6="Shetland Health Board",0,IF('III Tool Overview'!$H$6="Western Isles Health Board",0,IF('III Tool Overview'!$H$6="Orkney Islands Local Authority",0,IF('III Tool Overview'!$H$6="Shetland Islands Local Authority",0,IF('III Tool Overview'!$H$6="Eilean Siar Local Authority",0,new_ci(2,B97,C97,D97,$C$1,G97+H97,1,F97,E97*F97))))))) -> 0 | K97: =IF('III Tool Overview'!$H$6="Orkney Health Board",0,IF('III Tool Overview'!$H$6="Shetland Health Board",0,IF('III Tool Overview'!$H$6="Western Isles Health Board",0,IF('III Tool Overview'!$H$6="Orkney Islands Local Authority",0,IF('III Tool Overview'!$H$6="Shetland Islands Local Authority",0,IF('III Tool Overview'!$H$6="Eilean Siar Local Authority",0,new_ci(5,B97,C97,D97,$C$1,G97,1,F97,E97*F97))))))) -> 0 | L97: =IF('III Tool Overview'!$H$6="Orkney Health Board",0,IF('III Tool Overview'!$H$6="Shetland Health Board",0,IF('III Tool Overview'!$H$6="Western Isles Health Board",0,IF('III Tool Overview'!$H$6="Orkney Islands Local Authority",0,IF('III Tool Overview'!$H$6="Shetland Islands Local Authority",0,IF('III Tool Overview'!$H$6="Eilean Siar Local Authority",0,new_ci(5,B97,C97,D97,$C$1,G97+H97,1,F97,E97*F97))))))) -> 0 | M97: =IF('III Tool Overview'!$H$6="Orkney Health Board",0,IF('III Tool Overview'!$H$6="Shetland Health Board",0,IF('III Tool Overview'!$H$6="Western Isles Health Board",0,IF('III Tool Overview'!$H$6="Orkney Islands Local Authority",0,IF('III Tool Overview'!$H$6="Shetland Islands Local Authority",0,IF('III Tool Overview'!$H$6="Eilean Siar Local Authority",0,new_ci(10,B97,C97,D97,$C$1,G97,1,F97,E97*F97))))))) -> 0 | N97: =IF('III Tool Overview'!$H$6="Orkney Health Board",0,IF('III Tool Overview'!$H$6="Shetland Health Board",0,IF('III Tool Overview'!$H$6="Western Isles Health Board",0,IF('III Tool Overview'!$H$6="Orkney Islands Local Authority",0,IF('III Tool Overview'!$H$6="Shetland Islands Local Authority",0,IF('III Tool Overview'!$H$6="Eilean Siar Local Authority",0,new_ci(10,B97,C97,D97,$C$1,G97+H97,1,F97,E97*F97))))))) -> 0 | O97: =IF('III Tool Overview'!$H$6="Orkney Health Board",0,IF('III Tool Overview'!$H$6="Shetland Health Board",0,IF('III Tool Overview'!$H$6="Western Isles Health Board",0,IF('III Tool Overview'!$H$6="Orkney Islands Local Authority",0,IF('III Tool Overview'!$H$6="Shetland Islands Local Authority",0,IF('III Tool Overview'!$H$6="Eilean Siar Local Authority",0,new_ci(20,B97,C97,D97,$C$1,G97,1,F97,E97*F97))))))) -> 0 | P97: =IF('III Tool Overview'!$H$6="Orkney Health Board",0,IF('III Tool Overview'!$H$6="Shetland Health Board",0,IF('III Tool Overview'!$H$6="Western Isles Health Board",0,IF('III Tool Overview'!$H$6="Orkney Islands Local Authority",0,IF('III Tool Overview'!$H$6="Shetland Islands Local Authority",0,IF('III Tool Overview'!$H$6="Eilean Siar Local Authority",0,new_ci(20,B97,C97,D97,$C$1,G97+H97,1,F97,E97*F97))))))) -> 0 | Q97: =IF('III Tool Overview'!$H$6="Orkney Health Board",0,IF('III Tool Overview'!$H$6="Shetland Health Board",0,IF('III Tool Overview'!$H$6="Western Isles Health Board",0,IF('III Tool Overview'!$H$6="Orkney Islands Local Authority",0,IF('III Tool Overview'!$H$6="Shetland Islands Local Authority",0,IF('III Tool Overview'!$H$6="Eilean Siar Local Authority",0,new_yll(2,B97,C97,D97,$C$1,G97,1,F97,E97*F97))))))) -> 0 | R97: =IF('III Tool Overview'!$H$6="Orkney Health Board",0,IF('III Tool Overview'!$H$6="Shetland Health Board",0,IF('III Tool Overview'!$H$6="Western Isles Health Board",0,IF('III Tool Overview'!$H$6="Orkney Islands Local Authority",0,IF('III Tool Overview'!$H$6="Shetland Islands Local Authority",0,IF('III Tool Overview'!$H$6="Eilean Siar Local Authority",0,new_yll(2,B97,C97,D97,$C$1,G97+H97,1,F97,E97*F97))))))) -> 0 | S97: 0 | T97: =IF('III Tool Overview'!$H$6="Orkney Health Board",0,IF('III Tool Overview'!$H$6="Shetland Health Board",0,IF('III Tool Overview'!$H$6="Western Isles Health Board",0,IF('III Tool Overview'!$H$6="Orkney Islands Local Authority",0,IF('III Tool Overview'!$H$6="Shetland Islands Local Authority",0,IF('III Tool Overview'!$H$6="Eilean Siar Local Authority",0,new_yll(5,B97,C97,D97,$C$1,G97,1,F97,E97*F97))))))) -> 0 | U97: =IF('III Tool Overview'!$H$6="Orkney Health Board",0,IF('III Tool Overview'!$H$6="Shetland Health Board",0,IF('III Tool Overview'!$H$6="Western Isles Health Board",0,IF('III Tool Overview'!$H$6="Orkney Islands Local Authority",0,IF('III Tool Overview'!$H$6="Shetland Islands Local Authority",0,IF('III Tool Overview'!$H$6="Eilean Siar Local Authority",0,new_yll(5,B97,C97,D97,$C$1,G97+H97,1,F97,E97*F97))))))) -> 0 | V97: 0 | W97: =IF('III Tool Overview'!$H$6="Orkney Health Board",0,IF('III Tool Overview'!$H$6="Shetland Health Board",0,IF('III Tool Overview'!$H$6="Western Isles Health Board",0,IF('III Tool Overview'!$H$6="Orkney Islands Local Authority",0,IF('III Tool Overview'!$H$6="Shetland Islands Local Authority",0,IF('III Tool Overview'!$H$6="Eilean Siar Local Authority",0,new_yll(10,B97,C97,D97,$C$1,G97,1,F97,E97*F97))))))) -> 0 | X97: =IF('III Tool Overview'!$H$6="Orkney Health Board",0,IF('III Tool Overview'!$H$6="Shetland Health Board",0,IF('III Tool Overview'!$H$6="Western Isles Health Board",0,IF('III Tool Overview'!$H$6="Orkney Islands Local Authority",0,IF('III Tool Overview'!$H$6="Shetland Islands Local Authority",0,IF('III Tool Overview'!$H$6="Eilean Siar Local Authority",0,new_yll(10,B97,C97,D97,$C$1,G97+H97,1,F97,E97*F97))))))) -> 0 | Y97: 0 | Z97: =IF('III Tool Overview'!$H$6="Orkney Health Board",0,IF('III Tool Overview'!$H$6="Shetland Health Board",0,IF('III Tool Overview'!$H$6="Western Isles Health Board",0,IF('III Tool Overview'!$H$6="Orkney Islands Local Authority",0,IF('III Tool Overview'!$H$6="Shetland Islands Local Authority",0,IF('III Tool Overview'!$H$6="Eilean Siar Local Authority",0,new_yll(20,B97,C97,D97,$C$1,G97,1,F97,E97*F97))))))) -> 0 | AA97: =IF('III Tool Overview'!$H$6="Orkney Health Board",0,IF('III Tool Overview'!$H$6="Shetland Health Board",0,IF('III Tool Overview'!$H$6="Western Isles Health Board",0,IF('III Tool Overview'!$H$6="Orkney Islands Local Authority",0,IF('III Tool Overview'!$H$6="Shetland Islands Local Authority",0,IF('III Tool Overview'!$H$6="Eilean Siar Local Authority",0,new_yll(20,B97,C97,D97,$C$1,G97+H97,1,F97,E97*F97))))))) -> 0 | AB97: 0 | AC97: =IF('III Tool Overview'!$H$6="Orkney Health Board",0,IF('III Tool Overview'!$H$6="Shetland Health Board",0,IF('III Tool Overview'!$H$6="Western Isles Health Board",0,IF('III Tool Overview'!$H$6="Orkney Islands Local Authority",0,IF('III Tool Overview'!$H$6="Shetland Islands Local Authority",0,IF('III Tool Overview'!$H$6="Eilean Siar Local Authority",0,hosp_count(2,B97,C97,D97,$C$1,G97,1,F97,E97*F97))))))) -> 0 | AD97: =IF('III Tool Overview'!$H$6="Orkney Health Board",0,IF('III Tool Overview'!$H$6="Shetland Health Board",0,IF('III Tool Overview'!$H$6="Western Isles Health Board",0,IF('III Tool Overview'!$H$6="Orkney Islands Local Authority",0,IF('III Tool Overview'!$H$6="Shetland Islands Local Authority",0,IF('III Tool Overview'!$H$6="Eilean Siar Local Authority",0,hosp_count(2,B97,C97,D97,$C$1,G97+H97,1,F97,E97*F97))))))) -> 0 | AE97: 0 | AF97: =IF('III Tool Overview'!$H$6="Orkney Health Board",0,IF('III Tool Overview'!$H$6="Shetland Health Board",0,IF('III Tool Overview'!$H$6="Western Isles Health Board",0,IF('III Tool Overview'!$H$6="Orkney Islands Local Authority",0,IF('III Tool Overview'!$H$6="Shetland Islands Local Authority",0,IF('III Tool Overview'!$H$6="Eilean Siar Local Authority",0,hosp_count(5,B97,C97,D97,$C$1,G97,1,F97,E97*F97))))))) -> 0 | AG97: =IF('III Tool Overview'!$H$6="Orkney Health Board",0,IF('III Tool Overview'!$H$6="Shetland Health Board",0,IF('III Tool Overview'!$H$6="Western Isles Health Board",0,IF('III Tool Overview'!$H$6="Orkney Islands Local Authority",0,IF('III Tool Overview'!$H$6="Shetland Islands Local Authority",0,IF('III Tool Overview'!$H$6="Eilean Siar Local Authority",0,hosp_count(5,B97,C97,D97,$C$1,G97+H97,1,F97,E97*F97))))))) -> 0 | AH97: 0 | AI97: =IF('III Tool Overview'!$H$6="Orkney Health Board",0,IF('III Tool Overview'!$H$6="Shetland Health Board",0,IF('III Tool Overview'!$H$6="Western Isles Health Board",0,IF('III Tool Overview'!$H$6="Orkney Islands Local Authority",0,IF('III Tool Overview'!$H$6="Shetland Islands Local Authority",0,IF('III Tool Overview'!$H$6="Eilean Siar Local Authority",0,hosp_count(10,B97,C97,D97,$C$1,G97,1,F97,E97*F97))))))) -> 0 | AJ97: =IF('III Tool Overview'!$H$6="Orkney Health Board",0,IF('III Tool Overview'!$H$6="Shetland Health Board",0,IF('III Tool Overview'!$H$6="Western Isles Health Board",0,IF('III Tool Overview'!$H$6="Orkney Islands Local Authority",0,IF('III Tool Overview'!$H$6="Shetland Islands Local Authority",0,IF('III Tool Overview'!$H$6="Eilean Siar Local Authority",0,hosp_count(10,B97,C97,D97,$C$1,G97+H97,1,F97,E97*F97))))))) -> 0 | AK97: 0 | AL97: =IF('III Tool Overview'!$H$6="Orkney Health Board",0,IF('III Tool Overview'!$H$6="Shetland Health Board",0,IF('III Tool Overview'!$H$6="Western Isles Health Board",0,IF('III Tool Overview'!$H$6="Orkney Islands Local Authority",0,IF('III Tool Overview'!$H$6="Shetland Islands Local Authority",0,IF('III Tool Overview'!$H$6="Eilean Siar Local Authority",0,hosp_count(20,B97,C97,D97,$C$1,G97,1,F97,E97*F97))))))) -> 0 | AM97: =IF('III Tool Overview'!$H$6="Orkney Health Board",0,IF('III Tool Overview'!$H$6="Shetland Health Board",0,IF('III Tool Overview'!$H$6="Western Isles Health Board",0,IF('III Tool Overview'!$H$6="Orkney Islands Local Authority",0,IF('III Tool Overview'!$H$6="Shetland Islands Local Authority",0,IF('III Tool Overview'!$H$6="Eilean Siar Local Authority",0,hosp_count(20,B97,C97,D97,$C$1,G97+H97,1,F97,E97*F97))))))) -> 0 | AN97: 0
A98: Female 50-54 | B98: 52.5 | C98: female | D98: 1 | E98: =HLOOKUP('III Tool Overview'!$H$6,Prevalence!$B$2:$AV$268,Prevalence!AW93,FALSE) -> 0.3523809524 | F98: =HLOOKUP('III Tool Overview'!$H$6,LookUpData_Pop!$B$1:$AV$269,LookUpData_Pop!BB98,FALSE)/5 -> 0 | G98: ='III Tool Overview'!$H$9/110 -> 0 | H98: =IF('III Tool Overview'!$H$10="Even distribution",Targeting!C95,IF('III Tool Overview'!$H$10="Targeting to Q1",Targeting!D95,IF('III Tool Overview'!$H$10="Targeting to Q1 & Q2",Targeting!E95,IF('III Tool Overview'!$H$10="Proportionate to need",Targeting!F95)))) -> 3.272727273 | I98: =IF('III Tool Overview'!$H$6="Orkney Health Board",0,IF('III Tool Overview'!$H$6="Shetland Health Board",0,IF('III Tool Overview'!$H$6="Western Isles Health Board",0,IF('III Tool Overview'!$H$6="Orkney Islands Local Authority",0,IF('III Tool Overview'!$H$6="Shetland Islands Local Authority",0,IF('III Tool Overview'!$H$6="Eilean Siar Local Authority",0,new_ci(2,B98,C98,D98,$C$1,G98,1,F98,E98*F98))))))) -> 0 | J98: =IF('III Tool Overview'!$H$6="Orkney Health Board",0,IF('III Tool Overview'!$H$6="Shetland Health Board",0,IF('III Tool Overview'!$H$6="Western Isles Health Board",0,IF('III Tool Overview'!$H$6="Orkney Islands Local Authority",0,IF('III Tool Overview'!$H$6="Shetland Islands Local Authority",0,IF('III Tool Overview'!$H$6="Eilean Siar Local Authority",0,new_ci(2,B98,C98,D98,$C$1,G98+H98,1,F98,E98*F98))))))) -> 0 | K98: =IF('III Tool Overview'!$H$6="Orkney Health Board",0,IF('III Tool Overview'!$H$6="Shetland Health Board",0,IF('III Tool Overview'!$H$6="Western Isles Health Board",0,IF('III Tool Overview'!$H$6="Orkney Islands Local Authority",0,IF('III Tool Overview'!$H$6="Shetland Islands Local Authority",0,IF('III Tool Overview'!$H$6="Eilean Siar Local Authority",0,new_ci(5,B98,C98,D98,$C$1,G98,1,F98,E98*F98))))))) -> 0 | L98: =IF('III Tool Overview'!$H$6="Orkney Health Board",0,IF('III Tool Overview'!$H$6="Shetland Health Board",0,IF('III Tool Overview'!$H$6="Western Isles Health Board",0,IF('III Tool Overview'!$H$6="Orkney Islands Local Authority",0,IF('III Tool Overview'!$H$6="Shetland Islands Local Authority",0,IF('III Tool Overview'!$H$6="Eilean Siar Local Authority",0,new_ci(5,B98,C98,D98,$C$1,G98+H98,1,F98,E98*F98))))))) -> 0 | M98: =IF('III Tool Overview'!$H$6="Orkney Health Board",0,IF('III Tool Overview'!$H$6="Shetland Health Board",0,IF('III Tool Overview'!$H$6="Western Isles Health Board",0,IF('III Tool Overview'!$H$6="Orkney Islands Local Authority",0,IF('III Tool Overview'!$H$6="Shetland Islands Local Authority",0,IF('III Tool Overview'!$H$6="Eilean Siar Local Authority",0,new_ci(10,B98,C98,D98,$C$1,G98,1,F98,E98*F98))))))) -> 0 | N98: =IF('III Tool Overview'!$H$6="Orkney Health Board",0,IF('III Tool Overview'!$H$6="Shetland Health Board",0,IF('III Tool Overview'!$H$6="Western Isles Health Board",0,IF('III Tool Overview'!$H$6="Orkney Islands Local Authority",0,IF('III Tool Overview'!$H$6="Shetland Islands Local Authority",0,IF('III Tool Overview'!$H$6="Eilean Siar Local Authority",0,new_ci(10,B98,C98,D98,$C$1,G98+H98,1,F98,E98*F98))))))) -> 0 | O98: =IF('III Tool Overview'!$H$6="Orkney Health Board",0,IF('III Tool Overview'!$H$6="Shetland Health Board",0,IF('III Tool Overview'!$H$6="Western Isles Health Board",0,IF('III Tool Overview'!$H$6="Orkney Islands Local Authority",0,IF('III Tool Overview'!$H$6="Shetland Islands Local Authority",0,IF('III Tool Overview'!$H$6="Eilean Siar Local Authority",0,new_ci(20,B98,C98,D98,$C$1,G98,1,F98,E98*F98))))))) -> 0 | P98: =IF('III Tool Overview'!$H$6="Orkney Health Board",0,IF('III Tool Overview'!$H$6="Shetland Health Board",0,IF('III Tool Overview'!$H$6="Western Isles Health Board",0,IF('III Tool Overview'!$H$6="Orkney Islands Local Authority",0,IF('III Tool Overview'!$H$6="Shetland Islands Local Authority",0,IF('III Tool Overview'!$H$6="Eilean Siar Local Authority",0,new_ci(20,B98,C98,D98,$C$1,G98+H98,1,F98,E98*F98))))))) -> 0 | Q98: =IF('III Tool Overview'!$H$6="Orkney Health Board",0,IF('III Tool Overview'!$H$6="Shetland Health Board",0,IF('III Tool Overview'!$H$6="Western Isles Health Board",0,IF('III Tool Overview'!$H$6="Orkney Islands Local Authority",0,IF('III Tool Overview'!$H$6="Shetland Islands Local Authority",0,IF('III Tool Overview'!$H$6="Eilean Siar Local Authority",0,new_yll(2,B98,C98,D98,$C$1,G98,1,F98,E98*F98))))))) -> 0 | R98: =IF('III Tool Overview'!$H$6="Orkney Health Board",0,IF('III Tool Overview'!$H$6="Shetland Health Board",0,IF('III Tool Overview'!$H$6="Western Isles Health Board",0,IF('III Tool Overview'!$H$6="Orkney Islands Local Authority",0,IF('III Tool Overview'!$H$6="Shetland Islands Local Authority",0,IF('III Tool Overview'!$H$6="Eilean Siar Local Authority",0,new_yll(2,B98,C98,D98,$C$1,G98+H98,1,F98,E98*F98))))))) -> 0 | S98: 0 | T98: =IF('III Tool Overview'!$H$6="Orkney Health Board",0,IF('III Tool Overview'!$H$6="Shetland Health Board",0,IF('III Tool Overview'!$H$6="Western Isles Health Board",0,IF('III Tool Overview'!$H$6="Orkney Islands Local Authority",0,IF('III Tool Overview'!$H$6="Shetland Islands Local Authority",0,IF('III Tool Overview'!$H$6="Eilean Siar Local Authority",0,new_yll(5,B98,C98,D98,$C$1,G98,1,F98,E98*F98))))))) -> 0 | U98: =IF('III Tool Overview'!$H$6="Orkney Health Board",0,IF('III Tool Overview'!$H$6="Shetland Health Board",0,IF('III Tool Overview'!$H$6="Western Isles Health Board",0,IF('III Tool Overview'!$H$6="Orkney Islands Local Authority",0,IF('III Tool Overview'!$H$6="Shetland Islands Local Authority",0,IF('III Tool Overview'!$H$6="Eilean Siar Local Authority",0,new_yll(5,B98,C98,D98,$C$1,G98+H98,1,F98,E98*F98))))))) -> 0 | V98: 0 | W98: =IF('III Tool Overview'!$H$6="Orkney Health Board",0,IF('III Tool Overview'!$H$6="Shetland Health Board",0,IF('III Tool Overview'!$H$6="Western Isles Health Board",0,IF('III Tool Overview'!$H$6="Orkney Islands Local Authority",0,IF('III Tool Overview'!$H$6="Shetland Islands Local Authority",0,IF('III Tool Overview'!$H$6="Eilean Siar Local Authority",0,new_yll(10,B98,C98,D98,$C$1,G98,1,F98,E98*F98))))))) -> 0 | X98: =IF('III Tool Overview'!$H$6="Orkney Health Board",0,IF('III Tool Overview'!$H$6="Shetland Health Board",0,IF('III Tool Overview'!$H$6="Western Isles Health Board",0,IF('III Tool Overview'!$H$6="Orkney Islands Local Authority",0,IF('III Tool Overview'!$H$6="Shetland Islands Local Authority",0,IF('III Tool Overview'!$H$6="Eilean Siar Local Authority",0,new_yll(10,B98,C98,D98,$C$1,G98+H98,1,F98,E98*F98))))))) -> 0 | Y98: 0 | Z98: =IF('III Tool Overview'!$H$6="Orkney Health Board",0,IF('III Tool Overview'!$H$6="Shetland Health Board",0,IF('III Tool Overview'!$H$6="Western Isles Health Board",0,IF('III Tool Overview'!$H$6="Orkney Islands Local Authority",0,IF('III Tool Overview'!$H$6="Shetland Islands Local Authority",0,IF('III Tool Overview'!$H$6="Eilean Siar Local Authority",0,new_yll(20,B98,C98,D98,$C$1,G98,1,F98,E98*F98))))))) -> 0 | AA98: =IF('III Tool Overview'!$H$6="Orkney Health Board",0,IF('III Tool Overview'!$H$6="Shetland Health Board",0,IF('III Tool Overview'!$H$6="Western Isles Health Board",0,IF('III Tool Overview'!$H$6="Orkney Islands Local Authority",0,IF('III Tool Overview'!$H$6="Shetland Islands Local Authority",0,IF('III Tool Overview'!$H$6="Eilean Siar Local Authority",0,new_yll(20,B98,C98,D98,$C$1,G98+H98,1,F98,E98*F98))))))) -> 0 | AB98: 0 | AC98: =IF('III Tool Overview'!$H$6="Orkney Health Board",0,IF('III Tool Overview'!$H$6="Shetland Health Board",0,IF('III Tool Overview'!$H$6="Western Isles Health Board",0,IF('III Tool Overview'!$H$6="Orkney Islands Local Authority",0,IF('III Tool Overview'!$H$6="Shetland Islands Local Authority",0,IF('III Tool Overview'!$H$6="Eilean Siar Local Authority",0,hosp_count(2,B98,C98,D98,$C$1,G98,1,F98,E98*F98))))))) -> 0 | AD98: =IF('III Tool Overview'!$H$6="Orkney Health Board",0,IF('III Tool Overview'!$H$6="Shetland Health Board",0,IF('III Tool Overview'!$H$6="Western Isles Health Board",0,IF('III Tool Overview'!$H$6="Orkney Islands Local Authority",0,IF('III Tool Overview'!$H$6="Shetland Islands Local Authority",0,IF('III Tool Overview'!$H$6="Eilean Siar Local Authority",0,hosp_count(2,B98,C98,D98,$C$1,G98+H98,1,F98,E98*F98))))))) -> 0 | AE98: 0 | AF98: =IF('III Tool Overview'!$H$6="Orkney Health Board",0,IF('III Tool Overview'!$H$6="Shetland Health Board",0,IF('III Tool Overview'!$H$6="Western Isles Health Board",0,IF('III Tool Overview'!$H$6="Orkney Islands Local Authority",0,IF('III Tool Overview'!$H$6="Shetland Islands Local Authority",0,IF('III Tool Overview'!$H$6="Eilean Siar Local Authority",0,hosp_count(5,B98,C98,D98,$C$1,G98,1,F98,E98*F98))))))) -> 0 | AG98: =IF('III Tool Overview'!$H$6="Orkney Health Board",0,IF('III Tool Overview'!$H$6="Shetland Health Board",0,IF('III Tool Overview'!$H$6="Western Isles Health Board",0,IF('III Tool Overview'!$H$6="Orkney Islands Local Authority",0,IF('III Tool Overview'!$H$6="Shetland Islands Local Authority",0,IF('III Tool Overview'!$H$6="Eilean Siar Local Authority",0,hosp_count(5,B98,C98,D98,$C$1,G98+H98,1,F98,E98*F98))))))) -> 0 | AH98: 0 | AI98: =IF('III Tool Overview'!$H$6="Orkney Health Board",0,IF('III Tool Overview'!$H$6="Shetland Health Board",0,IF('III Tool Overview'!$H$6="Western Isles Health Board",0,IF('III Tool Overview'!$H$6="Orkney Islands Local Authority",0,IF('III Tool Overview'!$H$6="Shetland Islands Local Authority",0,IF('III Tool Overview'!$H$6="Eilean Siar Local Authority",0,hosp_count(10,B98,C98,D98,$C$1,G98,1,F98,E98*F98))))))) -> 0 | AJ98: =IF('III Tool Overview'!$H$6="Orkney Health Board",0,IF('III Tool Overview'!$H$6="Shetland Health Board",0,IF('III Tool Overview'!$H$6="Western Isles Health Board",0,IF('III Tool Overview'!$H$6="Orkney Islands Local Authority",0,IF('III Tool Overview'!$H$6="Shetland Islands Local Authority",0,IF('III Tool Overview'!$H$6="Eilean Siar Local Authority",0,hosp_count(10,B98,C98,D98,$C$1,G98+H98,1,F98,E98*F98))))))) -> 0 | AK98: 0 | AL98: =IF('III Tool Overview'!$H$6="Orkney Health Board",0,IF('III Tool Overview'!$H$6="Shetland Health Board",0,IF('III Tool Overview'!$H$6="Western Isles Health Board",0,IF('III Tool Overview'!$H$6="Orkney Islands Local Authority",0,IF('III Tool Overview'!$H$6="Shetland Islands Local Authority",0,IF('III Tool Overview'!$H$6="Eilean Siar Local Authority",0,hosp_count(20,B98,C98,D98,$C$1,G98,1,F98,E98*F98))))))) -> 0 | AM98: =IF('III Tool Overview'!$H$6="Orkney Health Board",0,IF('III Tool Overview'!$H$6="Shetland Health Board",0,IF('III Tool Overview'!$H$6="Western Isles Health Board",0,IF('III Tool Overview'!$H$6="Orkney Islands Local Authority",0,IF('III Tool Overview'!$H$6="Shetland Islands Local Authority",0,IF('III Tool Overview'!$H$6="Eilean Siar Local Authority",0,hosp_count(20,B98,C98,D98,$C$1,G98+H98,1,F98,E98*F98))))))) -> 0 | AN98: 0
A99: Female 55-59 | B99: 57.5 | C99: female | D99: 1 | E99: =HLOOKUP('III Tool Overview'!$H$6,Prevalence!$B$2:$AV$268,Prevalence!AW94,FALSE) -> 0.4761904762 | F99: =HLOOKUP('III Tool Overview'!$H$6,LookUpData_Pop!$B$1:$AV$269,LookUpData_Pop!BB99,FALSE)/5 -> 0 | G99: ='III Tool Overview'!$H$9/110 -> 0 | H99: =IF('III Tool Overview'!$H$10="Even distribution",Targeting!C96,IF('III Tool Overview'!$H$10="Targeting to Q1",Targeting!D96,IF('III Tool Overview'!$H$10="Targeting to Q1 & Q2",Targeting!E96,IF('III Tool Overview'!$H$10="Proportionate to need",Targeting!F96)))) -> 3.272727273 | I99: =IF('III Tool Overview'!$H$6="Orkney Health Board",0,IF('III Tool Overview'!$H$6="Shetland Health Board",0,IF('III Tool Overview'!$H$6="Western Isles Health Board",0,IF('III Tool Overview'!$H$6="Orkney Islands Local Authority",0,IF('III Tool Overview'!$H$6="Shetland Islands Local Authority",0,IF('III Tool Overview'!$H$6="Eilean Siar Local Authority",0,new_ci(2,B99,C99,D99,$C$1,G99,1,F99,E99*F99))))))) -> 0 | J99: =IF('III Tool Overview'!$H$6="Orkney Health Board",0,IF('III Tool Overview'!$H$6="Shetland Health Board",0,IF('III Tool Overview'!$H$6="Western Isles Health Board",0,IF('III Tool Overview'!$H$6="Orkney Islands Local Authority",0,IF('III Tool Overview'!$H$6="Shetland Islands Local Authority",0,IF('III Tool Overview'!$H$6="Eilean Siar Local Authority",0,new_ci(2,B99,C99,D99,$C$1,G99+H99,1,F99,E99*F99))))))) -> 0 | K99: =IF('III Tool Overview'!$H$6="Orkney Health Board",0,IF('III Tool Overview'!$H$6="Shetland Health Board",0,IF('III Tool Overview'!$H$6="Western Isles Health Board",0,IF('III Tool Overview'!$H$6="Orkney Islands Local Authority",0,IF('III Tool Overview'!$H$6="Shetland Islands Local Authority",0,IF('III Tool Overview'!$H$6="Eilean Siar Local Authority",0,new_ci(5,B99,C99,D99,$C$1,G99,1,F99,E99*F99))))))) -> 0 | L99: =IF('III Tool Overview'!$H$6="Orkney Health Board",0,IF('III Tool Overview'!$H$6="Shetland Health Board",0,IF('III Tool Overview'!$H$6="Western Isles Health Board",0,IF('III Tool Overview'!$H$6="Orkney Islands Local Authority",0,IF('III Tool Overview'!$H$6="Shetland Islands Local Authority",0,IF('III Tool Overview'!$H$6="Eilean Siar Local Authority",0,new_ci(5,B99,C99,D99,$C$1,G99+H99,1,F99,E99*F99))))))) -> 0 | M99: =IF('III Tool Overview'!$H$6="Orkney Health Board",0,IF('III Tool Overview'!$H$6="Shetland Health Board",0,IF('III Tool Overview'!$H$6="Western Isles Health Board",0,IF('III Tool Overview'!$H$6="Orkney Islands Local Authority",0,IF('III Tool Overview'!$H$6="Shetland Islands Local Authority",0,IF('III Tool Overview'!$H$6="Eilean Siar Local Authority",0,new_ci(10,B99,C99,D99,$C$1,G99,1,F99,E99*F99))))))) -> 0 | N99: =IF('III Tool Overview'!$H$6="Orkney Health Board",0,IF('III Tool Overview'!$H$6="Shetland Health Board",0,IF('III Tool Overview'!$H$6="Western Isles Health Board",0,IF('III Tool Overview'!$H$6="Orkney Islands Local Authority",0,IF('III Tool Overview'!$H$6="Shetland Islands Local Authority",0,IF('III Tool Overview'!$H$6="Eilean Siar Local Authority",0,new_ci(10,B99,C99,D99,$C$1,G99+H99,1,F99,E99*F99))))))) -> 0 | O99: =IF('III Tool Overview'!$H$6="Orkney Health Board",0,IF('III Tool Overview'!$H$6="Shetland Health Board",0,IF('III Tool Overview'!$H$6="Western Isles Health Board",0,IF('III Tool Overview'!$H$6="Orkney Islands Local Authority",0,IF('III Tool Overview'!$H$6="Shetland Islands Local Authority",0,IF('III Tool Overview'!$H$6="Eilean Siar Local Authority",0,new_ci(20,B99,C99,D99,$C$1,G99,1,F99,E99*F99))))))) -> 0 | P99: =IF('III Tool Overview'!$H$6="Orkney Health Board",0,IF('III Tool Overview'!$H$6="Shetland Health Board",0,IF('III Tool Overview'!$H$6="Western Isles Health Board",0,IF('III Tool Overview'!$H$6="Orkney Islands Local Authority",0,IF('III Tool Overview'!$H$6="Shetland Islands Local Authority",0,IF('III Tool Overview'!$H$6="Eilean Siar Local Authority",0,new_ci(20,B99,C99,D99,$C$1,G99+H99,1,F99,E99*F99))))))) -> 0 | Q99: =IF('III Tool Overview'!$H$6="Orkney Health Board",0,IF('III Tool Overview'!$H$6="Shetland Health Board",0,IF('III Tool Overview'!$H$6="Western Isles Health Board",0,IF('III Tool Overview'!$H$6="Orkney Islands Local Authority",0,IF('III Tool Overview'!$H$6="Shetland Islands Local Authority",0,IF('III Tool Overview'!$H$6="Eilean Siar Local Authority",0,new_yll(2,B99,C99,D99,$C$1,G99,1,F99,E99*F99))))))) -> 0 | R99: =IF('III Tool Overview'!$H$6="Orkney Health Board",0,IF('III Tool Overview'!$H$6="Shetland Health Board",0,IF('III Tool Overview'!$H$6="Western Isles Health Board",0,IF('III Tool Overview'!$H$6="Orkney Islands Local Authority",0,IF('III Tool Overview'!$H$6="Shetland Islands Local Authority",0,IF('III Tool Overview'!$H$6="Eilean Siar Local Authority",0,new_yll(2,B99,C99,D99,$C$1,G99+H99,1,F99,E99*F99))))))) -> 0 | S99: 0 | T99: =IF('III Tool Overview'!$H$6="Orkney Health Board",0,IF('III Tool Overview'!$H$6="Shetland Health Board",0,IF('III Tool Overview'!$H$6="Western Isles Health Board",0,IF('III Tool Overview'!$H$6="Orkney Islands Local Authority",0,IF('III Tool Overview'!$H$6="Shetland Islands Local Authority",0,IF('III Tool Overview'!$H$6="Eilean Siar Local Authority",0,new_yll(5,B99,C99,D99,$C$1,G99,1,F99,E99*F99))))))) -> 0 | U99: =IF('III Tool Overview'!$H$6="Orkney Health Board",0,IF('III Tool Overview'!$H$6="Shetland Health Board",0,IF('III Tool Overview'!$H$6="Western Isles Health Board",0,IF('III Tool Overview'!$H$6="Orkney Islands Local Authority",0,IF('III Tool Overview'!$H$6="Shetland Islands Local Authority",0,IF('III Tool Overview'!$H$6="Eilean Siar Local Authority",0,new_yll(5,B99,C99,D99,$C$1,G99+H99,1,F99,E99*F99))))))) -> 0 | V99: 0 | W99: =IF('III Tool Overview'!$H$6="Orkney Health Board",0,IF('III Tool Overview'!$H$6="Shetland Health Board",0,IF('III Tool Overview'!$H$6="Western Isles Health Board",0,IF('III Tool Overview'!$H$6="Orkney Islands Local Authority",0,IF('III Tool Overview'!$H$6="Shetland Islands Local Authority",0,IF('III Tool Overview'!$H$6="Eilean Siar Local Authority",0,new_yll(10,B99,C99,D99,$C$1,G99,1,F99,E99*F99))))))) -> 0 | X99: =IF('III Tool Overview'!$H$6="Orkney Health Board",0,IF('III Tool Overview'!$H$6="Shetland Health Board",0,IF('III Tool Overview'!$H$6="Western Isles Health Board",0,IF('III Tool Overview'!$H$6="Orkney Islands Local Authority",0,IF('III Tool Overview'!$H$6="Shetland Islands Local Authority",0,IF('III Tool Overview'!$H$6="Eilean Siar Local Authority",0,new_yll(10,B99,C99,D99,$C$1,G99+H99,1,F99,E99*F99))))))) -> 0 | Y99: 0 | Z99: =IF('III Tool Overview'!$H$6="Orkney Health Board",0,IF('III Tool Overview'!$H$6="Shetland Health Board",0,IF('III Tool Overview'!$H$6="Western Isles Health Board",0,IF('III Tool Overview'!$H$6="Orkney Islands Local Authority",0,IF('III Tool Overview'!$H$6="Shetland Islands Local Authority",0,IF('III Tool Overview'!$H$6="Eilean Siar Local Authority",0,new_yll(20,B99,C99,D99,$C$1,G99,1,F99,E99*F99))))))) -> 0 | AA99: =IF('III Tool Overview'!$H$6="Orkney Health Board",0,IF('III Tool Overview'!$H$6="Shetland Health Board",0,IF('III Tool Overview'!$H$6="Western Isles Health Board",0,IF('III Tool Overview'!$H$6="Orkney Islands Local Authority",0,IF('III Tool Overview'!$H$6="Shetland Islands Local Authority",0,IF('III Tool Overview'!$H$6="Eilean Siar Local Authority",0,new_yll(20,B99,C99,D99,$C$1,G99+H99,1,F99,E99*F99))))))) -> 0 | AB99: 0 | AC99: =IF('III Tool Overview'!$H$6="Orkney Health Board",0,IF('III Tool Overview'!$H$6="Shetland Health Board",0,IF('III Tool Overview'!$H$6="Western Isles Health Board",0,IF('III Tool Overview'!$H$6="Orkney Islands Local Authority",0,IF('III Tool Overview'!$H$6="Shetland Islands Local Authority",0,IF('III Tool Overview'!$H$6="Eilean Siar Local Authority",0,hosp_count(2,B99,C99,D99,$C$1,G99,1,F99,E99*F99))))))) -> 0 | AD99: =IF('III Tool Overview'!$H$6="Orkney Health Board",0,IF('III Tool Overview'!$H$6="Shetland Health Board",0,IF('III Tool Overview'!$H$6="Western Isles Health Board",0,IF('III Tool Overview'!$H$6="Orkney Islands Local Authority",0,IF('III Tool Overview'!$H$6="Shetland Islands Local Authority",0,IF('III Tool Overview'!$H$6="Eilean Siar Local Authority",0,hosp_count(2,B99,C99,D99,$C$1,G99+H99,1,F99,E99*F99))))))) -> 0 | AE99: 0 | AF99: =IF('III Tool Overview'!$H$6="Orkney Health Board",0,IF('III Tool Overview'!$H$6="Shetland Health Board",0,IF('III Tool Overview'!$H$6="Western Isles Health Board",0,IF('III Tool Overview'!$H$6="Orkney Islands Local Authority",0,IF('III Tool Overview'!$H$6="Shetland Islands Local Authority",0,IF('III Tool Overview'!$H$6="Eilean Siar Local Authority",0,hosp_count(5,B99,C99,D99,$C$1,G99,1,F99,E99*F99))))))) -> 0 | AG99: =IF('III Tool Overview'!$H$6="Orkney Health Board",0,IF('III Tool Overview'!$H$6="Shetland Health Board",0,IF('III Tool Overview'!$H$6="Western Isles Health Board",0,IF('III Tool Overview'!$H$6="Orkney Islands Local Authority",0,IF('III Tool Overview'!$H$6="Shetland Islands Local Authority",0,IF('III Tool Overview'!$H$6="Eilean Siar Local Authority",0,hosp_count(5,B99,C99,D99,$C$1,G99+H99,1,F99,E99*F99))))))) -> 0 | AH99: 0 | AI99: =IF('III Tool Overview'!$H$6="Orkney Health Board",0,IF('III Tool Overview'!$H$6="Shetland Health Board",0,IF('III Tool Overview'!$H$6="Western Isles Health Board",0,IF('III Tool Overview'!$H$6="Orkney Islands Local Authority",0,IF('III Tool Overview'!$H$6="Shetland Islands Local Authority",0,IF('III Tool Overview'!$H$6="Eilean Siar Local Authority",0,hosp_count(10,B99,C99,D99,$C$1,G99,1,F99,E99*F99))))))) -> 0 | AJ99: =IF('III Tool Overview'!$H$6="Orkney Health Board",0,IF('III Tool Overview'!$H$6="Shetland Health Board",0,IF('III Tool Overview'!$H$6="Western Isles Health Board",0,IF('III Tool Overview'!$H$6="Orkney Islands Local Authority",0,IF('III Tool Overview'!$H$6="Shetland Islands Local Authority",0,IF('III Tool Overview'!$H$6="Eilean Siar Local Authority",0,hosp_count(10,B99,C99,D99,$C$1,G99+H99,1,F99,E99*F99))))))) -> 0 | AK99: 0 | AL99: =IF('III Tool Overview'!$H$6="Orkney Health Board",0,IF('III Tool Overview'!$H$6="Shetland Health Board",0,IF('III Tool Overview'!$H$6="Western Isles Health Board",0,IF('III Tool Overview'!$H$6="Orkney Islands Local Authority",0,IF('III Tool Overview'!$H$6="Shetland Islands Local Authority",0,IF('III Tool Overview'!$H$6="Eilean Siar Local Authority",0,hosp_count(20,B99,C99,D99,$C$1,G99,1,F99,E99*F99))))))) -> 0 | AM99: =IF('III Tool Overview'!$H$6="Orkney Health Board",0,IF('III Tool Overview'!$H$6="Shetland Health Board",0,IF('III Tool Overview'!$H$6="Western Isles Health Board",0,IF('III Tool Overview'!$H$6="Orkney Islands Local Authority",0,IF('III Tool Overview'!$H$6="Shetland Islands Local Authority",0,IF('III Tool Overview'!$H$6="Eilean Siar Local Authority",0,hosp_count(20,B99,C99,D99,$C$1,G99+H99,1,F99,E99*F99))))))) -> 0 | AN99: 0
